Workbook

Sheet Aufgaben
B1: Trainingslager | K1: =hidden!A1 -> 0
B3: Tipp deine persönliche ID-Zahl ein: | E3: =A142 -> 0 | G3: ="Hallo "&VLOOKUP(ID,'Name-ID'!A2:B40,2) -> Hallo Klasse
B4: (klicke unten in diesem Fenster auf den Reiter "Name-ID")
B5: Bearbeite dann händisch die Aufgaben. Trage deine Ergebnisse in die gelben Felder ein.
B6: Wenn du richtig liegst, solltest du auch eine Bestätigung bekommen.
B7: Troubleshooting: Siehe die Seite FAQ (Reiter unten am Bildschirmrand) oder klicke: | G7: HIER | I7: Links:
B9: Kapitel | O9: Fime (auf youtube)
A10: 1 | B10: Lineare Funktionen | I10: mathebaustelle | O10: Playlist Mathehoch13 | R10: Links zum Thema lineare Gleichungen
A11: 2 | B11: quadratische Gleichungen | I11: mathebaustelle | O11: Playlist Mathehhoch^3 | R11: Links zum Thema quadratische Gleichungen
A12: 3 | B12: quadratische Funktionen | O12: Playlist Mathehhoch^3
A13: 4 | B13: Lineare Gleichungssysteme | I13: mathebaustelle
A14: 5 | B14: Steckbriefaufgaben | I14: Glossar: Steckbriefaufgabe
A15: 6 | B15: Das Muster der Steigungen
A16: 7 | B16: Differentialrechnung
A17: 8 | B17: Umgang mit dem CAS (Funktionen)
A18: 9 | B18: Bäume
A19: 10 | B19: Zufallsvariablen | O19: Playlist Mathehoch13
A20: 11 | B20: Binomialverteilung | I20: Glossar: Binomialverteilujng | O20: Playlist Mathehoch13
A21: 12 | B21: Erwartungswert und Streuung bei Stichproben
A22: 20 | B22: Vektorrechnung
A23: 21 | B23: Matrizenrechnung
A28: 1 | B28: Lineare Funktionen | I28: Video | J28: Playlist Mathehoch13
I29: Thema: lineare Funktionen | P29: auf mathebaustelle.de
A30: =hidden!E4 -> Aufgabe 1 | B30: Löse die Gleichung:
B31: =IF(hidden!N6<0," - ","")&IF(hidden!N6=0,"",IF(ABS(hidden!N6)=1," x ",ABS(hidden!N6)&" x "))&IF(hidden!O6>0,IF(hidden!O6<>0," + ",""),"")&IF(hidden!O6<0," - ","")&IF(hidden!O6=0,"",IF(ABS(hidden!O6)=1," 1 ",ABS(hidden!O6)&""))&" = "&hidden!P6 -> 5 x - 6 = 14 | D31: x= | G31: =hidden!G4 ->  | I31: Erklärfilm | M31: (auf youtube)
I32: Links zum Thema
I33: interaktives Training | M33: Hier sieht man jeden einzelnen Schritt (Antwortspoiler)
A35: =hidden!E13 -> Aufgabe 2 | B35: ="Gegeben ist g mit g(x) = "&IF(hidden!N14<0," - ","")&IF(hidden!N14=0,"",IF(ABS(hidden!N14)=1," x ",ABS(hidden!N14)&" x "))&IF(hidden!O14>0,IF(hidden!O14<>0," + ",""),"")&IF(hidden!O14<0," - ","")&IF(hidden!O14=0,"",IF(ABS(hidden!O14)=1," 1 ",ABS(hidden!O14)&"")) -> Gegeben ist g mit g(x) = 3 x + 9 | I35: mathebaustelle-Seite zu linearen Funktionen
A36: a) | B36: =hidden!E16 -> Gib den y-Achsenabschnitt von g an: | G36: =IF((E36-hidden!O14)=0,"korrekt!","") ->  | I36: Glossar: y-Achsenabschnitt | O36: vorgerechnetes Beispiel
A37: b) | B37: =hidden!E17 -> Gib die Steigung von g an: | G37: =IF((E37-hidden!N14)=0,"korrekt!","") ->  | I37: Glossar: Geradensteigung
A38: c) | B38: =hidden!E18 -> Welchen Wert nimmt g an der Stelle -5 an? | G38: =IF(E38=hidden!N14*hidden!L14+hidden!O14,"korrekt!","") ->  | I38: Tipp Stelle und Wert | O38: Glossar: Funktionswert
A39: d) | B39: =hidden!E19 -> An welcher Stelle nimmt g den Wert -3 an? | G39: =IF((E39-hidden!L15)=0,"korrekt!","") ->  | I39: Info Stelle | K39: interaktives Training | P39: Hier sieht man jeden einzelnen Schritt (Antwortspoiler)
I40: Wenn du diese Begriffe an einem Anwendungsbeispiel trainieren willst: Das Wassergefäß
I41: interaktives Training Wassergefäß
A43: =hidden!E23 -> Aufgabe 3 | B43: Stell die Gleichung der Gerade g auf, | I43: Hintergrundinfos | O43: vorgerechnetes Beispiel
B44: ="die durch die Punkte ("&hidden!L24&"|"&hidden!P24&") und ("&hidden!L25&"|"&hidden!P25&") geht." -> die durch die Punkte (-4|17) und (1|7) geht. | I44: Video | P44: LehrerSchmidt | R44: DanielJung | S44: mathehoch13
O45: Training
A46: a) | B46: Berechne dazu zuerst die Steigung: | D46: m= | G46: =hidden!G24 ->  | I46: Glossar: Geradensteigung | O46: Training
A47: b) | B47: und dann den y-Achsenabschnitt: | D47: b= | G47: =hidden!G25 ->  | I47: Glossar: y-Achsenabschnitt | O47: mathehoch13 | Q47: (auf youtube)
A48: c) | B48: Dann schreib die Gleichung auf (g(x)=… ohne Malzeichen und Leerzeichen)
G49: =hidden!G26 -> 
A51: 2 | B51: quadratische Gleichungen | I51: Thema: quadratische Gleichungen | P51: auf mathebaustelle.de | R51: Links zum Thema quadratische Gleichungen
J52: Playlist Mathehhoch^3
A53: =hidden!E30 -> Aufgabe 1 | B53: Löse die Gleichung: | E53: =IF(E54>E55,"HALLO! ->","")&"Bitte die kleinere Zahl oben eintragen. "&IF(E54>E55,"Momentan steht die größere Zahl oben.","") -> Bitte die kleinere Zahl oben eintragen. | J53: Überblick bei Daniel Jung
B54: =hidden!E32 -> -1,2 (x - 1 )(x - 6)=0 | D54: x= | G54: =hidden!G32 ->  | I54: mathebaustelle | L54: Die faktorisierte Form: zwei Klammern - ein Geschenk
C55: oder | D55: x= | G55: =hidden!G33 ->  | I55: Hintergrundinfos | O55: vorgerechnetes Beispiel
O56: Training
A58: =hidden!E40 -> Aufgabe 2 | B58: Löse die Gleichung: | E58: =IF(E59>E60,"HALLO! ->","")&"Bitte die kleinere Zahl oben eintragen. "&IF(E59>E60,"Momentan steht die größere Zahl oben.","") -> Bitte die kleinere Zahl oben eintragen.
B59: =hidden!E42 -> - 2 x^2 - 4 x = 0 | D59: x= | G59: =hidden!G42 ->  | I59: mathebaustelle | L59: Ausklammern
C60: oder | D60: x= | G60: =hidden!G43 ->  | O60: vorgerechnetes Beispiel
O61: Training
A63: =hidden!E47 -> Aufgabe 3 | B63: Löse die Gleichung: | E63: =IF(E64>E65,"HALLO! ->","")&"Bitte die kleinere Zahl oben eintragen. "&IF(E64>E65,"Momentan steht die größere Zahl oben.","") -> Bitte die kleinere Zahl oben eintragen.
B64: =hidden!E49 -> - 2 x^2 + 18 = 0 | D64: x= | G64: =hidden!G49 ->  | I64: mathebaustelle | L64: x²+c=0
C65: oder | D65: x= | G65: =hidden!G50 ->  | O65: vorgerechnetes Beispiel
O66: externer Link zum Training: realmath
A68: =hidden!E58 -> Aufgabe 4 | B68: Löse die Gleichung: | E68: =IF(E69>E70,"HALLO! ->","")&"Bitte die kleinere Zahl oben eintragen. "&IF(E69>E70,"Momentan steht die größere Zahl oben.","") -> Bitte die kleinere Zahl oben eintragen.
B69: =hidden!E60 -> x^2 - 16 x + 39 = 0 | D69: x= | G69: =IF(ISBLANK(E69),"",IF((E69-hidden!N60)=0,"korrekt!","")) ->  | I69: mathebaustelle | L69: Quadratische Ergänzung: das Verfahren, das immer geht.
C70: oder | D70: x= | G70: =IF(ISBLANK(E70),"",IF((E70-hidden!O60)=0,"korrekt!","")) ->  | I70: Hintergrundinfos | O70: Erklärfilm quadr.Ergänzung
B71: -8 | I71: interaktives Training | M71: Hier sieht man jeden einzelnen Schritt (Antwortspoiler)
O72: Erklärfilm zum internativen Training
O73: DanielJung | Q73: wem das lieber ist: p-q-Formel
A74: =hidden!E65 -> Aufgabe 5 | B74: Löse die Gleichung:
B75: =hidden!E67 -> - 2 x^2 + 4 x + 48 = 0 | I75: Frage: Was ist x^2?? | M75: Das "^" steht für "hoch". x^2 ist also x². x^3 ist x³
B76: erstmal normieren: x^2….=0
E77: =IF(E78>E79,"HALLO! ->","")&"Bitte die kleinere Zahl oben eintragen. "&IF(E78>E79,"Momentan steht die größere Zahl oben.","") -> Bitte die kleinere Zahl oben eintragen.
D78: x= | G78: =IF(ISBLANK(E78),"",IF((E78-hidden!N67)=0,"korrekt!","")) ->  | I78: Hintergrundinfos | O78: Erklärfilm quadr.Ergänzung
C79: oder | D79: x= | G79: =IF(ISBLANK(E79),"",IF((E79-hidden!O67)=0,"korrekt!","")) ->  | I79: interaktives Training | M79: Hier sieht man jeden einzelnen Schritt (Antwortspoiler)
A81: 3 | B81: quadratische Funktionen | I81: Thema: quadratische Funktionen | P81: auf mathebaustelle.de
A83: =hidden!E75 -> Aufgabe 1 (Scheitelpunktform)
B84: =hidden!L81 -> 0
B85: =hidden!L82 -> Gegeben ist die Funktion f mit | I85: Frage: Was ist x^2?? | M85: Das "^" steht für "hoch". x^2 ist also x². x^3 ist x³
B86: =hidden!L83 -> f(x)=0,5(x - 4)^2 - 2 | I86: Glossar: Scheitelpunktform
A88: =hidden!I85 -> a) | B88: =hidden!L85 -> Bring f auf Normalform: f(x)= | G88: =hidden!T85 ->  | I88: vorgerechnetes Beispiel | N88: Glossar: Normalform
B89: (kein Malzeichen, keine Leerzeichen)
A91: =hidden!I87 -> b) | B91: =hidden!L87 -> Gib den Scheitelpunkt an | G91: =hidden!T87 -> 
B92: =hidden!L88 -> Schreib die Koordinaten ohne Leerzeichen in der Form (...;...) | E92: =hidden!T88 -> 
A94: =hidden!I89 -> c) | B94: =hidden!L89 -> Welchen Wert nimmt f an der Stelle -5 an? | G94: =hidden!T89 ->  | I94: Tipp Stelle und Wert
E95: =IF(E96>E97,"HALLO! ->","")&"Bitte die kleinere Zahl oben eintragen. "&IF(E96>E97,"Momentan steht die größere Zahl oben.","") -> Bitte die kleinere Zahl oben eintragen.
A96: =hidden!I91 -> d) | B96: =hidden!L91 -> An welcher Stelle nimmt f den Wert 10,5 an? | G96: =hidden!T91 -> 
G97: =hidden!T92 -> 
A99: =hidden!I94 -> e) | B99: =hidden!L94 -> Gib den y-Achsenabschnitt an. | G99: =hidden!T94 ->  | I99: Glossar: y-Achsenabschnitt
E100: =hidden!T95 -> 
B101: =hidden!L96 -> Gegenüber der Standardnormalparabel y=x^2 ist f …
C102: richtig | D102: ="falsch" -> falsch
B103: =hidden!L98 -> … nach unten geöffnet | E103: In diese Tabelle ankreuzen,
B104: =hidden!L99 -> … gestreckt | E104: indem du an den richtigen Stellen
B105: =hidden!L100 -> … um 4 nach links verschoben | E105: ein kleines x einfügst!
B106: =hidden!L101 -> … um 2 nach links verschoben | E106: "stimmt" wird nur angezeigt, wenn
B107: =hidden!L102 -> … um 4 nach rechts verschoben | E107: alles richtig ist:
B108: =hidden!L103 -> … um 2 nach rechts verschoben
B109: =hidden!L104 -> … um 4 nach oben verschoben
B110: =hidden!L105 -> … um 2 nach oben verschoben
B111: =hidden!L106 -> … um 4 nach unten verschoben
B112: =hidden!L107 -> … um 2 nach unten verschoben | G112: =hidden!T108 -> 
A115: =hidden!E111 -> Aufgabe 2 (Normalform)
B117: =hidden!L118 -> Gegeben ist die Funktion f mit
B118: =hidden!L119 -> f(x)=0,5 x^2 - 4 x + 6 | I118: Glossar: Normalform
A120: =hidden!I121 -> a) | B120: =hidden!L121 -> Gib den y-Achsenabschnitt an. | G120: =hidden!T121 ->  | I120: Glossar: y-Achsenabschnitt
E121: ="Bitte die kleinere Zahl oben eintragen."&IF(ISBLANK(E123),"",IF(E122>E123,"HALLO! ->Momentan steht die größere Zahl oben.","")) -> Bitte die kleinere Zahl oben eintragen.
A122: =hidden!I123 -> b) | B122: =hidden!L123 -> Berechne die Nullstellen. Runde auf eine Nachkommastelle. | G122: =hidden!T123 ->  | I122: Glossar: Nullstellen
G123: =hidden!T124 ->  | I123: Wie man quadr. Gleichungen löst: Siehe oben unter
I124: Kap. 2) quadratische Gleichungen, Aufg.5 (Normalform)
A125: =hidden!I126 -> c) | B125: =hidden!L126 -> Welchen Wert nimmt f an der Stelle -5 an? | G125: =hidden!T126 ->  | I125: Tipp Stelle und Wert
E126: =IF(E127>E128,"HALLO! ->","")&"Bitte die kleinere Zahl oben eintragen. "&IF(E127>E128,"Momentan steht die größere Zahl oben.","") -> Bitte die kleinere Zahl oben eintragen.
A127: =hidden!I128 -> d) | B127: =hidden!L128 -> An welcher Stelle nimmt f den Wert 10,5 an? | G127: =hidden!T128 -> 
G128: =hidden!T129 -> 
A132: =A81+1 -> 4 | B132: Lineare Gleichungssysteme (LGS) | I132: mathebaustelle | M132: Handwerkszeug: Lineare Gleichungssysteme
A134: =hidden!E139 -> Aufgabe 1 (Auswertung Diagonalform) | E134: Das ist der "Endspurt" wenn man
B135: =IF(hidden!M151<0," - ","")&IF(hidden!M151=0,"",IF(ABS(hidden!M151)=1," a ",ABS(hidden!M151)&" a "))&IF(hidden!N151>0,IF(hidden!M151<>0," + ",""),"")&IF(hidden!N151<0," - ","")&IF(hidden!N151=0,"",IF(ABS(hidden!N151)=1," b ",ABS(hidden!N151)&" b "))&IF(hidden!O151>0,IF(hidden!M151^2+hidden!N151^2<>0," + ",""),"")&IF(hidden!O151<0," - ","")&IF(hidden!O151=0,"",IF(ABS(hidden!O151)=1," c ",ABS(hidden!O151)&" c "))&" = "&hidden!P151 -> - a - 3 b + c = 13 | C135: (I) | E135: schon fast fertig ist …
B136: =IF(hidden!M152<0," - ","")&IF(hidden!M152=0,"",IF(ABS(hidden!M152)=1," a ",ABS(hidden!M152)&" a "))&IF(hidden!N152>0,IF(hidden!M152<>0," + ",""),"")&IF(hidden!N152<0," - ","")&IF(hidden!N152=0,"",IF(ABS(hidden!N152)=1," b ",ABS(hidden!N152)&" b "))&IF(hidden!O152>0,IF(hidden!M152^2+hidden!N152^2<>0," + ",""),"")&IF(hidden!O152<0," - ","")&IF(hidden!O152=0,"",IF(ABS(hidden!O152)=1," c ",ABS(hidden!O152)&" c "))&" = "&hidden!P152 -> 4 b - 2 c = -22 | C136: (II) | M136: Cornelsen | P136: LehrerSchmidt | R136: zu LGS und Additionsverfahren
B137: =IF(hidden!M153<0," - ","")&IF(hidden!M153=0,"",IF(ABS(hidden!M153)=1," a ",ABS(hidden!M153)&" a "))&IF(hidden!N153>0,IF(hidden!M153<>0," + ",""),"")&IF(hidden!N153<0," - ","")&IF(hidden!N153=0,"",IF(ABS(hidden!N153)=1," b ",ABS(hidden!N153)&" b "))&IF(hidden!O153>0,IF(hidden!M153^2+hidden!N153^2<>0," + ",""),"")&IF(hidden!O153<0," - ","")&IF(hidden!O153=0,"",IF(ABS(hidden!O153)=1," c ",ABS(hidden!O153)&" c "))&" = "&hidden!P153 -> - 2 c = -10 | C137: (III) | E137: "korrekt" wird nur angezeigt, wenn | I137: Hintergrundinfos
E138: alle drei Zahlen richtig sind:
B139: Löse das LGS und | D139: a= | I139: Erklärfilm | M139: zur Aufgabe (Film auf youtube)
B140: trage die Lösung in die gelben Felder ein: | D140: b=
D141: c= | G141: =hidden!T153 -> 
A143: =hidden!E158 -> Aufgabe 2 (zwei Gleichungen, zwei Variable, Schritt für Schritt mit Additionsverfahren)
B145: Trage in die gelben Felder ein, womit du Gleichung (I) bzw. (II) multiplizierst, | E145: "korrekt" wird nur angezeigt, wenn | I145: Erklärfilm | M145: zur Aufgabe (Film auf youtube)
B146: damit a wegfällt, wenn du danach addierst. | E146: es klappt. Dazu müssen beide | I146: interaktives Training | M146: vorgerechnetes Beispiel
B147: Wenn nichts verändert werden soll, lass "mal 1" stehen! | E147: Einzträge zueinander passen! | I147: Training als pdf (Check mit Lösung)
B148: =IF(hidden!M161<0," - ","")&IF(hidden!M161=0,"",IF(ABS(hidden!M161)=1," a ",ABS(hidden!M161)&" a "))&IF(hidden!N161>0,IF(hidden!M161<>0," + ",""),"")&IF(hidden!N161<0," - ","")&IF(hidden!N161=0,"",IF(ABS(hidden!N161)=1," b ",ABS(hidden!N161)&" b "))&IF(hidden!O161>0,IF(hidden!M161^2+hidden!N161^2<>0," + ",""),"")&IF(hidden!O161<0," - ","")&IF(hidden!O161=0,"",IF(ABS(hidden!O161)=1," c ",ABS(hidden!O161)&" c "))&" = "&hidden!P161 -> 3 a + 5 b = 0 | C148: (I) | F148: Faktor, mit dem du die erste Gleichung malnimmst
B149: =IF(hidden!M162<0," - ","")&IF(hidden!M162=0,"",IF(ABS(hidden!M162)=1," a ",ABS(hidden!M162)&" a "))&IF(hidden!N162>0,IF(hidden!M162<>0," + ",""),"")&IF(hidden!N162<0," - ","")&IF(hidden!N162=0,"",IF(ABS(hidden!N162)=1," b ",ABS(hidden!N162)&" b "))&IF(hidden!O162>0,IF(hidden!M162^2+hidden!N162^2<>0," + ",""),"")&IF(hidden!O162<0," - ","")&IF(hidden!O162=0,"",IF(ABS(hidden!O162)=1," c ",ABS(hidden!O162)&" c "))&" = "&hidden!P162 -> - 2 a - 4 b = -2 | C149: (II) | G149: =hidden!T163 -> 
B151: ="In dieser Zeile soll a wegfallen:"&IF(hidden!M173<0," - ","")&IF(hidden!M173=0,"",IF(ABS(hidden!M173)=1," a ",ABS(hidden!M173)&" a "))&IF(hidden!N173>0,IF(hidden!M173<>0," + ",""),"")&IF(hidden!N173<0," - ","")&IF(hidden!N173=0,"",IF(ABS(hidden!N173)=1," b ",ABS(hidden!N173)&" b "))&IF(hidden!O173>0,IF(hidden!M173^2+hidden!N173^2<>0," + ",""),"")&IF(hidden!O173<0," - ","")&IF(hidden!O173=0,"",IF(ABS(hidden!O173)=1," c ",ABS(hidden!O173)&" c "))&" = "&hidden!P173 -> In dieser Zeile soll a wegfallen: = 0 | C151: =IF(E148^2+E149^2=0,"",IF(E148*hidden!M161+E149*hidden!M162=0," hat geklappt!"," noch hat es nicht geklappt")) -> 
A152: immer noch Aufgabe 2
B153: Berechne b und
B154: trage die Lösung in das gelbe Feld ein: | D154: b= | G154: =hidden!T159 -> 
B155: Berechne zum Schluss noch a: | D155: a= | G155: =hidden!T160 ->  | I155: Tipp: Dazu setzt du eine der Gleichungen von oben dein Ergebnis von b ein.
I156: ="also: "&IF(hidden!M161<0," - ","")&IF(hidden!M161=0,"",IF(ABS(hidden!M161)=1," a ",ABS(hidden!M161)&" a "))&IF(hidden!N161>0,IF(hidden!M161<>0," + ",""),"")&IF(hidden!N161<0," - ","")&IF(hidden!N161=0,"",IF(ABS(hidden!N161)=1," * "&E154,ABS(hidden!N161)&" * "&E154))&IF(hidden!O161>0,IF(hidden!M161^2+hidden!N161^2<>0," + ",""),"")&IF(hidden!O161<0," - ","")&IF(hidden!O161=0,"",IF(ABS(hidden!O161)=1," c ",ABS(hidden!O161)&" c "))&" = "&hidden!P161 -> also: 3 a + 5 * = 0
A157: =hidden!E177 -> Aufgabe 3 (drei Gleichungen, drei Variablen)
B159: =IF(hidden!M184<0," - ","")&IF(hidden!M184=0,"",IF(ABS(hidden!M184)=1," a ",ABS(hidden!M184)&" a "))&IF(hidden!N184>0,IF(hidden!M184<>0," + ",""),"")&IF(hidden!N184<0," - ","")&IF(hidden!N184=0,"",IF(ABS(hidden!N184)=1," b ",ABS(hidden!N184)&" b "))&IF(hidden!O184>0,IF(hidden!M184^2+hidden!N184^2<>0," + ",""),"")&IF(hidden!O184<0," - ","")&IF(hidden!O184=0,"",IF(ABS(hidden!O184)=1," c ",ABS(hidden!O184)&" c "))&" = "&hidden!P184 -> 4 a - 2 b + 4 c = -10 | C159: (I) | D159: =IF(hidden!M181>0,hidden!M181/GCD(ABS(hidden!M180), ABS(hidden!M181)),-hidden!M181/GCD(ABS(hidden!M180), ABS(hidden!M181))) -> 1 | I159: Erklärfilm | L159: zur Aufgabe (Film auf youtube) | O159: vorgerechnetes Beispiel
B160: =IF(hidden!M185<0," - ","")&IF(hidden!M185=0,"",IF(ABS(hidden!M185)=1," a ",ABS(hidden!M185)&" a "))&IF(hidden!N185>0,IF(hidden!M185<>0," + ",""),"")&IF(hidden!N185<0," - ","")&IF(hidden!N185=0,"",IF(ABS(hidden!N185)=1," b ",ABS(hidden!N185)&" b "))&IF(hidden!O185>0,IF(hidden!M185^2+hidden!N185^2<>0," + ",""),"")&IF(hidden!O185<0," - ","")&IF(hidden!O185=0,"",IF(ABS(hidden!O185)=1," c ",ABS(hidden!O185)&" c "))&" = "&hidden!P185 -> - 2 a + b + 2 c = -11 | C160: (II) | D160: =IF(hidden!M181>0,-hidden!M180/GCD(ABS(hidden!M180), ABS(hidden!M181)),hidden!M180/GCD(ABS(hidden!M180), ABS(hidden!M181))) -> 2
B161: =IF(hidden!M186<0," - ","")&IF(hidden!M186=0,"",IF(ABS(hidden!M186)=1," a ",ABS(hidden!M186)&" a "))&IF(hidden!N186>0,IF(hidden!M186<>0," + ",""),"")&IF(hidden!N186<0," - ","")&IF(hidden!N186=0,"",IF(ABS(hidden!N186)=1," b ",ABS(hidden!N186)&" b "))&IF(hidden!O186>0,IF(hidden!M186^2+hidden!N186^2<>0," + ",""),"")&IF(hidden!O186<0," - ","")&IF(hidden!O186=0,"",IF(ABS(hidden!O186)=1," c ",ABS(hidden!O186)&" c "))&" = "&hidden!P186 -> 4 a + 3 b - c = 25 | C161: (III)
B162: ="nur abgeschrieben wird: "&B159&" (also die erste Zeile)" -> nur abgeschrieben wird: 4 a - 2 b + 4 c = -10 (also die erste Zeile) | I162: Also nicht rechnen, nur die erste Zeile nochmal abschreiben …
B163: Trage in das gelbe Feld unten das Ergebnis dieser Addition ein:
B164: (in der Art von: 2a+4b-c=3, kein Malzeichen, kein Leerzeichen!)
G165: =IF(B165=hidden!R192,"korrekt!","") -> 
B166: danach würde es weitergehen mit einer neuen Rechnung mit erster und dritter Zeile… | I166: Erklärfilm | L166: zur Aufgabe (Film auf youtube)
B168: Löse das LGS zuende und | D168: a= | G168: Diesmal gibt es nur eine Antwortwückmeldung, | O168: =hidden!P177 -> 3
B169: trage die Lösung in die gelben Felder ein: | D169: b= | G169: wenn a, b und c stimmen. | O169: =hidden!P178 -> 3
D170: c= | G170: =IF((E168-hidden!P177)^2+(E169-hidden!P178)^2+(E170-hidden!P179)^2=0,"korrekt!","") ->  | O170: =hidden!P179 -> -4
G172: Gleichungstester: | I172: a+ | K172: b+ | M172: c=
G173: =IF(H172*hidden!P177+J172*hidden!P178+L172*hidden!P179=N172,"Deine Gleichung ist richtig:","Deine Gleichung ist falsch:") -> Deine Gleichung ist richtig: | H173: =IF(H172*hidden!P177+J172*hidden!P178+L172*hidden!P179=N172,IF(H172=0,0,H172)&"*a+"&IF(J172=0,0,J172)&"*b+"&IF(L172=0,0,L172)&"*c="&IF(N172=0,0,N172),IF(H172=0,0,H172)&"*a+"&IF(J172=0,0,J172)&"*b+"&IF(L172=0,0,L172)&"*c ist ungleich "&IF(N172=0,0,N172)) -> 0*a+0*b+0*c=0
A175: =A132+1 -> 5 | B175: Steckbriefaufgaben
A177: =hidden!E195 -> Aufgabe 1 (quadratische Funktion, c gegeben)
B179: Gesucht ist eine quadratische Funktion | I179: Erklärfilm | L179: zur Aufgabe (Film auf youtube) | Q179: vorgerechnetes Beispiel
B180: f(x)=a x^2 + b x + c | C180: (x^2=x²) | O180: MathemaTrick | Q180: DanielJung
B181: ="Der Graph geht durch "&"("&hidden!P195&"|"&hidden!P198&")" -> Der Graph geht durch (0|-1)
B182: ="und durch "&"("&hidden!P196&"|"&hidden!P199&")" -> und durch (1|2,5) | I182: Glossar: Steckbriefaufgabe - quadratische Funktion
B183: ="und durch "&"("&hidden!P197&"|"&hidden!P200&")" -> und durch (5|26,5) | I183: interaktives Training
B185: Gib an: | D185: c= | G185: =hidden!T202 -> 
B187: Berechne a, b und c | D187: a= | G187: Diesmal gibt es nur eine Antwortrückmeldung,
D188: b= | G188: wenn a, b und c stimmen.
D189: c= | E189: =IF(ISBLANK(E185),"",E185) ->  | G189: =IF(E189="","",IF((E187-hidden!M198)^2+(E188-hidden!N198)^2+(E189-hidden!O198)^2=0,"korrekt!","")) ->  | P189: Man nennt das eine "Parametergleichung". Parameter ist nur ein Wort für Variable - hier für das t
G190: =IF(E190="","",IF((E188-hidden!M199)^2+(E189-hidden!N199)^2+(E190-hidden!O199)^2=0,"korrekt!","")) -> 
A192: =hidden!E213 -> Aufgabe 2 (quadratische Funktion, d nicht gegeben) | F192: ; t IR
B194: Gesucht ist eine quadratische Funktion
B195: f(x)=a x^2 + b x + c | C195: (x^2=x²) | I195: Glossar: Steckbriefaufgabe - quadratische Funktion
B196: ="Der Graph geht durch "&"("&hidden!P213&"|"&hidden!P216&")" -> Der Graph geht durch (-3|-1) | O196: MathemaTrick | Q196: DanielJung | R196: (Filme auf youtube)
B197: ="und durch "&"("&hidden!P214&"|"&hidden!P217&")" -> und durch (-4|4)
B198: ="und durch "&"("&hidden!P215&"|"&hidden!P218&")" -> und durch (2|4)
B200: ="Gib die Gleichung an, die sich durch direktes Einsetzen aus den drei Punkten ergibt:" -> Gib die Gleichung an, die sich durch direktes Einsetzen aus den drei Punkten ergibt:
B201: (Bitte in der Form 81a+9b+c=45 angeben - nur mit den richtigen Zahlen! Ohne Leerzeichen!)
A202: ="("&hidden!P213&"|"&hidden!P216&")" -> (-3|-1) | G202: =IF(B202=hidden!R216,"genau richtig!","") -> 
A203: ="("&hidden!P214&"|"&hidden!P217&")" -> (-4|4) | G203: =IF(B203=hidden!R217,"genau richtig!","") -> 
A204: ="("&hidden!P215&"|"&hidden!P218&")" -> (2|4) | G204: =IF(B204=hidden!R218,"genau richtig!","") -> 
B206: Berechne a, b und c | D206: a= | G206: Diesmal gibt es nur eine Antwortrückmeldung,
D207: b= | G207: wenn a, b und c stimmen.
D208: c= | G208: =IF((E206-hidden!M216)^2+(E207-hidden!N216)^2+(E208-hidden!O216)^2=0,"korrekt!","") -> 
A211: =hidden!E230 -> Aufgabe 3 (kubische Funktion, d gegeben)
I212: Frage: Was ist x^3?? | M212: Das "^" steht für "hoch". x^2 ist also x². x^3 ist x³
B213: Gesucht ist eine kubische Funktion | I213: Glossar: Steckbriefaufgabe
B214: f(x)=a x^3 + b x^2 + c x + d | C214: (x^3=x³, x^2=x²)
B215: ="Der Graph geht durch (0|"&hidden!P232&")" -> Der Graph geht durch (0|1)
B216: ="und durch "&"("&hidden!P230&"|"&hidden!P233&")" -> und durch (-2|-3)
B217: ="und durch "&"("&hidden!P231&"|"&hidden!P234&")" -> und durch (-1|0,5)
B218: ="und durch "&"("&hidden!P232&"|"&hidden!P235&")" -> und durch (1|2,5)
B220: ="Gib die Gleichung an, die sich aus dem Punkt ("&hidden!P230&"|"&hidden!P233&") ergibt, wenn man c abzieht. Teile noch nicht durch " &ABS(hidden!P230)&"." -> Gib die Gleichung an, die sich aus dem Punkt (-2|-3) ergibt, wenn man c abzieht. Teile noch nicht durch 2.
B221: (Bitte in der Form 8a+4b+2c+d=45 angeben - nur mit den richtigen Zahlen! Ohne Leerzeichen!)
G222: =IF(B222=hidden!R233,"genau richtig!","") -> 
B223: Mach dir keinen Kopf, wenn du diesmal kein "korrekt" bekommst:
B224: Hier gibt es zu viele korrekte Möglichkeiten - nicht alle werden erkannt!
B225: Berechne a, b und c | D225: a=
D226: b=
D227: c= | G227: =IF((E225-hidden!M233)^2+(E226-hidden!N233)^2+(E227-hidden!O233)^2+(E228-hidden!L233)^2=0,"ganz genau!","") -> 
B228: (d brauchst du nur ohne Rechnen hinzuschreiben) | D228: d=
A231: =A175+1 -> 6 | B231: Das Muster der Steigungen
A233: Aufgabe 1 | B233: Gegeben ist die quadratische Funktion f mit dem Funktionsterm | I233: Wenn du einfache Beispiele untersuchen möchtest,
B234: =hidden!E258 -> x^2 + 4 x + 6 | I234: die dir ermöglichen, selbst hinter das Prinzip zu kommen,
I235: schalte mal auf die Schüler*innennummern
B236: =hidden!E263 -> Vervollständige die Tabelle, | I236: 40, 41, …49
B237: =hidden!E264 -> indem du zu den angegebenen Stellen
B238: =hidden!E265 -> jeweils die Steigung näherungsweise
B239: =hidden!E266 -> berechnest und einträgst. | I239: Tipp: lokale Steigung näherungsweise berechnen
C240: Steigung f´(x)
B241: Stelle x | C241: an dieser Stelle
B242: =hidden!M257 -> -3 | D242: =hidden!R257 ->  | I242: =IF(ISBLANK(C242),"","also wurde nun der Punkt ("&B242&"|"&C242&") ins Diagramm eingefügt.") -> 
B243: =hidden!M258 -> -1 | D243: =hidden!R258 ->  | I243: =IF(ISBLANK(C243),"","also wurde nun der Punkt ("&B243&"|"&C243&") ins Diagramm eingefügt.") -> 
B244: =hidden!M259 -> 1 | D244: =hidden!R259 ->  | I244: =IF(ISBLANK(C244),"","also wurde nun der Punkt ("&B244&"|"&C244&") ins Diagramm eingefügt.") -> 
B245: =hidden!M260 -> 3 | D245: =hidden!R260 ->  | I245: =IF(ISBLANK(C245),"","also wurde nun der Punkt ("&B245&"|"&C245&") ins Diagramm eingefügt.") -> 
B246: Sobald du Werte in die Tabelle einträgst,
B247: werden rechts im Diagramme die Punkte (Stelle; Steigung) eingetragen.
... 182 more rows

Sheet mehr Aufgaben
A1: =Aufgaben!G3 -> Hallo Klasse
A2: 9 | B2: Baumdiagramme
A4: a) | B4: Vervollständige das Baumdiagramm. | F4: Runde die Ergebnisse auf vier Nachkommastellen.
E6: =hidden!G758 -> 0.0325 | F6: B
G7: =hidden!I759 -> 
C8: =hidden!E760 -> 0.01 | D8: A
E11: =hidden!G763 ->  | G11: =hidden!I763 -> 
F12: B
E13: =hidden!G765 ->  | G13: =hidden!I765 -> 
C15: =hidden!E767 -> 
E16: =hidden!G768 -> 0.0125
G17: =hidden!I769 -> 
G19: (Ja / Nein)
A20: b) | B20: Sind A und B stochastisch unabhängig?
G21: =hidden!I773 -> 
A22: c) | B22: Erstelle die zugehörige Vierfeldertafel.
E24: B | G24: Summe
D25: A
D27: Summe | G27: 1
E28: =hidden!G780 ->  | F28: =hidden!H780 ->  | G28: =hidden!I780 -> 
A30: d) | B30: Erstelle den umgedrehten Baum.
F34: A
E35: =hidden!G787 ->  | G35: =hidden!I787 -> 
D36: B
C37: =hidden!E789 -> 
E39: =hidden!G791 ->  | G39: =hidden!I791 -> 
F40: A
E41: =hidden!G793 ->  | G41: =hidden!I793 -> 
C43: =hidden!E795 -> 
E45: =hidden!G797 ->  | G45: =hidden!I797 -> 
P47: Training dazu, Aufgabenstellungen zu verstehen
A52: 20 | B52: Vektorrechnung
A54: =hidden!E814 -> Aufgabe 1 (Grundlagen in 2D)
B56: =hidden!E817 -> Gegeben sind die folgende Punkte: | O56: Der blaue Pfeil verbindet A und B
B57: =hidden!E818 -> A(3;-8)
B58: =hidden!E819 -> B(4;-13) | O58: Der rote Pfeil verbindet C und D
B59: =hidden!E820 -> C(-6;-6)
B60: =hidden!E821 -> D(-12;-8)
P61: Erklärfilm zu 1a bis 1e | R61: Filme (auf youtube)
H62: =hidden!K823 -> 
A63: =hidden!C824 -> a) | B63: =hidden!E824 -> Gib den Ortsvektor von A an. | H63: =hidden!K824 ->  | P63: Glossar Ortsvektor
H66: =hidden!G827 -> 
A67: =hidden!C828 -> b) | B67: =hidden!E828 -> Berechne den Vektor AB | H67: =hidden!G828 ->  | P67: Glossar Verschiebungsvektor
H70: =hidden!G831 -> 
A71: =hidden!C832 -> c) | B71: =hidden!E832 -> Gib den Gegenvektor dazu an (BA) | H71: =hidden!G832 ->  | P71: Glossar Gegenvektor
F73: mit Taschenrechner!
A74: =hidden!C835 -> d) | B74: =hidden!E835 -> Berechne die Länge |AB| | H74: =hidden!G835 ->  | I74: (Das ist der Abstand von A und B) | P74: Glossar Betrag Vektor
B75: =hidden!E836 -> (Ergebnis auf eine Nachkommastelle genau, | I75: Frage: Was ist x^2??
B76: =hidden!E837 -> sonst kriegst du keine Antwort)
H77: =hidden!G838 -> 
A78: =hidden!C839 -> e) | B78: =hidden!E839 -> Berechne AB + CD | H78: =hidden!G839 ->  | P78: Glossar Addition Vektor
P81: Erklärfilm zu 1f | R81: Filme (auf youtube)
A82: =hidden!C843 -> f) | B82: =hidden!E843 -> Berechne die Linearkombination | H82: =hidden!G842 ->  | P82: Glossar Linearkombination
B83: =hidden!E844 -> 4AB-2CD | H83: =hidden!G843 -> 
I85: Frage: Was ist x^2?? | P85: Erklärfilm zu 1g | R85: Filme (auf youtube)
F86: =hidden!F847 -> -14 | P86: Tipp: Mach zwei einzelne Gleichungen draus!
A87: =hidden!C848 -> g) | B87: =hidden!E848 -> Berechne k und s so, dass 4AB +k*CD = | F87: s | G87: k= | I87: =hidden!H848 ->  | P87: Tipps zu ähnlicher Aufgabe
G88: s= | I88: =hidden!H849 -> 
A90: =hidden!C851 -> h) | B90: =hidden!E851 -> Gegeben ist P(p1|-8). Die Koordinate p1 fehlt leider. | H90: kleinere Lösung oben eintragen!
B91: =hidden!E852 -> Berechne p1 so, dass |OP|=9,434 | G91: p1= | I91: =hidden!H852 -> 
B92: =hidden!E853 -> (OP ist der Ortsvektor von P) | G92: oder p1= | I92: =hidden!H853 -> 
B93: =hidden!E854 -> (Runde auf ein ganzahliges Ergebnis)
A104: =hidden!E864 -> Aufgabe 2 (Grundlagen in 3D)
B106: =hidden!E867 -> Gegeben sind die folgende Punkte:
B107: =hidden!E868 -> A(2;4;-3)
B108: =hidden!E869 -> B(11;-10;-4)
B109: =hidden!E870 -> C(-13;-8;2)
B110: =hidden!E871 -> D(-11;7;-3)
H112: =hidden!K873 -> 
A113: =hidden!C874 -> a) | B113: =hidden!E874 -> Gib den Ortsvektor von A an. | E113: OA= | H113: =hidden!K874 ->  | P113: Glossar Ortsvektor
H114: =hidden!K875 -> 
H116: =hidden!G877 -> 
A117: =hidden!C878 -> b) | B117: =hidden!E878 -> Berechne den Vektor AB | E117: AB= | H117: =hidden!G878 ->  | P117: Glossar Verschiebungsvektor
H118: =hidden!G879 -> 
H120: =hidden!G881 -> 
A121: =hidden!C882 -> c) | B121: =hidden!E882 -> Gib den Gegenvektor dazu an (BA) | E121: BA= | H121: =hidden!G882 ->  | P121: Glossar Gegenvektor
H122: =hidden!G883 -> 
A124: =hidden!C885 -> d) | B124: =hidden!E885 -> Berechne die Länge |AB| | H124: =hidden!G885 ->  | P124: Glossar Betrag Vektor
B125: =hidden!E886 -> (Ergebnis auf eine Nachkommastelle genau,
B126: =hidden!E887 -> sonst kriegst du keine Antwort)
H127: =hidden!G888 -> 
A128: =hidden!C889 -> e) | B128: =hidden!E889 -> Berechne AB + CD | H128: =hidden!G889 ->  | P128: Glossar Addition Vektor
A132: =hidden!C893 -> f) | B132: =hidden!E893 -> Berechne die Linearkombination | H132: =hidden!G892 ->  | P132: Glossar Linearkombination
B133: =hidden!E894 -> 4AB+2CD | H133: =hidden!G893 -> 
H134: =hidden!G894 -> 
F136: =hidden!F897 -> -26 | P136: Tipp: Mach drei einzelne Gleichungen draus!
A137: =hidden!C898 -> g) | B137: =hidden!E898 -> Berechne k und s so, dass -2AB+k*CD = | F137: s | G137: k= | I137: =hidden!H898 ->  | P137: Tipps zu ähnlicher Aufgabe
F138: =hidden!F899 -> 22 | G138: s= | I138: =hidden!H899 -> 
A140: =hidden!C901 -> h) | B140: =hidden!E901 -> Gegeben ist P(p1;4;-3) | G140: kleinere Lösung oben eintragen!
B141: =hidden!E902 -> Berechne die Koordinate p1 so, dass |OP|=5,831 | G141: p1= | I141: =hidden!H902 -> 
B142: =hidden!E903 -> (OP ist der Ortsvektor von P) | G142: oder p1= | I142: =hidden!H903 -> 
B143: =hidden!E904 -> (Runde auf ein ganzahliges Ergebnis)
A149: =hidden!E909 -> Aufgabe 3 (Punkte auf einer Geraden)
B151: =hidden!E912 -> Gegeben sind die folgende Punkte:
B152: =hidden!E913 -> P(-1;-6;2)
B153: =hidden!E914 -> Q(-10;4;-4)
H157: =hidden!L918 ->  | P157: Glossar Ortsvektor
A158: =hidden!C919 -> a) | B158: =hidden!E919 -> Gib den Vektor OP an. | H158: =hidden!L919 -> 
H159: =hidden!L920 -> 
H161: =hidden!G922 ->  | P161: Glossar Verschiebungsvektor
A162: =hidden!C923 -> b) | B162: =hidden!E923 -> Berechne den Verbindungsvektor | H162: =hidden!G923 -> 
B163: =hidden!E924 -> von P nach Q. | H163: =hidden!G924 -> 
H165: =hidden!G926 -> 
A166: =hidden!C927 -> c) | B166: =hidden!E927 -> Nimm OP und addiere 4mal PQ dazu. | H166: =hidden!G927 -> 
H167: =hidden!G928 -> 
A168: =hidden!C930 -> d) | B168: =hidden!E930 -> Berechne t so, | D168: =hidden!F930 -> -37
C169: =hidden!E931 -> dass OP+t*PQ= | D169: =hidden!F931 -> 34 | H169: =hidden!G931 -> 
D170: =hidden!F932 -> -22
A180: =hidden!E961 -> Aufgabe 4 (Geraden)
B182: =hidden!E964 -> g ist die Gerade durch die beiden Punkte P und Q:
B183: =hidden!E965 -> P(12;-28;5)
B184: =hidden!E966 -> Q(6;-12;1)
A186: =hidden!C973 -> a) | B186: =hidden!E973 -> Gib eine Geradengleichung von g an. | P186: Man nennt das eine "Parametergleichung". Parameter ist nur ein Wort für Variable - hier für das t
B189: g: x = | D189: ="+ t* " -> + t* | F189: ; t IR | H189: Feedback gibt es erst, wenn die Vektoren | P189: Glossar Geradengleichung
H190: komplett eingegeben sind!
C191: =hidden!G977 ->  | E191: =hidden!I977 ->  | P191: Glossar Geradengleichung
A192: =hidden!C979 -> b) | B192: =hidden!E979 -> Gib eine andere Geradengleichung von g an (beide Vektoren neu!)
P194: Tipp: der erste Vektor muss nur "auf der Gaerde liegen". Setz in die obere Vektorgleichung eine beliebige Zahl für t ein…
B195: g: x = | D195: ="+ t* " -> + t* | F195: ; t IR | H195: Feedback gibt es erst, wenn die Vektoren
H196: komplett eingegeben sind! | P196: Tipp: der zweite Vektor muss nur die gleiche Richtung haben wie der von oben. Nimm den "alten" Vektor mal irgendeiner Zahl ungleich Null.
C197: =hidden!G983 -> ändern! | E197: =hidden!I983 -> ändern!
A198: =hidden!C985 -> c) | B198: =hidden!E985 -> Wie nennt man den ersten der beiden Vektoren? | I198: =hidden!G985 -> 
B200: =hidden!E987 -> Wie nennt man den zweiten der beiden Vektoren? | I200: =hidden!G987 -> 
H201: Feedback gibt es erst, wenn die Antworten
A202: =hidden!C989 -> d) | B202: =hidden!E989 -> Untersuche, ob R auf der Geraden g liegt: R(-12;35;-11) | H202: komplett eingegeben sind!
B203: =hidden!E990 -> Berechne t mit der "oberen Gleichung": | F203: t= | I203: =hidden!G990 ->  | P203: also mit | Q203: =hidden!O989 -> +t*=-12
B204: =hidden!E991 -> Passt das zur zweiten Gleichung? | I204: =hidden!G991 ->  | P204: Dabei werden die ersten Koordinaten aus der Geradengleichung a) verwendet.
B205: =hidden!E992 -> Passt das zur unteren Gleichung? | I205: =hidden!G992 -> 
B206: =hidden!E993 -> Liegt R auf der Geraden? | I206: =hidden!G993 -> 
I207: =IF(I203="stimmt!",IF(I204="stimmt!",IF(I205="stimmt!",IF(I206="stimmt!","stimmt alles!",""),""),""),"") -> 
A208: =hidden!C997 -> e) | B208: =hidden!E997 -> Berechne den Schnittpunkt von g mit der x2-x3-Achse (Spurpunkt)
P209: Glossar Spurpunkt
A211: =hidden!C1000 -> f) | B211: =hidden!E1000 -> Berechne den Schnittpunkt von g mit der x1-x3-Achse (Spurpunkt)
I212: =hidden!I1001 -> 
A214: =hidden!C1003 -> g) | B214: =hidden!E1003 -> Gegeben sind die beiden Geraden h und k:
C216: =hidden!F1004 -> 8 | E216: =hidden!H1004 -> 3 | H216: =hidden!K1004 -> 6 | J216: =hidden!M1004 -> -1
B217: h: x = | C217: =hidden!F1005 -> 8 | D217: ="+ t* " -> + t* | E217: =hidden!H1005 -> 2 | F217: ; t IR | G217: k: x = | H217: =hidden!K1005 -> 36 | I217: ="+ t* " -> + t* | J217: =hidden!M1005 -> -8 | K217: ; t IR | P217: Tipp: Benenne einen der Parameter um: s statt t!
C218: =hidden!F1006 -> -11 | E218: =hidden!H1006 -> -4 | H218: =hidden!K1006 -> -11 | J218: =hidden!M1006 -> 2
B219: =hidden!E1008 -> Berechne die Parameter:
B220: =hidden!E1009 -> Parameter von h: | J220: =hidden!G1009 -> 
B221: =hidden!E1010 -> Parameter von k: | J221: =hidden!G1010 -> 
B222: =hidden!E1011 -> Schnittpunkt: | F222: S
G223: =hidden!G1011 ->  | H223: =hidden!G1012 ->  | I223: =hidden!G1013 -> 
A229: =hidden!E1028 -> Aufgabe 5 (Skalarprodukt und Winkel in 2D) | O229: Der blaue Pfeil entspricht v
B231: =hidden!E1031 -> Gegeben sind die folgende Vektoren: | O231: Der rote Pfeil entspricht w
C232: =hidden!F1032 -> 2 | E232: =hidden!H1032 -> 11
B233: =hidden!E1033 -> v= | C233: =hidden!F1033 -> 4 | D233: =hidden!G1033 -> w= | E233: =hidden!H1033 -> -13
A236: =hidden!C1036 -> a) | B236: =hidden!E1036 -> Berechne das Skalarprodukt v*w | G236: v*w= | J236: =hidden!H1036 ->  | P236: Glossar Skalarprodukt
A238: =hidden!C1038 -> b) | B238: =hidden!E1038 -> Bestimme irgendeinen Vektor z, der senkrecht zu v steht. | P238: (also orthogonal)
B239: =hidden!E1039 -> (und nicht der Nullvektor ist!)
G240: z= | J240: =hidden!H1040 -> Das ist bisher der Nullvektor. | P240: Glossar Orthogonalität
A242: =hidden!C1042 -> c) | B242: =hidden!E1042 -> Berechne k so, dass der Vektor u= | F242: =hidden!G1042 -> -13
F243: k
B244: =hidden!E1044 -> senkrecht zu v steht. | G244: k= | J244: =hidden!H1044 -> 
A246: =hidden!C1046 -> d) | B246: =hidden!E1046 -> Berechne den Winkel zwischen v und w | G246: (geht nicht ohne Taschenrechner)
B247: =hidden!E1047 -> auf eine Nachkommastelle genau. | G247: alpha= | I247: ° | J247: =hidden!H1047 ->  | P247: Glossar Winkel
A253: =hidden!E1052 -> Aufgabe 6 (Skalarprodukt und Winkel in 3D)
B255: =hidden!E1055 -> Gegeben sind die folgende Vektoren:
C256: =hidden!F1056 -> 2 | E256: =hidden!H1056 -> 11
B257: =hidden!E1057 -> v= | C257: =hidden!F1057 -> 4 | D257: =hidden!G1057 -> w= | E257: =hidden!H1057 -> -13
C258: =hidden!F1058 -> -3 | E258: =hidden!H1058 -> 6
A260: =hidden!C1060 -> a) | B260: =hidden!E1060 -> Berechne das Skalarprodukt v*w | G260: v*w= | J260: =hidden!H1060 ->  | P260: Glossar Skalarprodukt
A262: =hidden!C1062 -> b) | B262: =hidden!E1062 -> Bestimme irgendeinen Vektor z, der senkrecht zu v steht. | P262: (also orthogonal)
B263: =hidden!E1063 -> (und nicht der Nullvektor ist!)
G264: z= | J264: =hidden!H1064 -> Das ist bisher der Nullvektor. | P264: Glossar Orthogonalität
A266: =hidden!C1066 -> c) | B266: =hidden!E1066 -> Berechne k so, dass der Vektor | F266: =hidden!G1066 -> -6
E267: u= | F267: k
B268: =hidden!E1068 -> senkrecht zu v steht. | F268: =hidden!G1068 -> -1 | G268: k= | J268: =hidden!H1068 -> 
A270: =hidden!C1070 -> d) | B270: =hidden!E1070 -> Berechne den Winkel zwischen v und w | G270: (geht nicht ohne Taschenrechner)
B271: =hidden!E1071 -> auf eine Nachkommastelle genau. | G271: alpha= | I271: ° | J271: =hidden!H1071 ->  | P271: Glossar Winkel
P273: Glossar Winkel

Sheet FAQ
A3: Hilfe: Irgendwas klappt nicht!!
A4: Das kann sein: Erster Hauptsatz der Theoretischen Informatik: Jedes hinreichend komplexe Programm hat Bugs und irgendwas geht immer schief.
A5: Wenn Aufgaben gar nicht richtig dargestellt werden und komische Fehlermeldungen erscheinen:
A6: Am Besten bescheid sagen!
A7: Wenn die Aufgaben abgegeben werden müssen oder du dringend weiterarbeiten willst: Lass dich nicht aufhalten!
A8: Gib als Schüler*innen-Nummer eingfach z.B. die 40 ein und schau, ob das Probelm bei dem Aufgabensatz auch besteht.
A9: Wenn nicht kannst du ja ersatzweise den machen.
A11: ABER ICH KANN GAR NICHTS BEARBEITEN - MEINE EINTRÄGE WERDEN NICHT ANGENOMMEN!!!
A12: Hast du vielleicht die Excel-Datei in Teams geöffnet? Das klappt oft nicht. Lade sie auf dein Gerät herunter. Dann müsste alles gehen.
A13: TUT ES ABER NICHT!
A14: Dann Plan B: Unter | C14: www.mathebaustelle.de/excel/aufg_fuer_schueler_neu1.xlsm | H14: findest du die aktuelle Version, nur ohne deinen persönlichen Namen.
A15: Lad diese Version runter und löse die Aufgaben unter deiner Schüler*innen-Nummer.
A17: Ich geb eine Dezimalzahl mit Nachkommastellen ein und krieg nicht, was ich will!
A18: Möglicherweise hast du versehentlich die Zahl - z.B. 2,5 - versehentlich mit Punkt statt Komma eingegeben - also 2.5 (2Punkt5). Excel versteht es dann nicht.
A20: Ich geb einen Bruch ein und krieg nicht, was ich will!
A21: In Excel mus man bei der Eingabe eines Bruchs mit einem Gleichheitszeichen starten. Gib statt 1/4 ein: =1/4
A23: Ein DATUM?? Ich gebe eine Zahl in eine Antwortzelle ein, aber es erscheint immer ein Datum!
A24: Möglicherweise hast du die Zahl - z.B. 2,5 - versehentlich mit Punkt statt Komma eingegeben - also 2.5 (2Punkt5).
A25: Excel hält das dann für ein Datum. Aus irgendwelchen Gründen merkt sich Excel außerdem, dass das eine Zelle für Datumsangaben ist. Also kann man es nicht so einfach korrigieren.
A26: Erster Fix: Schreib das richtige Ergebnis einfach in eine andere leere Zelle - am besten direkt links oder rechts davon. Jetzt hast du schon mal mathematisch alles richtig und man kann das ja auch sehen.
A27: Wenn es dich stört, dass du kein "richtig" bekommst, mach Folgendes:
A28: Kopiere die neu eingetippte Lösungszelle über die "Datumszelle". Müsste klappen!
A29: ODER du formatierst die Zelle und legst das Format "Zahl" fest.
A31: Ich will eine Funktionsgleichung eingeben, bekomme aber eine Excel-Fehlermeldung!
A32: Fängt die Gleichung vielleicht mit einem Minus an? Excel will dann rechnen, du willst aber einen Text eingeben - das passt nicht.
A33: Möglicherweise ist durch einen Fehler die Zelle, in die einträgst nicht als Textzelle markiert.
A34: Du kannst das im Menü "Start" - "Format" - "Zellen formatieren" ändern.
A36: Ich hab die richtige Funktionsgleichung eingeben, das wird aber nicht erkannt (und durch ein "richtig" gewürdigt!)
A37: Tja, überprüf doch mal deine Eingabe auf Folgendes.
A38: Wenn du z.B. eingeben möchtest: | D38: x^2-0,5x
A39: darfst du NICHT eingeben: | D39: x²-0,5x | E39: Exponenten immer mit ^ schreiben!
A40: und auch nicht: | D40: 1x^2-0,5x | E40: vor x oder x^2 wird die "1" nicht geschrieben und von der "-1" nur das Minus!
A41: und auch nicht: | D41: x^2-0.5x | E41: Dezimatrennzeichen ist das Komme, nicht der Punkt
A42: und auch nicht: | D42: x^2 - 0,5x | E42: Hier sind Leerzeichen dazwischen - das ist "verboten".
A43: und auch nicht: | D43: x^2 - 0,5*x | E43: Hier ist ein Malzeichen dazwischen - das ist "verboten".
A44: und auch nicht: | D44: x^2 - 1/2x | E44: Keine Brüche.

Sheet Name-ID
A2: 0 | B2: Klasse
A3: 1 | B3: =C3 -> 0
A4: =A3+1 -> 2 | B4: =C4 -> 0
A5: =A4+1 -> 3 | B5: 0
A6: 4 | B6: 0
A7: 5 | B7: 0
A8: 6 | B8: 0
A9: 7 | B9: 0
A10: 8 | B10: 0
A11: 9 | B11: 0
A12: 10 | B12: 0
A13: 11 | B13: 0
A14: 12 | B14: 0
A15: 13 | B15: 0
A16: 14 | B16: 0
A17: 15 | B17: 0
A18: 16 | B18: 0
A19: 17 | B19: 0
A20: 18 | B20: 0
A21: 19 | B21: 0
A22: 20 | B22: 0
A23: 21 | B23: 0
A24: 22 | B24: 0
A25: 23 | B25: 0
A26: 24 | B26: 0
A27: 25 | B27: 0
A28: 26 | B28: 0
A29: 27 | B29: 0
A30: 28 | B30: 0
A31: 29 | B31: wer auch immer

Sheet hidden (hidden)
A1: =SUM(B:B) -> 0 | E1: Mit Ctrl-y kann man die Zufallswahlen festtackern und den back-End Bereich "hidden" verstecken. Es wird eine Schüler*innen-Datei abgespeichert, ohne das diese Datei "zerstört wird". | W1: Umsortierung | AB1: 2 | AC1: 6 | AD1: 7 | AE1: 8 | AF1: 9 | AG1: 10 | AH1: 10 | AI1: 11 | AJ1: 12 | AK1: 13 | AL1: 14 | AM1: 14 | AN1: 15 | AO1: 16 | AP1: 17 | AQ1: 18 | AR1: 19 | AS1: 20 | AT1: 21 | AU1: 22 | AV1: 22 | AW1: 23 | AX1: 23 | AY1: 24 | AZ1: 25 | BA1: 26 | BB1: 27 | BC1: 27 | BD1: 28 | BE1: 29 | BF1: 30 | BG1: 31 | BH1: 32 | BI1: 33 | BJ1: 34 | BK1: 35 | BL1: 36 | BM1: 37 | BN1: 37 | BO1: 38 | BP1: 39 | BQ1: 40 | BR1: 41 | BS1: 48 | BT1: 64 | BU1: 69 | BV1: 73 | BW1: 76 | BX1: 82 | BY1: 84
E2: Mit alt-F8 kann man Makros und vba-Programme aufrufen.
A3: 1 Lineare Funktionen
A4: 1 | B4: =IF(G4<>"",1,0) -> 0 | E4: ="Aufgabe "&A4 -> Aufgabe 1 | G4: =IF(Aufgaben!E31*N6+O6=P6,"korrekt!","") ->  | I4: 5 | CF4: Klasse | CH4: 12NP | CI4: MQE-Kurs | CJ4: 13NP | CK4: 11GT1 | CL4: Leute
C5: a | E5: =IF(N6<0," - ","")&IF(N6=0,"",IF(ABS(N6)=1," x ",ABS(N6)&" x "))&IF(O6>0,IF(O6<>0," + ",""),"")&IF(O6<0," - ","")&IF(O6=0,"",IF(ABS(O6)=1," 1 ",ABS(O6)&""))&" = "&P6 -> 5 x - 6 = 14 | P5: =HLOOKUP(ID,$AA$5:$CB$8,2) -> 4 | AA5: 0 | AB5: 41 | AC5: 1 | AD5: 2 | AE5: 3 | AF5: 4 | AG5: 5 | AH5: 48 | AI5: 6 | AJ5: 7 | AK5: 8 | AL5: 9 | AM5: 43 | AN5: 10 | AO5: 11 | AP5: 12 | AQ5: 13 | AR5: 14 | AS5: 15 | AT5: 16 | AU5: 17 | AV5: 39 | AW5: 18 | AX5: 50 | AY5: 19 | AZ5: 20 | BA5: 21 | BB5: 22 | BC5: 45 | BD5: 23 | BE5: 24 | BF5: 25 | BG5: 26 | BH5: 27 | BI5: 28 | BJ5: 29 | BK5: 30 | BL5: 31 | BM5: 32 | BN5: 47 | BO5: 33 | BP5: 34 | BQ5: 35 | BR5: 36 | BS5: 46 | BT5: 42 | BU5: 38 | BV5: 44 | BW5: 37 | BX5: 40 | BY5: 49 | BZ5: 51 | CA5: 52 | CB5: 53 | CC5: 54 | CD5: 55 | CE5: 56 | CF5: Schüler*in 1 | CH5: Junaid | CI5: Andreas | CJ5: Sami | CK5: Lena | CL5: Peter
N6: =HLOOKUP(ID,$AA$5:$CB$8,3) -> 5 | O6: =HLOOKUP(ID,$AA$5:$CB$8,4) -> -6 | P6: =N6*P5+O6 -> 14 | AA6: 4 | AB6: -5 | AC6: -10 | AD6: 5 | AE6: -9 | AF6: -10 | AG6: 8 | AH6: 4 | AI6: -5 | AJ6: -4 | AK6: 2 | AL6: 12 | AM6: 6 | AN6: 1 | AO6: -12 | AP6: 2 | AQ6: 8 | AR6: -12 | AS6: 9 | AT6: 8 | AU6: 10 | AV6: -11 | AW6: -2 | AX6: -10 | AY6: -1 | AZ6: -3 | BA6: 6 | BB6: 6 | BC6: 9 | BD6: -7 | BE6: 5 | BF6: 5 | BG6: -6 | BH6: -1 | BI6: -2 | BJ6: -12 | BK6: 2 | BL6: -10 | BM6: -12 | BN6: -3 | BO6: -7 | BP6: -9 | BQ6: 7 | BR6: -8 | BS6: 12 | BT6: -11 | BU6: 11 | BV6: 10 | BW6: 2 | BX6: 9 | BY6: -10 | BZ6: -11 | CA6: 5 | CB6: -6 | CC6: =RANDBETWEEN(1,12)*(-1)^RANDBETWEEN(1,2) -> 10 | CD6: =RANDBETWEEN(1,12)*(-1)^RANDBETWEEN(1,2) -> -6 | CE6: =RANDBETWEEN(1,12)*(-1)^RANDBETWEEN(1,2) -> 7 | CF6: ="Schüler*in "&CE6 -> Schüler*in 7 | CH6: Jasmin | CI6: Georgios | CJ6: Can | CK6: Lara | CL6: Gwen
C7: UNFERTIG | AA7: 5 | AB7: 1 | AC7: 4 | AD7: 5 | AE7: 6 | AF7: 2 | AG7: 4 | AH7: -6 | AI7: -4 | AJ7: -3 | AK7: 6 | AL7: 1 | AM7: 2 | AN7: -1 | AO7: 5 | AP7: -4 | AQ7: 5 | AR7: 3 | AS7: 5 | AT7: -3 | AU7: -2 | AV7: 6 | AW7: -2 | AX7: 3 | AY7: 3 | AZ7: -4 | BA7: 1 | BB7: -3 | BC7: 1 | BD7: 3 | BE7: 1 | BF7: 5 | BG7: -2 | BH7: 3 | BI7: -4 | BJ7: 1 | BK7: 3 | BL7: 5 | BM7: -3 | BN7: 2 | BO7: -4 | BP7: -6 | BQ7: -5 | BR7: -3 | BS7: 4 | BT7: 3 | BU7: 1 | BV7: 3 | BW7: -4 | BX7: 6 | BY7: -4 | BZ7: -3 | CA7: -1 | CB7: 5 | CC7: =RANDBETWEEN(1,6)*(-1)^RANDBETWEEN(1,2) -> 6 | CD7: =RANDBETWEEN(1,6)*(-1)^RANDBETWEEN(1,2) -> 5 | CE7: =RANDBETWEEN(1,6)*(-1)^RANDBETWEEN(1,2) -> 3 | CF7: ="Schüler*in "&CE7 -> Schüler*in 3 | CH7: Jonathan | CI7: Monika | CJ7: Marvin | CK7: Mia | CL7: M.J.
C8: b | E8: =IF(N9<0," - ","")&IF(N9=0,"",IF(ABS(N9)=1," x ",ABS(N9)&" x "))&IF(O9>0,IF(O9<>0," + ",""),"")&IF(O9<0," - ","")&IF(O9=0,"",IF(ABS(O9)=1," 1 ",ABS(O9)&""))&" = "&IF(P9<0," - ","")&IF(P9=0,"",IF(ABS(P9)=1," x ",ABS(P9)&" x "))&IF(Q9>0,IF(Q9<>0," + ",""),"")&IF(Q9<0," - ","")&IF(Q9=0,"",IF(ABS(Q9)=1," 1 ",ABS(Q9)&"")) -> 9 x - 4 = 32 x + 12 | P8: =HLOOKUP(ID,$AA$5:$CB$8,2) -> 4 | AA8: -6 | AB8: -3 | AC8: -3 | AD8: 7 | AE8: -11 | AF8: 9 | AG8: -12 | AH8: 12 | AI8: -6 | AJ8: -11 | AK8: -2 | AL8: 6 | AM8: 4 | AN8: 9 | AO8: -11 | AP8: -4 | AQ8: -1 | AR8: 10 | AS8: -8 | AT8: 9 | AU8: -5 | AV8: -11 | AW8: -12 | AX8: -1 | AY8: 10 | AZ8: -8 | BA8: 6 | BB8: -8 | BC8: 11 | BD8: -12 | BE8: 10 | BF8: -12 | BG8: -1 | BH8: -5 | BI8: -11 | BJ8: 11 | BK8: -5 | BL8: 1 | BM8: 8 | BN8: 10 | BO8: -2 | BP8: 1 | BQ8: 7 | BR8: 5 | BS8: 5 | BT8: 3 | BU8: 5 | BV8: -4 | BW8: -12 | BX8: 8 | BY8: -11 | BZ8: -6 | CA8: -9 | CB8: 3 | CC8: =RANDBETWEEN(1,12)*(-1)^RANDBETWEEN(1,2) -> 5 | CD8: =RANDBETWEEN(1,12)*(-1)^RANDBETWEEN(1,2) -> -3 | CE8: =RANDBETWEEN(1,12)*(-1)^RANDBETWEEN(1,2) -> 11 | CF8: Schüler*in 11 | CH8: Theo | CI8: Baykal | CJ8: Louis | CK8: Franzi | CL8: Harry
N9: =HLOOKUP(ID,$AA$14:$CB$20,3) -> 9 | O9: =HLOOKUP(ID,$AA$14:$CB$20,4) -> -4 | P9: =N9*P8+O9 -> 32 | Q9: 12 | AA9: 0 | AB9: 1 | AC9: 2 | AD9: 3 | AE9: 4 | AF9: 5 | AG9: 6 | AH9: 7 | AI9: 8 | AJ9: 9 | AK9: 10 | AL9: 11 | AM9: 12 | AN9: 13 | AO9: 14 | AP9: 15 | AQ9: 16 | AR9: 17 | AS9: 18 | AT9: 19 | AU9: 20 | AV9: 21 | AW9: 22 | AX9: 23 | AY9: 24 | AZ9: 25 | BA9: 26 | BB9: 27 | BC9: 28 | BD9: 29 | BE9: 30 | BF9: 31 | BG9: 32 | BH9: 33 | BI9: 34 | BJ9: 35 | BK9: 36 | BL9: 37 | BM9: 38 | BN9: 39 | BO9: 40 | BP9: 41 | BQ9: 42 | BR9: 43 | BS9: 44 | BT9: 45 | BU9: 46 | BV9: 47 | BW9: 48 | BX9: 49 | BY9: 50 | BZ9: 51 | CA9: 52 | CB9: 53 | CC9: =CB9+1 -> 54 | CD9: =CC9+1 -> 55 | CE9: =CD9+1 -> 56 | CF9: Schüler*in 56 | CH9: Shirine | CI9: Nevzat | CJ9: Bilal | CK9: Anika | CL9: Miles
AA10: -5 | AB10: -4 | AC10: 0 | AD10: 2 | AE10: -12 | AF10: 0 | AG10: -4 | AH10: 3 | AI10: 4 | AJ10: 9 | AK10: -3 | AL10: 4 | AM10: -10 | AN10: 6 | AO10: -6 | AP10: 4 | AQ10: 6 | AR10: 9 | AS10: -7 | AT10: 5 | AU10: -12 | AV10: 16 | AW10: -6 | AX10: 5 | AY10: 8 | AZ10: 1 | BA10: -6 | BB10: 7 | BC10: 1 | BD10: -8 | BE10: -15 | BF10: -5 | BG10: -1 | BH10: 9 | BI10: 5 | BJ10: -10 | BK10: 6 | BL10: 17 | BM10: 3 | BN10: 5 | BO10: 15 | BP10: 12 | BQ10: 6 | BR10: 16 | BS10: 7 | BT10: -7 | BU10: -9 | BV10: 16 | BW10: -8 | BX10: 4 | BY10: 11 | BZ10: -14 | CA10: -8 | CB10: 1 | CC10: =RANDBETWEEN(1,6)*(-1)^RANDBETWEEN(1,2)+CC11 -> -9 | CD10: =RANDBETWEEN(1,6)*(-1)^RANDBETWEEN(1,2)+CD11 -> 13 | CE10: =RANDBETWEEN(1,6)*(-1)^RANDBETWEEN(1,2)+CE11 -> 5 | CF10: Schüler*in 5 | CH10: Finn | CI10: Thomas | CJ10: Joshua | CK10: Mika | CL10: Rio
AA11: -4 | AB11: -1 | AC11: 2 | AD11: -4 | AE11: -10 | AF11: -2 | AG11: -3 | AH11: -1 | AI11: 8 | AJ11: 5 | AK11: -2 | AL11: 2 | AM11: -9 | AN11: 10 | AO11: -10 | AP11: -1 | AQ11: 12 | AR11: 10 | AS11: -12 | AT11: 7 | AU11: -6 | AV11: 11 | AW11: -8 | AX11: 2 | AY11: 11 | AZ11: 6 | BA11: -10 | BB11: 6 | BC11: 3 | BD11: -6 | BE11: -10 | BF11: 1 | BG11: -4 | BH11: 10 | BI11: 9 | BJ11: -8 | BK11: 2 | BL11: 11 | BM11: 1 | BN11: 9 | BO11: 10 | BP11: 6 | BQ11: 10 | BR11: 12 | BS11: 1 | BT11: -3 | BU11: -3 | BV11: 11 | BW11: -7 | BX11: 6 | BY11: 5 | BZ11: -10 | CA11: -4 | CB11: -1 | CC11: =RANDBETWEEN(1,12)*(-1)^RANDBETWEEN(1,2) -> -3 | CD11: =RANDBETWEEN(1,12)*(-1)^RANDBETWEEN(1,2) -> 9 | CE11: =RANDBETWEEN(1,12)*(-1)^RANDBETWEEN(1,2) -> 8 | CF11: Schüler*in 8 | CH11: Kris | CI11: Jan | CJ11: Erik | CK11: Juna | CL11: Ganke
AA12: 3 | AB12: 6 | AC12: -3 | AD12: -5 | AE12: 1 | AF12: -3 | AG12: 3 | AH12: -4 | AI12: 6 | AJ12: -3 | AK12: 2 | AL12: -3 | AM12: 3 | AN12: 6 | AO12: 3 | AP12: -5 | AQ12: -4 | AR12: 2 | AS12: 3 | AT12: -4 | AU12: 6 | AV12: 3 | AW12: 2 | AX12: 2 | AY12: 1 | AZ12: 4 | BA12: 2 | BB12: 2 | BC12: -1 | BD12: -2 | BE12: 2 | BF12: 5 | BG12: 5 | BH12: 5 | BI12: 1 | BJ12: 3 | BK12: -1 | BL12: -3 | BM12: 5 | BN12: -4 | BO12: 3 | BP12: -4 | BQ12: 3 | BR12: -2 | BS12: -6 | BT12: 5 | BU12: 3 | BV12: -4 | BW12: -3 | BX12: 3 | BY12: 1 | BZ12: 1 | CA12: -2 | CB12: 1 | CC12: =RANDBETWEEN(1,6)*(-1)^RANDBETWEEN(1,2) -> 6 | CD12: =RANDBETWEEN(1,6)*(-1)^RANDBETWEEN(1,2) -> 1 | CE12: =RANDBETWEEN(1,6)*(-1)^RANDBETWEEN(1,2) -> 2 | CF12: Schüler*in 2 | CH12: Yessine | CI12: Birthe | CJ12: Lars | CK12: Rabea | CL12: Hailey
A13: 2 | E13: ="Aufgabe "&A13 -> Aufgabe 2 | AA13: 9 | AB13: -2 | AC13: -12 | AD13: -10 | AE13: 1 | AF13: -4 | AG13: -9 | AH13: -2 | AI13: 1 | AJ13: 3 | AK13: -6 | AL13: -11 | AM13: 10 | AN13: 2 | AO13: -3 | AP13: 6 | AQ13: -1 | AR13: -4 | AS13: 5 | AT13: -11 | AU13: 9 | AV13: 12 | AW13: -9 | AX13: -6 | AY13: 4 | AZ13: 11 | BA13: -2 | BB13: 8 | BC13: -4 | BD13: -4 | BE13: 9 | BF13: -5 | BG13: -2 | BH13: -1 | BI13: -4 | BJ13: 4 | BK13: 12 | BL13: -7 | BM13: 5 | BN13: 4 | BO13: -1 | BP13: 5 | BQ13: -5 | BR13: 9 | BS13: 7 | BT13: -1 | BU13: -12 | BV13: 12 | BW13: -2 | BX13: -8 | BY13: -12 | BZ13: -2 | CA13: 3 | CB13: 5 | CC13: =RANDBETWEEN(1,12)*(-1)^RANDBETWEEN(1,2) -> -1 | CD13: =RANDBETWEEN(1,12)*(-1)^RANDBETWEEN(1,2) -> -9 | CE13: =RANDBETWEEN(1,12)*(-1)^RANDBETWEEN(1,2) -> 9 | CF13: Schüler*in 9 | CH13: Colin | CI13: Andre | CJ13: Gianluca | CK13: Lisbeth | CL13: Brian Michael
E14: ="Gegeben ist g mit g(x) = "&IF(N14<0," - ","")&IF(N14=0,"",IF(ABS(N14)=1," x ",ABS(N14)&" x "))&IF(O14>0,IF(O14<>0," + ",""),"")&IF(O14<0," - ","")&IF(O14=0,"",IF(ABS(O14)=1," 1 ",ABS(O14)&"")) -> Gegeben ist g mit g(x) = 3 x + 9 | L14: =HLOOKUP(ID,$AA$9:$CB$13,2) -> -5 | N14: =HLOOKUP(ID,$AA$9:$CB$13,4) -> 3 | O14: =HLOOKUP(ID,$AA$9:$CB$13,5) -> 9 | P14: =N14*L14+O14 -> -6 | AA14: 0 | AB14: 41 | AC14: 1 | AD14: 2 | AE14: 3 | AF14: 4 | AG14: 5 | AH14: 48 | AI14: 6 | AJ14: 7 | AK14: 8 | AL14: 9 | AM14: 43 | AN14: 10 | AO14: 11 | AP14: 12 | AQ14: 13 | AR14: 14 | AS14: 15 | AT14: 16 | AU14: 17 | AV14: 39 | AW14: 18 | AX14: 50 | AY14: 19 | AZ14: 20 | BA14: 21 | BB14: 22 | BC14: 45 | BD14: 23 | BE14: 24 | BF14: 25 | BG14: 26 | BH14: 27 | BI14: 28 | BJ14: 29 | BK14: 30 | BL14: 31 | BM14: 32 | BN14: 47 | BO14: 33 | BP14: 34 | BQ14: 35 | BR14: 36 | BS14: 46 | BT14: 42 | BU14: 38 | BV14: 44 | BW14: 37 | BX14: 40 | BY14: 49 | BZ14: 51 | CA14: 52 | CB14: 53 | CC14: 54 | CD14: 55 | CE14: 56 | CF14: ="Schüler*in "&CE15 -> Schüler*in 4 | CH14: Enno | CI14: Michaela | CJ14: Marvin | CK14: Jessie | CL14: Steve
E15: =IF(N14<0," - ","")&IF(N14=0,"",IF(ABS(N14)=1," x ",ABS(N14)&" x "))&IF(O14>0,IF(O14<>0," + ",""),"")&IF(O14<0," - ","")&IF(O14=0,"",IF(ABS(O14)=1," 1 ",ABS(O14)&"")) -> 3 x + 9 | L15: =HLOOKUP(ID,$AA$9:$CB$13,3) -> -4 | N15: =HLOOKUP(ID,$AA$9:$CB$13,4) -> 3 | O15: =HLOOKUP(ID,$AA$9:$CB$13,5) -> 9 | P15: =N15*L15+O15 -> -3 | AA15: 6 | AB15: 4 | AC15: 6 | AD15: -2 | AE15: -6 | AF15: -2 | AG15: 5 | AH15: 1 | AI15: -2 | AJ15: 1 | AK15: -1 | AL15: -6 | AM15: 5 | AN15: 5 | AO15: -2 | AP15: -6 | AQ15: 3 | AR15: -2 | AS15: -1 | AT15: -3 | AU15: -2 | AV15: 4 | AW15: 4 | AX15: 5 | AY15: -3 | AZ15: 1 | BA15: -4 | BB15: -6 | BC15: 6 | BD15: 3 | BE15: 2 | BF15: 1 | BG15: 4 | BH15: 2 | BI15: 4 | BJ15: 1 | BK15: 1 | BL15: 1 | BM15: 5 | BN15: -5 | BO15: -6 | BP15: -1 | BQ15: -4 | BR15: 5 | BS15: -4 | BT15: -1 | BU15: -2 | BV15: -4 | BW15: -2 | BX15: -4 | BY15: -4 | BZ15: 1 | CA15: -6 | CB15: 1 | CC15: =RANDBETWEEN(1,6)*(-1)^RANDBETWEEN(1,2) -> -2 | CD15: =RANDBETWEEN(1,6)*(-1)^RANDBETWEEN(1,2) -> 5 | CE15: =RANDBETWEEN(1,6)*(-1)^RANDBETWEEN(1,2) -> 4 | CF15: ="Schüler*in "&CE16 -> Schüler*in 9 | CH15: Artur | CI15: Nadine | CJ15: Stephanie | CK15: Ilvy | CL15: Roy
B16: =IF(G16<>"",1,0) -> 0 | C16: a | E16: Gib den y-Achsenabschnitt von g an: | G16: =IF((Aufgaben!E36-O14)=0,"korrekt!","") ->  | AA16: 9 | AB16: 5 | AC16: 9 | AD16: 2 | AE16: -5 | AF16: 2 | AG16: 6 | AH16: 3 | AI16: 2 | AJ16: 3 | AK16: 0 | AL16: 0 | AM16: 8 | AN16: 7 | AO16: 4 | AP16: -3 | AQ16: 8 | AR16: 0 | AS16: 2 | AT16: 0 | AU16: 0 | AV16: 7 | AW16: 5 | AX16: 7 | AY16: 2 | AZ16: 7 | BA16: -1 | BB16: -3 | BC16: 11 | BD16: 4 | BE16: 6 | BF16: 5 | BG16: 5 | BH16: 8 | BI16: 5 | BJ16: 4 | BK16: 4 | BL16: 6 | BM16: 11 | BN16: -2 | BO16: 0 | BP16: 5 | BQ16: -3 | BR16: 6 | BS16: 2 | BT16: 4 | BU16: 0 | BV16: -1 | BW16: 1 | BX16: 2 | BY16: -3 | BZ16: 2 | CA16: -4 | CB16: 5 | CC16: =CC15+CC19 -> -1 | CD16: =CD15+CD19 -> 10 | CE16: =CE15+CE19 -> 9 | CF16: ="Schüler*in "&CE17 -> Schüler*in -7 | CK16: Hanna
B17: =IF(G17<>"",1,0) -> 0 | C17: b | E17: Gib die Steigung von g an: | G17: =IF((Aufgaben!E37-N14)=0,"korrekt!","") ->  | AA17: -4 | AB17: 11 | AC17: 12 | AD17: 8 | AE17: -1 | AF17: -5 | AG17: -3 | AH17: -2 | AI17: -10 | AJ17: -2 | AK17: 11 | AL17: 6 | AM17: -2 | AN17: 11 | AO17: -9 | AP17: 10 | AQ17: -6 | AR17: 6 | AS17: 11 | AT17: 2 | AU17: -3 | AV17: 6 | AW17: -3 | AX17: 2 | AY17: 11 | AZ17: 2 | BA17: 5 | BB17: 1 | BC17: 4 | BD17: -6 | BE17: 5 | BF17: 4 | BG17: -4 | BH17: 10 | BI17: 3 | BJ17: -9 | BK17: 1 | BL17: 4 | BM17: -2 | BN17: 11 | BO17: -9 | BP17: 1 | BQ17: -6 | BR17: -8 | BS17: -5 | BT17: -5 | BU17: 3 | BV17: -6 | BW17: -11 | BX17: -4 | BY17: -12 | BZ17: 2 | CA17: 7 | CB17: 8 | CC17: =RANDBETWEEN(1,12)*(-1)^RANDBETWEEN(1,2) -> -6 | CD17: =RANDBETWEEN(1,12)*(-1)^RANDBETWEEN(1,2) -> -5 | CE17: =RANDBETWEEN(1,12)*(-1)^RANDBETWEEN(1,2) -> -7 | CF17: Schüler*in -11 | CK17: Merle
B18: =IF(G18<>"",1,0) -> 0 | C18: c | E18: ="Welchen Wert nimmt g an der Stelle "&L14&" an?" -> Welchen Wert nimmt g an der Stelle -5 an? | G18: =IF(Aufgaben!E38=N14*L14+O14,"korrekt!","") ->  | AA18: 2 | AB18: -7 | AC18: -4 | AD18: -10 | AE18: -2 | AF18: 11 | AG18: -1 | AH18: 6 | AI18: 3 | AJ18: -10 | AK18: 1 | AL18: -8 | AM18: 6 | AN18: -6 | AO18: 10 | AP18: 7 | AQ18: 2 | AR18: -10 | AS18: -6 | AT18: -4 | AU18: 8 | AV18: -1 | AW18: -11 | AX18: 5 | AY18: 4 | AZ18: -4 | BA18: 6 | BB18: -9 | BC18: -1 | BD18: 6 | BE18: -7 | BF18: -3 | BG18: 5 | BH18: -6 | BI18: 4 | BJ18: 11 | BK18: 6 | BL18: -1 | BM18: -8 | BN18: 7 | BO18: -3 | BP18: 2 | BQ18: 5 | BR18: 8 | BS18: -5 | BT18: 6 | BU18: 3 | BV18: 7 | BW18: 11 | BX18: 12 | BY18: -2 | BZ18: 12 | CA18: -11 | CB18: -2 | CC18: =RANDBETWEEN(1,12)*(-1)^RANDBETWEEN(1,2) -> -6 | CD18: -6 | CE18: -11 | CF18: Schüler*in 5 | CK18: Jelita
B19: =IF(G19<>"",1,0) -> 0 | C19: d | E19: ="An welcher Stelle nimmt g den Wert "&P15&" an?" -> An welcher Stelle nimmt g den Wert -3 an? | G19: =IF((Aufgaben!E39-L15)=0,"korrekt!","") ->  | AA19: 3 | AB19: 1 | AC19: 3 | AD19: 4 | AE19: 1 | AF19: 4 | AG19: 1 | AH19: 2 | AI19: 4 | AJ19: 2 | AK19: 1 | AL19: 6 | AM19: 3 | AN19: 2 | AO19: 6 | AP19: 3 | AQ19: 5 | AR19: 2 | AS19: 3 | AT19: 3 | AU19: 2 | AV19: 3 | AW19: 1 | AX19: 2 | AY19: 5 | AZ19: 6 | BA19: 3 | BB19: 3 | BC19: 5 | BD19: 1 | BE19: 4 | BF19: 4 | BG19: 1 | BH19: 6 | BI19: 1 | BJ19: 3 | BK19: 3 | BL19: 5 | BM19: 6 | BN19: 3 | BO19: 6 | BP19: 6 | BQ19: 1 | BR19: 1 | BS19: 6 | BT19: 5 | BU19: 2 | BV19: 3 | BW19: 3 | BX19: 6 | BY19: 1 | BZ19: 1 | CA19: 2 | CB19: 4 | CC19: =RANDBETWEEN(1,6) -> 1 | CD19: =RANDBETWEEN(1,6) -> 5 | CE19: =RANDBETWEEN(1,6) -> 5 | CF19: Schüler*in | CK19: Oskar
CF20: Schüler*in | CH20: Alek | CI20: Franz-Peter | CJ20: Lasse | CK20: Carolin | CL20: Sue
CF21: Schüler*in | CH21: Marion | CI21: Susanne | CJ21: Ferdinand | CK21: Nico | CL21: Kamala
CF22: Schüler*in | CH22: Salmane | CI22: Andreas | CJ22: Orlando | CK22: Anna | CL22: Natasha
A23: 3 | E23: ="Aufgabe "&A23 -> Aufgabe 3 | AA23: 0 | AB23: 41 | AC23: 1 | AD23: 2 | AE23: 3 | AF23: 4 | AG23: 5 | AH23: 48 | AI23: 6 | AJ23: 7 | AK23: 8 | AL23: 9 | AM23: 43 | AN23: 10 | AO23: 11 | AP23: 12 | AQ23: 13 | AR23: 14 | AS23: 15 | AT23: 16 | AU23: 17 | AV23: 39 | AW23: 18 | AX23: 50 | AY23: 19 | AZ23: 20 | BA23: 21 | BB23: 22 | BC23: 45 | BD23: 23 | BE23: 24 | BF23: 25 | BG23: 26 | BH23: 27 | BI23: 28 | BJ23: 29 | BK23: 30 | BL23: 31 | BM23: 32 | BN23: 47 | BO23: 33 | BP23: 34 | BQ23: 35 | BR23: 36 | BS23: 46 | BT23: 42 | BU23: 38 | BV23: 44 | BW23: 37 | BX23: 40 | BY23: 49 | BZ23: 51 | CA23: 52 | CB23: 53 | CC23: 54 | CD23: 55 | CE23: 56 | CF23: Schüler*in 56 | CH23: Lea | CI23: Sandra | CJ23: Robert | CK23: Laura | CL23: Clint
B24: =IF(G24<>"",1,0) -> 0 | E24: Gerade | F24: m | G24: =IF(ISBLANK(Aufgaben!E46),"",IF((Aufgaben!E46-N24)=0,"korrekt!","")) ->  | L24: =HLOOKUP(ID,$AA$23:$CB$27,2) -> -4 | N24: =HLOOKUP(ID,$AA$23:$CB$27,4) -> -2 | O24: =HLOOKUP(ID,$AA$23:$CB$27,5) -> 9 | P24: =N24*L24+O24 -> 17 | R24: =IF(N24<0,"-","")&IF(N24=0,"",IF(ABS(N24)=1,"x",ABS(N24)&"x"))&IF(O24>0,IF(O24<>0,"+",""),"")&IF(O24<0,"-","")&IF(O24=0,"",IF(ABS(O24)=1,"1",ABS(O24)&"")) -> -2x+9 | AA24: -4 | AB24: 10 | AC24: -10 | AD24: 5 | AE24: -1 | AF24: -1 | AG24: 3 | AH24: 8 | AI24: -5 | AJ24: 4 | AK24: -4 | AL24: 9 | AM24: -3 | AN24: -12 | AO24: 8 | AP24: 8 | AQ24: 11 | AR24: 14 | AS24: -6 | AT24: 5 | AU24: 0 | AV24: 5 | AW24: 1 | AX24: -6 | AY24: 0 | AZ24: -10 | BA24: -8 | BB24: 3 | BC24: 3 | BD24: -8 | BE24: 1 | BF24: -6 | BG24: 7 | BH24: -1 | BI24: -9 | BJ24: -1 | BK24: 12 | BL24: -14 | BM24: -10 | BN24: 16 | BO24: -1 | BP24: -8 | BQ24: -2 | BR24: 11 | BS24: -4 | BT24: 14 | BU24: -2 | BV24: 9 | BW24: -5 | BX24: -4 | BY24: -13 | BZ24: -13 | CA24: -2 | CB24: -5 | CC24: =RANDBETWEEN(1,6)*(-1)^RANDBETWEEN(1,2)+CC25 -> -1 | CD24: =RANDBETWEEN(1,6)*(-1)^RANDBETWEEN(1,2)+CD25 -> 8 | CE24: =RANDBETWEEN(1,6)*(-1)^RANDBETWEEN(1,2)+CE25 -> 14 | CF24: Schüler*in 14 | CH24: Aaron | CI24: Olaf | CJ24: Ronja | CK24: Viktoria | CL24: Carol
B25: =IF(G25<>"",1,0) -> 0 | E25: ="die durch die Punkte ("&L24&"|"&P24&") und ("&L25&"|"&P25&") geht." -> die durch die Punkte (-4|17) und (1|7) geht. | F25: b | G25: =IF(ISBLANK(Aufgaben!E47),"",IF((Aufgaben!E47-O24)=0,"korrekt!","")) ->  | L25: =HLOOKUP(ID,$AA$23:$CB$27,3) -> 1 | N25: =N24 -> -2 | O25: =O24 -> 9 | P25: =N25*L25+O25 -> 7 | AA25: 1 | AB25: 11 | AC25: -5 | AD25: 7 | AE25: -4 | AF25: -7 | AG25: -2 | AH25: 12 | AI25: -10 | AJ25: 5 | AK25: -7 | AL25: 8 | AM25: -9 | AN25: -7 | AO25: 12 | AP25: 7 | AQ25: 7 | AR25: 12 | AS25: -11 | AT25: 9 | AU25: 5 | AV25: 3 | AW25: -3 | AX25: -1 | AY25: 4 | AZ25: -5 | BA25: -10 | BB25: 9 | BC25: 1 | BD25: -9 | BE25: -1 | BF25: -2 | BG25: 6 | BH25: 4 | BI25: -11 | BJ25: -7 | BK25: 9 | BL25: -8 | BM25: -6 | BN25: 11 | BO25: -5 | BP25: -12 | BQ25: -6 | BR25: 12 | BS25: -2 | BT25: 12 | BU25: -6 | BV25: 4 | BW25: -11 | BX25: -3 | BY25: -12 | BZ25: -7 | CA25: -4 | CB25: -11 | CC25: =RANDBETWEEN(1,12)*(-1)^RANDBETWEEN(1,2) -> -7 | CD25: =RANDBETWEEN(1,12)*(-1)^RANDBETWEEN(1,2) -> 5 | CE25: =RANDBETWEEN(1,12)*(-1)^RANDBETWEEN(1,2) -> 12 | CF25: Schüler*in 12 | CH25: Maximilian | CI25: Julia | CJ25: Henry | CK25: Kornelia | CL25: Wanda
B26: =IF(G26<>"",1,0) -> 0 | E26: ="("&L24&"|"&P24&") und ("&L25&"|"&P25&")" -> (-4|17) und (1|7) | F26: g(x) | G26: =IF((Aufgaben!B49="g(x)="&R24),"korrekt!","")&IF((Aufgaben!B49=R24),"Schreib davor:g(x)=","") ->  | AA26: -2 | AB26: 1 | AC26: 1 | AD26: -6 | AE26: 3 | AF26: -5 | AG26: 5 | AH26: 2 | AI26: 2 | AJ26: 1 | AK26: 3 | AL26: 4 | AM26: 5 | AN26: 2 | AO26: 3 | AP26: -5 | AQ26: -3 | AR26: 2 | AS26: 4 | AT26: -6 | AU26: 2 | AV26: 4 | AW26: -4 | AX26: -4 | AY26: 4 | AZ26: 3 | BA26: -3 | BB26: -3 | BC26: -2 | BD26: -5 | BE26: -1 | BF26: 3 | BG26: 1 | BH26: 5 | BI26: 3 | BJ26: -1 | BK26: 2 | BL26: 1 | BM26: -2 | BN26: -4 | BO26: -6 | BP26: -2 | BQ26: -3 | BR26: -5 | BS26: 6 | BT26: -5 | BU26: 1 | BV26: 2 | BW26: 1 | BX26: 2 | BY26: 2 | BZ26: 4 | CA26: 3 | CB26: 5 | CC26: =RANDBETWEEN(1,6)*(-1)^RANDBETWEEN(1,2) -> -3 | CD26: =RANDBETWEEN(1,6)*(-1)^RANDBETWEEN(1,2) -> 6 | CE26: =RANDBETWEEN(1,6)*(-1)^RANDBETWEEN(1,2) -> -1 | CF26: Schüler*in -1 | CH26: Ewelina | CI26: Kamilla | CJ26: Ben | CK26: Antonina=Ann | CL26: Scott
AA27: 9 | AB27: 1 | AC27: 5 | AD27: -6 | AE27: 11 | AF27: 8 | AG27: -9 | AH27: -7 | AI27: -7 | AJ27: 7 | AK27: -9 | AL27: -12 | AM27: -5 | AN27: 11 | AO27: -8 | AP27: -2 | AQ27: 10 | AR27: -11 | AS27: -4 | AT27: 10 | AU27: 10 | AV27: -1 | AW27: -10 | AX27: 11 | AY27: 11 | AZ27: 7 | BA27: -10 | BB27: 12 | BC27: -10 | BD27: -11 | BE27: -11 | BF27: -2 | BG27: 4 | BH27: -7 | BI27: -10 | BJ27: 8 | BK27: 12 | BL27: -11 | BM27: -6 | BN27: 4 | BO27: -8 | BP27: 4 | BQ27: -11 | BR27: -1 | BS27: -7 | BT27: -11 | BU27: -8 | BV27: 11 | BW27: 2 | BX27: 6 | BY27: 10 | BZ27: -6 | CA27: -11 | CB27: -6 | CC27: =RANDBETWEEN(1,12)*(-1)^RANDBETWEEN(1,2) -> 2 | CD27: =RANDBETWEEN(1,12)*(-1)^RANDBETWEEN(1,2) -> 3 | CE27: =RANDBETWEEN(1,12)*(-1)^RANDBETWEEN(1,2) -> 8 | CF27: Schüler*in 8 | CH27: Laurin | CI27: Karla | CJ27: wer auch immer | CK27: Alina | CL27: T-Challa
A28: 2 Quadratische Gleichungen | CF28: Schüler*in | CH28: Jan | CI28: Jan | CK28: Paula | CL28: Mantis
CF29: ="Schüler*in "&CE30 -> Schüler*in | CH29: Nabil | CI29: Corina | CK29: Mira | CL29: wer auch immer
A30: 1 | E30: ="Aufgabe "&A30 -> Aufgabe 1 | CF30: Schüler*in 56 | CH30: Fabienne | CI30: Sinan | CK30: wer auch immer
AA31: 0 | AB31: 41 | AC31: 1 | AD31: 2 | AE31: 3 | AF31: 4 | AG31: 5 | AH31: 48 | AI31: 6 | AJ31: 7 | AK31: 8 | AL31: 9 | AM31: 43 | AN31: 10 | AO31: 11 | AP31: 12 | AQ31: 13 | AR31: 14 | AS31: 15 | AT31: 16 | AU31: 17 | AV31: 39 | AW31: 18 | AX31: 50 | AY31: 19 | AZ31: 20 | BA31: 21 | BB31: 22 | BC31: 45 | BD31: 23 | BE31: 24 | BF31: 25 | BG31: 26 | BH31: 27 | BI31: 28 | BJ31: 29 | BK31: 30 | BL31: 31 | BM31: 32 | BN31: 47 | BO31: 33 | BP31: 34 | BQ31: 35 | BR31: 36 | BS31: 46 | BT31: 42 | BU31: 38 | BV31: 44 | BW31: 37 | BX31: 40 | BY31: 49 | BZ31: 51 | CA31: 52 | CB31: 53 | CC31: 54 | CD31: 55 | CE31: 56 | CF31: Schüler*in -1,1 | CH31: wer auch immer | CI31: wer auch immer | CK31: wer auch immer
B32: =IF(G32<>"",1,0) -> 0 | E32: =M32&" (x"&IF(-N32>0,IF(-N32<>0," + ",""),"")&IF(-N32<0," - ","")&IF(-N32=0,"",IF(ABS(-N32)=1," 1 ",ABS(N32))&"")&")(x"&IF(-O32>0,IF(-O32<>0," + ",""),"")&IF(-O32<0," - ","")&IF(-O32=0,"",IF(ABS(-O32)=1," 1 ",ABS(O32))&")=0") -> -1,2 (x - 1 )(x - 6)=0 | F32: x1 | G32: =IF(Aufgaben!E54="","",IF(Aufgaben!E54=N32,"korrekt!","")) ->  | M32: =HLOOKUP(ID,$AA$31:$CB$35,2) -> -1.2 | N32: =HLOOKUP(ID,$AA$31:$CB$35,3) -> 1 | O32: =HLOOKUP(ID,$AA$31:$CB$35,5) -> 6 | Z32: a | AA32: -1.2 | AB32: -1.1 | AC32: -0.6 | AD32: -0.3 | AE32: 0.5 | AF32: -0.4 | AG32: -0.6 | AH32: -0.2 | AI32: 1.2 | AJ32: 0.3 | AK32: 1.1 | AL32: 0.4 | AM32: 1 | AN32: 1.2 | AO32: -0.4 | AP32: 0.3 | AQ32: -0.8 | AR32: 1.1 | AS32: 1.1 | AT32: 0.7 | AU32: -0.3 | AV32: -0.6 | AW32: -0.8 | AX32: -1 | AY32: 0.4 | AZ32: 0.9 | BA32: 0.3 | BB32: -1 | BC32: 1 | BD32: -0.7 | BE32: 0.5 | BF32: -1.1 | BG32: 0.9 | BH32: 0.3 | BI32: 1.2 | BJ32: -0.5 | BK32: -0.3 | BL32: -0.3 | BM32: -0.1 | BN32: 1.1 | BO32: -0.2 | BP32: 0.6 | BQ32: -0.2 | BR32: -1 | BS32: 0.3 | BT32: -0.1 | BU32: -0.9 | BV32: 0.9 | BW32: -0.9 | BX32: -1.2 | BY32: -0.4 | BZ32: -1.1 | CA32: -1.2 | CB32: -0.5 | CC32: =RANDBETWEEN(1,12)/10*(-1)^RANDBETWEEN(1,2) -> -0.7 | CD32: =RANDBETWEEN(1,12)/10*(-1)^RANDBETWEEN(1,2) -> -0.4 | CE32: -1.1 | CF32: Schüler*in 6 | CK32: wer auch immer
B33: =IF(G33<>"",1,0) -> 0 | F33: x2 | G33: =IF(Aufgaben!E55="","",IF(Aufgaben!E55=O32,"korrekt!","")) ->  | N33: =N32 -> 1 | O33: =O32 -> 6 | Z33: x1 | AA33: 1 | AB33: -7 | AC33: -9 | AD33: -9 | AE33: -6 | AF33: 2 | AG33: 4 | AH33: -4 | AI33: 5 | AJ33: -1 | AK33: -1 | AL33: -5 | AM33: -8 | AN33: -9 | AO33: -8 | AP33: 3 | AQ33: -5 | AR33: 4 | AS33: 2 | AT33: 3 | AU33: -8 | AV33: 1 | AW33: -2 | AX33: -6 | AY33: 4 | AZ33: 0 | BA33: 1 | BB33: -9 | BC33: 0 | BD33: -7 | BE33: -10 | BF33: 3 | BG33: -1 | BH33: -6 | BI33: -6 | BJ33: 2 | BK33: -2 | BL33: -2 | BM33: -10 | BN33: -9 | BO33: -8 | BP33: -2 | BQ33: -3 | BR33: -5 | BS33: -10 | BT33: -9 | BU33: 5 | BV33: -2 | BW33: 2 | BX33: 4 | BY33: 2 | BZ33: 6 | CA33: 1 | CB33: 1 | CC33: =RANDBETWEEN(-10,6) -> 3 | CD33: =RANDBETWEEN(-10,6) -> 2 | CE33: =RANDBETWEEN(-10,6) -> 6 | CF33: Schüler*in | CK33: wer auch immer
CF34: Schüler*in 10 | CK34: Paula
Z35: x2 | AA35: 6 | AB35: -6 | AC35: -3 | AD35: -6 | AE35: -3 | AF35: 5 | AG35: 7 | AH35: 0 | AI35: 7 | AJ35: 2 | AK35: 1 | AL35: -4 | AM35: -7 | AN35: -6 | AO35: -2 | AP35: 6 | AQ35: -4 | AR35: 8 | AS35: 3 | AT35: 9 | AU35: -5 | AV35: 6 | AW35: 2 | AX35: -2 | AY35: 10 | AZ35: 1 | BA35: 3 | BB35: -7 | BC35: 3 | BD35: -3 | BE35: -7 | BF35: 7 | BG35: 4 | BH35: 0 | BI35: -3 | BJ35: 5 | BK35: 4 | BL35: 0 | BM35: -8 | BN35: -6 | BO35: -3 | BP35: 3 | BQ35: 1 | BR35: -2 | BS35: -7 | BT35: -4 | BU35: 10 | BV35: -1 | BW35: 7 | BX35: 10 | BY35: 3 | BZ35: 8 | CA35: 4 | CB35: 4 | CC35: =RANDBETWEEN(1,6)+CC33 -> 9 | CD35: =RANDBETWEEN(1,6)+CD33 -> 3 | CE35: =RANDBETWEEN(1,6)+CE33 -> 10 | CF35: Schüler*in | CK35: Mira
CF36: wer auch immer | CK36: wer auch immer
CK37: wer auch immer
A40: 2 | E40: ="Aufgabe "&A40 -> Aufgabe 2
K41: a | L41: b | M41: c | N41: x1 | O41: x2 | AA41: 0 | AB41: 41 | AC41: 1 | AD41: 2 | AE41: 3 | AF41: 4 | AG41: 5 | AH41: 48 | AI41: 6 | AJ41: 7 | AK41: 8 | AL41: 9 | AM41: 43 | AN41: 10 | AO41: 11 | AP41: 12 | AQ41: 13 | AR41: 14 | AS41: 15 | AT41: 16 | AU41: 17 | AV41: 39 | AW41: 18 | AX41: 50 | AY41: 19 | AZ41: 20 | BA41: 21 | BB41: 22 | BC41: 45 | BD41: 23 | BE41: 24 | BF41: 25 | BG41: 26 | BH41: 27 | BI41: 28 | BJ41: 29 | BK41: 30 | BL41: 31 | BM41: 32 | BN41: 47 | BO41: 33 | BP41: 34 | BQ41: 35 | BR41: 36 | BS41: 46 | BT41: 42 | BU41: 38 | BV41: 44 | BW41: 37 | BX41: 40 | BY41: 49 | BZ41: 51 | CA41: 52 | CB41: 53 | CC41: 54 | CD41: 55 | CE41: 56
B42: =IF(G42<>"",1,0) -> 0 | E42: =IF(K42<0," - ","")&IF(K42=0,"",IF(ABS(K42)=1," x^2 ",ABS(K42)&" x^2 "))&IF(L42>0,IF(K42<>0," + ",""),"")&IF(L42<0," - ","")&IF(L42=0,"",IF(ABS(L42)=1," x ",ABS(L42)&" x "))&IF(M42>0,IF(K42^2+L42^2<>0," + ",""),"")&IF(M42<0," - ","")&IF(M42=0,"",IF(ABS(M42)=1,"1",ABS(M42)&""))&" = 0" -> - 2 x^2 - 4 x = 0 | F42: x1 | G42: =IF(Aufgaben!E59="","",IF(Aufgaben!E59=N42,"korrekt!","")) ->  | K42: =HLOOKUP(ID,$AA$41:$CB$45,2) -> -2 | L42: =-K42*(N42+O42) -> -4 | M42: =K42*N42*O42 -> 0 | N42: =IF(HLOOKUP(ID,$AA$41:$CB$45,2)<0,HLOOKUP(ID,$AA$41:$CB$45,2),0) -> -2 | O42: =IF(HLOOKUP(ID,$AA$41:$CB$45,2)>0,HLOOKUP(ID,$AA$41:$CB$45,2),0) -> 0 | AA42: -2 | AB42: 6 | AC42: -1 | AD42: 2 | AE42: -6 | AF42: -2 | AG42: 10 | AH42: 5 | AI42: 3 | AJ42: 2 | AK42: 2 | AL42: 2 | AM42: -3 | AN42: -8 | AO42: 10 | AP42: 4 | AQ42: 5 | AR42: 3 | AS42: 2 | AT42: -3 | AU42: -5 | AV42: 7 | AW42: -10 | AX42: -1 | AY42: 3 | AZ42: -7 | BA42: -7 | BB42: 7 | BC42: -7 | BD42: -4 | BE42: -6 | BF42: 6 | BG42: 5 | BH42: 11 | BI42: -11 | BJ42: 8 | BK42: 8 | BL42: 2 | BM42: 1 | BN42: -3 | BO42: -9 | BP42: 12 | BQ42: -2 | BR42: -8 | BS42: -6 | BT42: -9 | BU42: 6 | BV42: -4 | BW42: -10 | BX42: 6 | BY42: -5 | BZ42: 2 | CA42: -3 | CB42: 6 | CC42: =RANDBETWEEN(1,12)*(-1)^RANDBETWEEN(1,2) -> -10 | CD42: =RANDBETWEEN(1,12)*(-1)^RANDBETWEEN(1,2) -> -1 | CE42: =RANDBETWEEN(1,12)*(-1)^RANDBETWEEN(1,2) -> 2
B43: =IF(G43<>"",1,0) -> 0 | F43: x2 | G43: =IF(ISBLANK(Aufgaben!E60),"",IF(Aufgaben!E60=O42,"ja!","")) ->  | N43: =N42 -> -2 | O43: =O42 -> 0 | AA43: 0 | AB43: -15 | AC43: -55 | AD43: -54 | AE43: -53 | AF43: -52 | AG43: -51 | AH43: -8 | AI43: -50 | AJ43: -49 | AK43: -48 | AL43: -47 | AM43: -13 | AN43: -46 | AO43: -45 | AP43: -44 | AQ43: -43 | AR43: -42 | AS43: -41 | AT43: -40 | AU43: -39 | AV43: -17 | AW43: -38 | AX43: -6 | AY43: -37 | AZ43: -36 | BA43: -35 | BB43: -34 | BC43: -11 | BD43: -33 | BE43: -32 | BF43: -31 | BG43: -30 | BH43: -29 | BI43: -28 | BJ43: -27 | BK43: -26 | BL43: -25 | BM43: -24 | BN43: -9 | BO43: -23 | BP43: -22 | BQ43: -21 | BR43: -20 | BS43: -10 | BT43: -14 | BU43: -18 | BV43: -12 | BW43: -19 | BX43: -16 | BY43: -7 | BZ43: -5 | CA43: -4 | CB43: -3 | CC43: -2 | CD43: -1 | CE43: 0
AA45: 6 | AB45: -7 | AC45: -53 | AD45: -48 | AE45: -45 | AF45: -46 | AG45: -47 | AH45: -4 | AI45: -38 | AJ45: -39 | AK45: -46 | AL45: -37 | AM45: -11 | AN45: -40 | AO45: -33 | AP45: -34 | AQ45: -35 | AR45: -38 | AS45: -37 | AT45: -38 | AU45: -33 | AV45: -11 | AW45: -36 | AX45: 6 | AY45: -27 | AZ45: -28 | BA45: -33 | BB45: -28 | BC45: -9 | BD45: -27 | BE45: -26 | BF45: -21 | BG45: -22 | BH45: -19 | BI45: -16 | BJ45: -17 | BK45: -16 | BL45: -15 | BM45: -16 | BN45: 1 | BO45: -19 | BP45: -10 | BQ45: -17 | BR45: -14 | BS45: -2 | BT45: -4 | BU45: -12 | BV45: 0 | BW45: -11 | BX45: -4 | BY45: -1 | BZ45: 1 | CA45: 0 | CB45: 1 | CC45: =2*RANDBETWEEN(1,6)+CC43 -> 10 | CD45: =2*RANDBETWEEN(1,6)+CD43 -> 3 | CE45: =2*RANDBETWEEN(1,6)+CE43 -> 10
A47: 3 | E47: ="Aufgabe "&A47 -> Aufgabe 3
K48: a | L48: b | M48: c | N48: x1 | O48: x2 | AA48: 0 | AB48: 41 | AC48: 1 | AD48: 2 | AE48: 3 | AF48: 4 | AG48: 5 | AH48: 48 | AI48: 6 | AJ48: 7 | AK48: 8 | AL48: 9 | AM48: 43 | AN48: 10 | AO48: 11 | AP48: 12 | AQ48: 13 | AR48: 14 | AS48: 15 | AT48: 16 | AU48: 17 | AV48: 39 | AW48: 18 | AX48: 50 | AY48: 19 | AZ48: 20 | BA48: 21 | BB48: 22 | BC48: 45 | BD48: 23 | BE48: 24 | BF48: 25 | BG48: 26 | BH48: 27 | BI48: 28 | BJ48: 29 | BK48: 30 | BL48: 31 | BM48: 32 | BN48: 47 | BO48: 33 | BP48: 34 | BQ48: 35 | BR48: 36 | BS48: 46 | BT48: 42 | BU48: 38 | BV48: 44 | BW48: 37 | BX48: 40 | BY48: 49 | BZ48: 51 | CA48: 52 | CB48: 53 | CC48: 54 | CD48: 55 | CE48: 56
B49: =IF(G49<>"",1,0) -> 0 | E49: =IF(K49<0," - ","")&IF(K49=0,"",IF(ABS(K49)=1," x^2 ",ABS(K49)&" x^2 "))&IF(L49>0,IF(K49<>0," + ",""),"")&IF(L49<0," - ","")&IF(L49=0,"",IF(ABS(L49)=1," x ",ABS(L49)&" x "))&IF(M49>0,IF(K49^2+L49^2<>0," + ",""),"")&IF(M49<0," - ","")&IF(M49=0,"",IF(ABS(M49)=1,"1",ABS(M49)&""))&" = 0" -> - 2 x^2 + 18 = 0 | F49: x1 | G49: =IF(Aufgaben!E64="","",IF(Aufgaben!E64=N49,"haargenau!","")) ->  | K49: =HLOOKUP(ID,$AA$41:$CB$45,2) -> -2 | L49: =-K49*(N49+O49) -> 0 | M49: =K49*N49*O49 -> 18 | N49: =HLOOKUP(ID,$AA$48:$CB$53,2) -> -3 | O49: =-N49 -> 3 | AA49: -3 | AB49: -8 | AC49: -5 | AD49: -8 | AE49: -10 | AF49: -4 | AG49: -6 | AH49: -1 | AI49: -8 | AJ49: -5 | AK49: -8 | AL49: -3 | AM49: -3 | AN49: -6 | AO49: -3 | AP49: -1 | AQ49: -6 | AR49: -5 | AS49: -2 | AT49: -9 | AU49: -5 | AV49: -8 | AW49: -8 | AX49: -4 | AY49: -6 | AZ49: -5 | BA49: -4 | BB49: -8 | BC49: -5 | BD49: -9 | BE49: -7 | BF49: -4 | BG49: -9 | BH49: -4 | BI49: -8 | BJ49: -9 | BK49: -10 | BL49: -4 | BM49: -3 | BN49: -8 | BO49: -1 | BP49: -10 | BQ49: -5 | BR49: -9 | BS49: -7 | BT49: -7 | BU49: -4 | BV49: -3 | BW49: -5 | BX49: -1 | BY49: -2 | BZ49: -3 | CA49: -7 | CB49: -7 | CC49: =-RANDBETWEEN(1,10) -> -6 | CD49: =-RANDBETWEEN(1,10) -> -3 | CE49: -6
B50: =IF(G50<>"",1,0) -> 0 | F50: x2 | G50: =IF(ISBLANK(Aufgaben!E65),"",IF(Aufgaben!E65=O49,"korrekt!","")) ->  | N50: =N49 -> -3 | O50: =O49 -> 3 | AA50: 3 | AB50: 8 | AC50: 5 | AD50: 8 | AE50: 10 | AF50: 4 | AG50: 6 | AH50: 1 | AI50: 8 | AJ50: 5 | AK50: 8 | AL50: 3 | AM50: 3 | AN50: 6 | AO50: 3 | AP50: 1 | AQ50: 6 | AR50: 5 | AS50: 2 | AT50: 9 | AU50: 5 | AV50: 8 | AW50: 8 | AX50: 4 | AY50: 6 | AZ50: 5 | BA50: 4 | BB50: 8 | BC50: 5 | BD50: 9 | BE50: 7 | BF50: 4 | BG50: 9 | BH50: 4 | BI50: 8 | BJ50: 9 | BK50: 10 | BL50: 4 | BM50: 3 | BN50: 8 | BO50: 1 | BP50: 10 | BQ50: 5 | BR50: 9 | BS50: 7 | BT50: 7 | BU50: 4 | BV50: 3 | BW50: 5 | BX50: 1 | BY50: 2 | BZ50: 3 | CA50: 7 | CB50: 7 | CC50: =-CC49 -> 6 | CD50: =-CD49 -> 3 | CE50: =-CE49 -> 6
AA52: 6 | AB52: 16 | AC52: 9 | AD52: 18 | AE52: 20 | AF52: 6 | AG52: 14 | AH52: 9 | AI52: 14 | AJ52: 11 | AK52: 18 | AL52: 11 | AM52: 7 | AN52: 18 | AO52: 7 | AP52: 11 | AQ52: 10 | AR52: 11 | AS52: 12 | AT52: 19 | AU52: 7 | AV52: 10 | AW52: 10 | AX52: 16 | AY52: 10 | AZ52: 17 | BA52: 10 | BB52: 14 | BC52: 15 | BD52: 11 | BE52: 15 | BF52: 10 | BG52: 17 | BH52: 16 | BI52: 16 | BJ52: 21 | BK52: 20 | BL52: 14 | BM52: 15 | BN52: 10 | BO52: 9 | BP52: 22 | BQ52: 13 | BR52: 15 | BS52: 9 | BT52: 19 | BU52: 12 | BV52: 7 | BW52: 9 | BX52: 7 | BY52: 6 | BZ52: 5 | CA52: 15 | CB52: 11 | CC52: =2*RANDBETWEEN(1,6)+CC50 -> 12 | CD52: =2*RANDBETWEEN(1,6)+CD50 -> 7 | CE52: =2*RANDBETWEEN(1,6)+CE50 -> 12
A58: 4 | E58: ="Aufgabe "&A58 -> Aufgabe 4
K59: a | L59: b | M59: c | N59: x1 | O59: x2 | AA59: 0 | AB59: 41 | AC59: 1 | AD59: 2 | AE59: 3 | AF59: 4 | AG59: 5 | AH59: 48 | AI59: 6 | AJ59: 7 | AK59: 8 | AL59: 9 | AM59: 43 | AN59: 10 | AO59: 11 | AP59: 12 | AQ59: 13 | AR59: 14 | AS59: 15 | AT59: 16 | AU59: 17 | AV59: 39 | AW59: 18 | AX59: 50 | AY59: 19 | AZ59: 20 | BA59: 21 | BB59: 22 | BC59: 45 | BD59: 23 | BE59: 24 | BF59: 25 | BG59: 26 | BH59: 27 | BI59: 28 | BJ59: 29 | BK59: 30 | BL59: 31 | BM59: 32 | BN59: 47 | BO59: 33 | BP59: 34 | BQ59: 35 | BR59: 36 | BS59: 46 | BT59: 42 | BU59: 38 | BV59: 44 | BW59: 37 | BX59: 40 | BY59: 49 | BZ59: 51 | CA59: 52 | CB59: 53 | CC59: 54 | CD59: 55 | CE59: 56
B60: =IF(G60<>"",1,0) -> 0 | E60: =IF(K60<0," - ","")&IF(K60=0,"",IF(ABS(K60)=1," x^2 ",ABS(K60)&" x^2 "))&IF(L60>0,IF(K60<>0," + ",""),"")&IF(L60<0," - ","")&IF(L60=0,"",IF(ABS(L60)=1," x ",ABS(L60)&" x "))&IF(M60>0,IF(K60^2+L60^2<>0," + ",""),"")&IF(M60<0," - ","")&IF(M60=0,"",IF(ABS(M60)=1,"1",ABS(M60)&""))&" = 0" -> x^2 - 16 x + 39 = 0 | F60: x1 | G60: =IF(Aufgaben!E69=N60,"so ist es!","") ->  | K60: 1 | L60: =-(N60+O60) -> -16 | M60: =N60*O60 -> 39 | N60: =HLOOKUP(ID,$AA$59:$CB$63,3) -> 3 | O60: =HLOOKUP(ID,$AA$59:$CB$63,5) -> 13
B61: =IF(G61<>"",1,0) -> 0 | F61: x2 | G61: =IF(ISBLANK(Aufgaben!E70),"",IF(Aufgaben!E70=O60,"korrekt!","")) ->  | N61: =N60 -> 3 | O61: =O60 -> 13 | AA61: 3 | AB61: -9 | AC61: -3 | AD61: -7 | AE61: -6 | AF61: 1 | AG61: -2 | AH61: -4 | AI61: -6 | AJ61: 6 | AK61: -2 | AL61: 4 | AM61: 6 | AN61: 2 | AO61: 4 | AP61: -6 | AQ61: -2 | AR61: 6 | AS61: -2 | AT61: -7 | AU61: -2 | AV61: -3 | AW61: 0 | AX61: -10 | AY61: -2 | AZ61: -9 | BA61: 3 | BB61: 0 | BC61: 4 | BD61: 3 | BE61: -9 | BF61: -3 | BG61: -7 | BH61: 5 | BI61: -6 | BJ61: -10 | BK61: 0 | BL61: 6 | BM61: 0 | BN61: -10 | BO61: -2 | BP61: 6 | BQ61: -1 | BR61: 5 | BS61: -3 | BT61: 1 | BU61: 0 | BV61: -3 | BW61: -10 | BX61: -5 | BY61: 0 | BZ61: -10 | CA61: 2 | CB61: 3 | CC61: =RANDBETWEEN(-10,6) -> -6 | CD61: =RANDBETWEEN(-10,6) -> -3 | CE61: =RANDBETWEEN(-10,6) -> -4
AA63: 13 | AB63: -7 | AC63: 9 | AD63: -1 | AE63: -2 | AF63: 11 | AG63: 4 | AH63: 8 | AI63: 0 | AJ63: 14 | AK63: 0 | AL63: 16 | AM63: 18 | AN63: 6 | AO63: 14 | AP63: -4 | AQ63: 4 | AR63: 18 | AS63: 2 | AT63: 3 | AU63: 4 | AV63: 5 | AW63: 2 | AX63: 2 | AY63: 2 | AZ63: -3 | BA63: 5 | BB63: 6 | BC63: 16 | BD63: 5 | BE63: 1 | BF63: 9 | BG63: 3 | BH63: 13 | BI63: 0 | BJ63: -8 | BK63: 6 | BL63: 18 | BM63: 12 | BN63: -8 | BO63: 6 | BP63: 18 | BQ63: 9 | BR63: 15 | BS63: -1 | BT63: 5 | BU63: 6 | BV63: 9 | BW63: -2 | BX63: -3 | BY63: 12 | BZ63: -8 | CA63: 10 | CB63: 7 | CC63: =2*RANDBETWEEN(1,6)+CC61 -> 2 | CD63: =2*RANDBETWEEN(1,6)+CD61 -> 3 | CE63: =2*RANDBETWEEN(1,6)+CE61 -> 2
A65: 5 | E65: ="Aufgabe "&A65 -> Aufgabe 5
K66: a | L66: b | M66: c | N66: x1 | O66: x2 | AA66: 0 | AB66: 41 | AC66: 1 | AD66: 2 | AE66: 3 | AF66: 4 | AG66: 5 | AH66: 48 | AI66: 6 | AJ66: 7 | AK66: 8 | AL66: 9 | AM66: 43 | AN66: 10 | AO66: 11 | AP66: 12 | AQ66: 13 | AR66: 14 | AS66: 15 | AT66: 16 | AU66: 17 | AV66: 39 | AW66: 18 | AX66: 50 | AY66: 19 | AZ66: 20 | BA66: 21 | BB66: 22 | BC66: 45 | BD66: 23 | BE66: 24 | BF66: 25 | BG66: 26 | BH66: 27 | BI66: 28 | BJ66: 29 | BK66: 30 | BL66: 31 | BM66: 32 | BN66: 47 | BO66: 33 | BP66: 34 | BQ66: 35 | BR66: 36 | BS66: 46 | BT66: 42 | BU66: 38 | BV66: 44 | BW66: 37 | BX66: 40 | BY66: 49 | BZ66: 51 | CA66: 52 | CB66: 53 | CC66: 54 | CD66: 55 | CE66: 56
B67: =IF(G67<>"",1,0) -> 0 | E67: =IF(K67<0," - ","")&IF(K67=0,"",IF(ABS(K67)=1," x^2 ",ABS(K67)&" x^2 "))&IF(L67>0,IF(K67<>0," + ",""),"")&IF(L67<0," - ","")&IF(L67=0,"",IF(ABS(L67)=1," x ",ABS(L67)&" x "))&IF(M67>0,IF(K67^2+L67^2<>0," + ",""),"")&IF(M67<0," - ","")&IF(M67=0,"",IF(ABS(M67)=1,"1",ABS(M67)&""))&" = 0" -> - 2 x^2 + 4 x + 48 = 0 | F67: x1 | G67: =IF(Aufgaben!E78=N67,"jepp!","") ->  | K67: =HLOOKUP(ID,$AA$66:$CB$70,2) -> -2 | L67: =-K67*(N67+O67) -> 4 | M67: =K67*N67*O67 -> 48 | N67: =HLOOKUP(ID,$AA$66:$CB$70,3) -> -4 | O67: =HLOOKUP(ID,$AA$66:$CB$70,5) -> 6 | AA67: -2 | AB67: 1 | AC67: -2 | AD67: -5 | AE67: -6 | AF67: -10 | AG67: 1 | AH67: 1 | AI67: -1 | AJ67: -1 | AK67: -7 | AL67: -8 | AM67: -8 | AN67: 1 | AO67: -5 | AP67: -9 | AQ67: -7 | AR67: -1 | AS67: -6 | AT67: 5 | AU67: 4 | AV67: 1 | AW67: 1 | AX67: -9 | AY67: 4 | AZ67: -2 | BA67: 4 | BB67: 4 | BC67: -6 | BD67: 5 | BE67: 2 | BF67: -8 | BG67: -4 | BH67: -5 | BI67: -2 | BJ67: -9 | BK67: -10 | BL67: 4 | BM67: -1 | BN67: 6 | BO67: -7 | BP67: 4 | BQ67: 1 | BR67: 1 | BS67: -9 | BT67: 3 | BU67: -1 | BV67: -5 | BW67: -5 | BX67: -1 | BY67: 0 | BZ67: -3 | CA67: -5 | CB67: -3 | CC67: =RANDBETWEEN(-10,6) -> 6 | CD67: =RANDBETWEEN(-10,6) -> -3 | CE67: =RANDBETWEEN(-10,6) -> 1
B68: =IF(G68<>"",1,0) -> 0 | F68: x2 | G68: =IF(ISBLANK(Aufgaben!E79),"",IF(Aufgaben!E79=O67,"korrekt!","")) ->  | N68: =N67 -> -4 | O68: =O67 -> 6 | AA68: -4 | AB68: 0 | AC68: -6 | AD68: -2 | AE68: -7 | AF68: 1 | AG68: 1 | AH68: -3 | AI68: -10 | AJ68: -6 | AK68: -1 | AL68: -10 | AM68: -10 | AN68: 5 | AO68: -7 | AP68: -10 | AQ68: -9 | AR68: -2 | AS68: -7 | AT68: -2 | AU68: 3 | AV68: -1 | AW68: 5 | AX68: 2 | AY68: -5 | AZ68: -8 | BA68: 5 | BB68: -10 | BC68: -4 | BD68: 3 | BE68: -5 | BF68: 0 | BG68: -6 | BH68: -3 | BI68: -3 | BJ68: 1 | BK68: -10 | BL68: -10 | BM68: -5 | BN68: -6 | BO68: -3 | BP68: -1 | BQ68: -6 | BR68: 5 | BS68: 5 | BT68: -10 | BU68: -5 | BV68: 6 | BW68: -10 | BX68: 4 | BY68: -4 | BZ68: 4 | CA68: 0 | CB68: -3 | CC68: =RANDBETWEEN(-10,6) -> -6 | CD68: 0 | CE68: -8
AA70: 6 | AB70: 12 | AC70: 6 | AD70: 0 | AE70: -1 | AF70: 9 | AG70: 11 | AH70: 7 | AI70: -4 | AJ70: -2 | AK70: 11 | AL70: 0 | AM70: -2 | AN70: 11 | AO70: -1 | AP70: -6 | AQ70: -7 | AR70: 2 | AS70: -5 | AT70: 10 | AU70: 5 | AV70: 1 | AW70: 11 | AX70: 8 | AY70: -3 | AZ70: 0 | BA70: 11 | BB70: -2 | BC70: 0 | BD70: 11 | BE70: -1 | BF70: 8 | BG70: -4 | BH70: 5 | BI70: 3 | BJ70: 7 | BK70: -6 | BL70: -2 | BM70: 7 | BN70: 2 | BO70: -1 | BP70: 3 | BQ70: -4 | BR70: 15 | BS70: 7 | BT70: -4 | BU70: -3 | BV70: 18 | BW70: -6 | BX70: 14 | BY70: 4 | BZ70: 10 | CA70: 8 | CB70: -1 | CC70: =2*RANDBETWEEN(1,6)+CC68 -> 2 | CD70: =2*RANDBETWEEN(1,6)+CD68 -> 10 | CE70: =2*RANDBETWEEN(1,6)+CE68 -> -2
A72: quadratische Funktionen
CF74: Ideensammlung:
A75: 1 | E75: ="Aufgabe "&A75&" "&E76 -> Aufgabe 1 (Scheitelpunktform) | P75: Scheitelp.form | CF75: Graph der Ableitung zeigen
E76: (Scheitelpunktform) | M76: Stellen | N76: Koord f | O76: f´´ | P76: Zufallszahlen | AA76: 0 | AB76: 41 | AC76: 1 | AD76: 2 | AE76: 3 | AF76: 4 | AG76: 5 | AH76: 48 | AI76: 6 | AJ76: 7 | AK76: 8 | AL76: 9 | AM76: 43 | AN76: 10 | AO76: 11 | AP76: 12 | AQ76: 13 | AR76: 14 | AS76: 15 | AT76: 16 | AU76: 17 | AV76: 39 | AW76: 18 | AX76: 50 | AY76: 19 | AZ76: 20 | BA76: 21 | BB76: 22 | BC76: 45 | BD76: 23 | BE76: 24 | BF76: 25 | BG76: 26 | BH76: 27 | BI76: 28 | BJ76: 29 | BK76: 30 | BL76: 31 | BM76: 32 | BN76: 47 | BO76: 33 | BP76: 34 | BQ76: 35 | BR76: 36 | BS76: 46 | BT76: 42 | BU76: 38 | BV76: 44 | BW76: 37 | BX76: 40 | BY76: 49 | BZ76: 51 | CA76: 52 | CB76: 53 | CC76: 54 | CD76: 55 | CE76: 56 | CF76: Fragen beantworten lassen
C77: f(x) | E77: =IF(N78<0,"- ","")&IF(N78>0,"","")&IF(N78=0,"",IF(ABS(N78)=1," x^2 ",ABS(N78)&" x^2 "))&IF(N79>0,IF(N78<>0," + ",""),"")&IF(N79<0," - ","")&IF(N79=0,"",IF(ABS(N79)=1," x ",ABS(N79)&" x "))&IF(N80>0,IF(N78^2+N79^2<>0," + ",""),"")&IF(N80<0," - ","")&IF(N80=0,"",IF(ABS(N80)=1,"1",ABS(N80)&"")) -> 0,5 x^2 - 4 x + 6 | F77: =IF(P77<0,"- ","")&IF(P77>0,"","")&IF(P77=0,"",IF(ABS(P77)=1,"(x ",ABS(P77)&"(x"))&IF(P78>0,IF(P77<>0," + ",""),"")&IF(P78<0," - ","")&IF(P78=0,"",IF(ABS(P78)=1,"1",ABS(P78)&""))&")^2"&IF(P79>0,IF(P77^2+P78^2<>0," + ",""),"")&IF(P79<0," - ","")&IF(P79=0,"",IF(ABS(P79)=1,"1",ABS(P79)&"")) -> 0,5(x - 4)^2 - 2 | H77: ="("&-P78&";"&P79&")" -> (4;-2) | L77: x1 | M77: =HLOOKUP(ID,$AA$76:$CB$84,5) -> -5 | P77: =HLOOKUP(ID,$AA$76:$CB$84,2) -> 0.5 | Z77: a | AA77: 0.5 | AB77: 2 | AC77: -1 | AD77: 0.25 | AE77: -4 | AF77: -4 | AG77: 4 | AH77: -1 | AI77: 1 | AJ77: -0.25 | AK77: 4 | AL77: -0.25 | AM77: 2 | AN77: -2 | AO77: 4 | AP77: 4 | AQ77: 0.25 | AR77: 1 | AS77: 2 | AT77: 1 | AU77: 0.25 | AV77: 0.25 | AW77: -2 | AX77: -4 | AY77: -4 | AZ77: -0.5 | BA77: 0.25 | BB77: -4 | BC77: -2 | BD77: -2 | BE77: -0.25 | BF77: -0.25 | BG77: 4 | BH77: 2 | BI77: 0.25 | BJ77: 4 | BK77: -2 | BL77: 0.25 | BM77: -4 | BN77: -0.25 | BO77: -0.25 | BP77: -0.25 | BQ77: -0.5 | BR77: -0.5 | BS77: -1 | BT77: -0.5 | BU77: -1 | BV77: 2 | BW77: 0.25 | BX77: -0.25 | BY77: -1 | BZ77: 1 | CA77: -4 | CB77: -0.5 | CC77: =(-1)^RANDBETWEEN(0,1)*2^(RANDBETWEEN(-2,2)) -> -2 | CD77: =(-1)^RANDBETWEEN(0,1)*2^(RANDBETWEEN(-2,2)) -> 1 | CE77: =(-1)^RANDBETWEEN(0,1)*2^(RANDBETWEEN(-2,2)) -> -0.25
C78: f´(x)= | E78: =IF(O78<0," - ","")&IF(O78>0," + ","")&IF(O78=0,"",IF(ABS(O78)=1," x^2 ",ABS(O78)&" x^2 "))&IF(O79>0,IF(O78<>0," + ",""),"")&IF(O79<0," - ","")&IF(O79=0,"",IF(ABS(O79)=1," x ",ABS(O79)&" x "))&IF(O80>0,IF(O78^2+O79^2<>0," + ",""),"")&IF(O80<0," - ","")&IF(O80=0,"",IF(ABS(O80)=1,"1",ABS(O80)&"")) -> x - 4 | L78: x2 | M78: =HLOOKUP(ID,$AA$76:$CB$84,6) -> 3 | N78: =P77 -> 0.5 | P78: =HLOOKUP(ID,$AA$76:$CB$84,3) -> -4 | Z78: xS | AA78: -4 | AB78: -1 | AC78: -4 | AD78: -1 | AE78: 2 | AF78: 3 | AG78: 5 | AH78: 1 | AI78: 0 | AJ78: 5 | AK78: 0 | AL78: -3 | AM78: -2 | AN78: -4 | AO78: 4 | AP78: -2 | AQ78: -5 | AR78: -3 | AS78: -2 | AT78: 1 | AU78: 4 | AV78: -4 | AW78: 2 | AX78: -1 | AY78: 1 | AZ78: 4 | BA78: 4 | BB78: -5 | BC78: 5 | BD78: 1 | BE78: 1 | BF78: 1 | BG78: -1 | BH78: 5 | BI78: -1 | BJ78: 4 | BK78: -5 | BL78: -5 | BM78: -5 | BN78: -3 | BO78: 3 | BP78: -1 | BQ78: 3 | BR78: 4 | BS78: -4 | BT78: 1 | BU78: 1 | BV78: -1 | BW78: -5 | BX78: 0 | BY78: -3 | BZ78: 1 | CA78: 4 | CB78: 3 | CC78: =RANDBETWEEN(-5,5) -> -2 | CD78: =RANDBETWEEN(-5,5) -> 5 | CE78: =RANDBETWEEN(-5,5) -> -3
L79: x3 | M79: =HLOOKUP(ID,$AA$76:$CB$84,7) -> -1 | N79: =P77*2*P78 -> -4 | O79: =N78*2 -> 1 | P79: =HLOOKUP(ID,$AA$76:$CB$84,4) -> -2 | Z79: yS | AA79: -2 | AB79: 0 | AC79: 3 | AD79: 2 | AE79: 5 | AF79: 0 | AG79: 5 | AH79: -2 | AI79: 1 | AJ79: 1 | AK79: 3 | AL79: 1 | AM79: 5 | AN79: -1 | AO79: -2 | AP79: 0 | AQ79: -2 | AR79: -2 | AS79: -4 | AT79: -1 | AU79: 4 | AV79: 5 | AW79: -5 | AX79: 1 | AY79: 4 | AZ79: 4 | BA79: 2 | BB79: -1 | BC79: 2 | BD79: 0 | BE79: 2 | BF79: 0 | BG79: -4 | BH79: -2 | BI79: 2 | BJ79: -3 | BK79: -5 | BL79: -5 | BM79: 3 | BN79: -5 | BO79: 4 | BP79: 4 | BQ79: 1 | BR79: 3 | BS79: 1 | BT79: 5 | BU79: -3 | BV79: -3 | BW79: -1 | BX79: 0 | BY79: -5 | BZ79: 1 | CA79: 3 | CB79: -5 | CC79: =RANDBETWEEN(-5,5) -> -2 | CD79: 1 | CE79: -1
L80: x4 | M80: =HLOOKUP(ID,$AA$76:$CB$84,8) -> 3 | N80: =P77*P78^2+P79 -> 6 | O80: =N79 -> -4 | Z80: Stellen | AA80: -5 | AB80: -3 | AC80: 3 | AD80: 0 | AE80: 1 | AF80: 3 | AG80: -3 | AH80: -1 | AI80: 4 | AJ80: 0 | AK80: 0 | AL80: -5 | AM80: -2 | AN80: 1 | AO80: -4 | AP80: 2 | AQ80: -1 | AR80: -3 | AS80: -4 | AT80: -3 | AU80: -1 | AV80: 5 | AW80: 3 | AX80: 0 | AY80: 0 | AZ80: -4 | BA80: 5 | BB80: 4 | BC80: -1 | BD80: -2 | BE80: 3 | BF80: 5 | BG80: -4 | BH80: 4 | BI80: 3 | BJ80: -5 | BK80: -4 | BL80: 4 | BM80: -3 | BN80: 0 | BO80: 5 | BP80: -2 | BQ80: -2 | BR80: -3 | BS80: 3 | BT80: 4 | BU80: 5 | BV80: 2 | BW80: 4 | BX80: 3 | BY80: 0 | BZ80: 1 | CA80: 0 | CB80: 0 | CC80: =RANDBETWEEN(-5,5) -> -4 | CD80: 5 | CE80: -1
A81: * | AA81: 3 | AB81: -3 | AC81: 3 | AD81: 4 | AE81: 0 | AF81: 3 | AG81: 1 | AH81: 1 | AI81: 1 | AJ81: 1 | AK81: -2 | AL81: -4 | AM81: 0 | AN81: 0 | AO81: 5 | AP81: -1 | AQ81: -4 | AR81: 3 | AS81: 0 | AT81: 2 | AU81: 0 | AV81: 5 | AW81: 0 | AX81: 1 | AY81: 1 | AZ81: -1 | BA81: -3 | BB81: -1 | BC81: 2 | BD81: 3 | BE81: -3 | BF81: -1 | BG81: -3 | BH81: 1 | BI81: -3 | BJ81: -4 | BK81: 3 | BL81: 2 | BM81: 0 | BN81: -3 | BO81: 3 | BP81: -5 | BQ81: -2 | BR81: 4 | BS81: 2 | BT81: -4 | BU81: 3 | BV81: 4 | BW81: 4 | BX81: -3 | BY81: -3 | BZ81: 4 | CA81: 5 | CB81: 1 | CC81: =RANDBETWEEN(-5,5) -> 4 | CD81: 1 | CE81: 4
A82: * | G82: -7 | H82: =$K$452*G82^3+$K$453*G82^2+$K$454*G82+$K$455 -> 39 | L82: ="Gegeben ist die Funktion f mit" -> Gegeben ist die Funktion f mit | AA82: -1 | AB82: 4 | AC82: -3 | AD82: 0 | AE82: 2 | AF82: -3 | AG82: 5 | AH82: -3 | AI82: 2 | AJ82: 3 | AK82: -5 | AL82: -4 | AM82: -2 | AN82: 1 | AO82: 2 | AP82: 4 | AQ82: -3 | AR82: -1 | AS82: -5 | AT82: 1 | AU82: -1 | AV82: 1 | AW82: 0 | AX82: -3 | AY82: 2 | AZ82: 0 | BA82: -3 | BB82: 0 | BC82: 1 | BD82: -1 | BE82: 5 | BF82: -4 | BG82: -1 | BH82: 4 | BI82: -4 | BJ82: 2 | BK82: -1 | BL82: 2 | BM82: -1 | BN82: -3 | BO82: 0 | BP82: -4 | BQ82: 5 | BR82: 4 | BS82: -5 | BT82: -4 | BU82: -4 | BV82: -2 | BW82: 4 | BX82: -1 | BY82: -1 | BZ82: -4 | CA82: -5 | CB82: -1 | CC82: =RANDBETWEEN(-5,5) -> 1 | CD82: -1 | CE82: -4
A83: * | G83: =G82+1 -> -6 | H83: 22 | L83: ="f(x)="&F77 -> f(x)=0,5(x - 4)^2 - 2 | AA83: 3 | AB83: -2 | AC83: 5 | AD83: 0 | AE83: 2 | AF83: 0 | AG83: -1 | AH83: 5 | AI83: -5 | AJ83: -2 | AK83: -5 | AL83: -5 | AM83: 3 | AN83: 3 | AO83: 3 | AP83: 4 | AQ83: -1 | AR83: 5 | AS83: -1 | AT83: -3 | AU83: -3 | AV83: -1 | AW83: -1 | AX83: 5 | AY83: -2 | AZ83: 0 | BA83: -3 | BB83: -4 | BC83: -3 | BD83: 3 | BE83: -1 | BF83: -5 | BG83: 3 | BH83: -5 | BI83: 2 | BJ83: -1 | BK83: -1 | BL83: -3 | BM83: -5 | BN83: -2 | BO83: 5 | BP83: -3 | BQ83: -4 | BR83: -3 | BS83: -5 | BT83: -4 | BU83: 5 | BV83: -5 | BW83: -4 | BX83: -4 | BY83: 3 | BZ83: -1 | CA83: 4 | CB83: -3 | CC83: =RANDBETWEEN(-5,5) -> 2 | CD83: 4 | CE83: -1
A84: * | G84: -5 | H84: 14 | AA84: 3 | AB84: 2 | AC84: -4 | AD84: 5 | AE84: 4 | AF84: 4 | AG84: -5 | AH84: -5 | AI84: 4 | AJ84: 5 | AK84: 3 | AL84: 3 | AM84: 4 | AN84: -4 | AO84: 1 | AP84: -1 | AQ84: 5 | AR84: 1 | AS84: -2 | AT84: -2 | AU84: -2 | AV84: -2 | AW84: 5 | AX84: -4 | AY84: -5 | AZ84: -4 | BA84: -1 | BB84: -2 | BC84: -5 | BD84: 5 | BE84: 1 | BF84: -3 | BG84: -1 | BH84: -3 | BI84: -5 | BJ84: -1 | BK84: 1 | BL84: 1 | BM84: -2 | BN84: -3 | BO84: -5 | BP84: -5 | BQ84: -5 | BR84: 5 | BS84: -3 | BT84: -1 | BU84: -2 | BV84: -2 | BW84: 1 | BX84: 4 | BY84: 5 | BZ84: -4 | CA84: 2 | CB84: -3 | CC84: =RANDBETWEEN(1,5)*(-1)^RANDBETWEEN(0,1) -> -2 | CD84: =RANDBETWEEN(1,5)*(-1)^RANDBETWEEN(0,1) -> 5 | CE84: =RANDBETWEEN(1,5)*(-1)^RANDBETWEEN(0,1) -> 1
B85: =IF(T85<>"",1,0) -> 0 | G85: -4 | H85: 12 | I85: a) | L85: Bring f auf Normalform: f(x)= | S85: =IF(N78<0,"-","")&IF(N78>0,"","")&IF(N78=0,"",IF(ABS(N78)=1,"x^2",ABS(N78)&"x^2"))&IF(N79>0,IF(N78<>0,"+",""),"")&IF(N79<0,"-","")&IF(N79=0,"",IF(ABS(N79)=1,"x",ABS(N79)&"x"))&IF(N80>0,IF(N78^2+N79^2<>0,"+",""),"")&IF(N80<0,"-","")&IF(N80=0,"",IF(ABS(N80)=1,"",ABS(N80)&"")) -> 0,5x^2-4x+6 | T85: =IF(ISBLANK(Aufgaben!E88),"",IF(Aufgaben!E88=S85,"richtig!","")) -> 
G86: -3 | H86: 13
B87: =IF(T87<>"",1,0) -> 0 | G87: -2 | H87: 14 | I87: b) | L87: Gib den Scheitelpunkt an | S87: =H77 -> (4;-2) | T87: =IF(ISBLANK(Aufgaben!E91),"",IF(Aufgaben!E91=S87,"richtig!","")) -> 
G88: -1 | H88: 12 | L88: Schreib die Koordinaten ohne Leerzeichen in der Form (...;...) | T88: =IF(ISBLANK(Aufgaben!E91),"","Also ist f um "&ABS(P78)&" nach "&IF(P78<=0," links","rechts")&" und um "&ABS(P79)&" nach "&IF(P79<=0,"unten","oben")&" verschoben.") -> 
B89: =IF(T89<>"",1,0) -> 0 | G89: 0 | H89: 4 | I89: c) | J89: =M77 -> -5 | K89: =P77*(J89+P78)^2+P79 -> 38.5 | L89: ="Welchen Wert nimmt f an der Stelle "&J89&" an?" -> Welchen Wert nimmt f an der Stelle -5 an? | S89: =K89 -> 38.5 | T89: =IF(ISBLANK(Aufgaben!E94),"",IF(Aufgaben!E94=S89,"richtig!","")) -> 
G90: 1 | H90: -13
B91: =IF(T91<>"",1,0) -> 0 | G91: 2 | H91: -42 | I91: d) | J91: =M79 -> -1 | K91: =P77*(J91+P78)^2+P79 -> 10.5 | L91: ="An welcher Stelle nimmt f den Wert "&K91& " an?" -> An welcher Stelle nimmt f den Wert 10,5 an? | S91: =((K91-P79)/P77)^0.5*(-1)-P78 -> -1 | T91: =IF(ISBLANK(Aufgaben!E96),"",IF(Aufgaben!E96=S91,"richtig!","")) -> 
B92: =IF(T92<>"",1,0) -> 0 | G92: 3 | H92: -86 | S92: =((K91-P79)/P77)^0.5-P78 -> 9 | T92: =IF(ISBLANK(Aufgaben!E97),"",IF(Aufgaben!E97=S92,"richtig!","")) -> 
B94: =IF(T94<>"",1,0) -> 0 | I94: e) | L94: ="Gib den y-Achsenabschnitt an." -> Gib den y-Achsenabschnitt an. | S94: =N80 -> 6 | T94: =IF(ISBLANK(Aufgaben!E99),"",IF(Aufgaben!E99=S94,"richtig!","")) -> 
T95: =IF(ISBLANK(Aufgaben!E99),"","Also ist der Schnittpunkt mit der y-Achse (0;"&S94&")") -> 
I96: f) | L96: Gegenüber der Standardnormalparabel y=x^2 ist f …
S97: richtig | T97: FALSE
L98: … nach unten geöffnet | S98: =IF(P77<0,"x","") ->  | T98: =IF(S98="","x","") -> x | U98: =IF(S98=Aufgaben!C103,0,1) -> 0 | V98: =IF(T98=Aufgaben!D103,0,1) -> 1
L99: … gestreckt | S99: =IF(ABS(P77)>1,"x","") ->  | T99: =IF(S99="","x","") -> x | U99: =IF(S99=Aufgaben!C104,0,1) -> 0 | V99: =IF(T99=Aufgaben!D104,0,1) -> 1
L100: ="… um "&ABS(P78)&" nach links verschoben" -> … um 4 nach links verschoben | S100: =IF((P78)>0,"x","") ->  | T100: x | U100: =IF(S100=Aufgaben!C105,0,1) -> 0 | V100: =IF(T100=Aufgaben!D105,0,1) -> 1
L101: ="… um "&ABS(P79)&" nach links verschoben" -> … um 2 nach links verschoben | S101: =IF((P78)>0,IF(ABS(P78)=ABS(P79),"x",""),"") ->  | T101: x | U101: =IF(S101=Aufgaben!C106,0,1) -> 0 | V101: =IF(T101=Aufgaben!D106,0,1) -> 1
L102: ="… um "&ABS(P78)&" nach rechts verschoben" -> … um 4 nach rechts verschoben | S102: =IF((P78)<0,"x","") -> x | U102: =IF(S102=Aufgaben!C107,0,1) -> 1 | V102: =IF(T102=Aufgaben!D107,0,1) -> 0
L103: ="… um "&ABS(P79)&" nach rechts verschoben" -> … um 2 nach rechts verschoben | S103: =IF((P79)<0,IF(ABS(P78)=ABS(P79),"x",""),"") ->  | T103: x | U103: =IF(S103=Aufgaben!C108,0,1) -> 0 | V103: =IF(T103=Aufgaben!D108,0,1) -> 1
L104: ="… um "&ABS(P78)&" nach oben verschoben" -> … um 4 nach oben verschoben | S104: =IF((P79)>0,IF(ABS(P78)=ABS(P79),"x",""),"") ->  | T104: x | U104: =IF(S104=Aufgaben!C109,0,1) -> 0 | V104: =IF(T104=Aufgaben!D109,0,1) -> 1
L105: ="… um "&ABS(P79)&" nach oben verschoben" -> … um 2 nach oben verschoben | S105: =IF((P79)>0,"x","") ->  | T105: x | U105: =IF(S105=Aufgaben!C110,0,1) -> 0 | V105: =IF(T105=Aufgaben!D110,0,1) -> 1
L106: ="… um "&ABS(P78)&" nach unten verschoben" -> … um 4 nach unten verschoben | S106: =IF((P79)<0,IF(ABS(P78)=ABS(P79),"x",""),"") ->  | T106: x | U106: =IF(S106=Aufgaben!C111,0,1) -> 0 | V106: =IF(T106=Aufgaben!D111,0,1) -> 1
L107: ="… um "&ABS(P79)&" nach unten verschoben" -> … um 2 nach unten verschoben | S107: =IF((P79)<0,"x","") -> x | U107: =IF(S107=Aufgaben!C112,0,1) -> 1 | V107: =IF(T107=Aufgaben!D112,0,1) -> 0
B108: =IF(T108<>"",1,0) -> 0 | T108: =IF(SUM(U98:V107)=0,"alles korrekt!","") -> 
A111: 2 | E111: ="Aufgabe "&A111&" "&E112 -> Aufgabe 2 (Normalform) | P111: Scheitelp.form
E112: (Normalform) | M112: Stellen | N112: Koord f | O112: f´´ | P112: Zufallszahlen | AA112: 0 | AB112: 41 | AC112: 1 | AD112: 2 | AE112: 3 | AF112: 4 | AG112: 5 | AH112: 48 | AI112: 6 | AJ112: 7 | AK112: 8 | AL112: 9 | AM112: 43 | AN112: 10 | AO112: 11 | AP112: 12 | AQ112: 13 | AR112: 14 | AS112: 15 | AT112: 16 | AU112: 17 | AV112: 39 | AW112: 18 | AX112: 50 | AY112: 19 | AZ112: 20 | BA112: 21 | BB112: 22 | BC112: 45 | BD112: 23 | BE112: 24 | BF112: 25 | BG112: 26 | BH112: 27 | BI112: 28 | BJ112: 29 | BK112: 30 | BL112: 31 | BM112: 32 | BN112: 47 | BO112: 33 | BP112: 34 | BQ112: 35 | BR112: 36 | BS112: 46 | BT112: 42 | BU112: 38 | BV112: 44 | BW112: 37 | BX112: 40 | BY112: 49 | BZ112: 51 | CA112: 52 | CB112: 53 | CC112: 54 | CD112: 55 | CE112: 56
C113: f(x) | E113: =IF(N114<0,"- ","")&IF(N114>0,"","")&IF(N114=0,"",IF(ABS(N114)=1," x^2 ",ABS(N114)&" x^2 "))&IF(N115>0,IF(N114<>0," + ",""),"")&IF(N115<0," - ","")&IF(N115=0,"",IF(ABS(N115)=1," x ",ABS(N115)&" x "))&IF(N116>0,IF(N114^2+N115^2<>0," + ",""),"")&IF(N116<0," - ","")&IF(N116=0,"",IF(ABS(N116)=1,"1",ABS(N116)&"")) -> 0,5 x^2 - 4 x + 6 | F113: =IF(P113<0,"- ","")&IF(P113>0,"","")&IF(P113=0,"",IF(ABS(P113)=1,"(x ",ABS(P113)&"(x"))&IF(P114>0,IF(P113<>0," + ",""),"")&IF(P114<0," - ","")&IF(P114=0,"",IF(ABS(P114)=1,"1",ABS(P114)&""))&")^2"&IF(P115>0,IF(P113^2+P114^2<>0," + ",""),"")&IF(P115<0," - ","")&IF(P115=0,"",IF(ABS(P115)=1,"1",ABS(P115)&"")) -> 0,5(x - 4)^2 - 2 | H113: ="("&-P114&";"&P115&")" -> (4;-2) | L113: x1 | M113: =HLOOKUP(ID,$AA$112:$CB$120,5) -> -5 | P113: =HLOOKUP(ID,$AA$112:$CB$120,2) -> 0.5 | Z113: a | AA113: 0.5 | AB113: 2 | AC113: 4 | AD113: 0.5 | AE113: -0.5 | AF113: 0.5 | AG113: 4 | AH113: -1 | AI113: -0.25 | AJ113: -4 | AK113: -4 | AL113: -4 | AM113: -0.5 | AN113: 0.5 | AO113: -2 | AP113: 2 | AQ113: 0.25 | AR113: -0.5 | AS113: 2 | AT113: 4 | AU113: 1 | AV113: 0.5 | AW113: 2 | AX113: -0.25 | AY113: -1 | AZ113: -0.25 | BA113: 1 | BB113: 0.25 | BC113: 2 | BD113: 2 | BE113: -2 | BF113: 2 | BG113: 4 | BH113: -0.25 | BI113: 4 | BJ113: 0.5 | BK113: 2 | BL113: -1 | BM113: -1 | BN113: 0.5 | BO113: 0.25 | BP113: -2 | BQ113: -4 | BR113: 1 | BS113: 2 | BT113: 4 | BU113: -2 | BV113: -1 | BW113: 2 | BX113: -0.5 | BY113: -1 | BZ113: 4 | CA113: 4 | CB113: 0.5 | CC113: =(-1)^RANDBETWEEN(0,1)*2^(RANDBETWEEN(-2,2)) -> -2 | CD113: =(-1)^RANDBETWEEN(0,1)*2^(RANDBETWEEN(-2,2)) -> 0.25 | CE113: 0.25
C114: f´(x)= | E114: =IF(O114<0," - ","")&IF(O114>0," + ","")&IF(O114=0,"",IF(ABS(O114)=1," x^2 ",ABS(O114)&" x^2 "))&IF(O115>0,IF(O114<>0," + ",""),"")&IF(O115<0," - ","")&IF(O115=0,"",IF(ABS(O115)=1," x ",ABS(O115)&" x "))&IF(O116>0,IF(O114^2+O115^2<>0," + ",""),"")&IF(O116<0," - ","")&IF(O116=0,"",IF(ABS(O116)=1,"1",ABS(O116)&"")) -> x - 4 | L114: x2 | M114: =HLOOKUP(ID,$AA$112:$CB$120,6) -> 3 | N114: =P113 -> 0.5 | P114: =HLOOKUP(ID,$AA$112:$CB$120,3) -> -4 | Z114: xS | AA114: -4 | AB114: -4 | AC114: -1 | AD114: -3 | AE114: 0 | AF114: 4 | AG114: -2 | AH114: 5 | AI114: 4 | AJ114: 3 | AK114: -3 | AL114: -4 | AM114: 4 | AN114: -3 | AO114: -5 | AP114: -1 | AQ114: -5 | AR114: 0 | AS114: 5 | AT114: -1 | AU114: 0 | AV114: -3 | AW114: 3 | AX114: 0 | AY114: -1 | AZ114: -3 | BA114: -2 | BB114: -1 | BC114: 4 | BD114: 5 | BE114: 1 | BF114: 3 | BG114: 2 | BH114: 3 | BI114: 1 | BJ114: 3 | BK114: 2 | BL114: -1 | BM114: 3 | BN114: 2 | BO114: 4 | BP114: 3 | BQ114: 0 | BR114: 1 | BS114: -5 | BT114: 0 | BU114: -1 | BV114: 4 | BW114: 0 | BX114: 0 | BY114: 1 | BZ114: -5 | CA114: -4 | CB114: 3 | CC114: =RANDBETWEEN(-5,5) -> 0 | CD114: =RANDBETWEEN(-5,5) -> -5 | CE114: -2
L115: x3 | M115: =HLOOKUP(ID,$AA$112:$CB$120,7) -> -1 | N115: =P113*2*P114 -> -4 | O115: =N114*2 -> 1 | P115: =HLOOKUP(ID,$AA$112:$CB$120,4) -> -2 | Z115: yS | AA115: -2 | AB115: -1 | AC115: -3 | AD115: -1 | AE115: 5 | AF115: -2 | AG115: -5 | AH115: 5 | AI115: 4 | AJ115: 4 | AK115: 2 | AL115: 2 | AM115: 2 | AN115: -2 | AO115: 2 | AP115: -4 | AQ115: -3 | AR115: 5 | AS115: -3 | AT115: -1 | AU115: -3 | AV115: -4 | AW115: -3 | AX115: 3 | AY115: 3 | AZ115: 3 | BA115: -5 | BB115: -3 | BC115: -4 | BD115: -4 | BE115: 1 | BF115: -5 | BG115: -1 | BH115: 4 | BI115: -1 | BJ115: -4 | BK115: -3 | BL115: 4 | BM115: 3 | BN115: -2 | BO115: -4 | BP115: 2 | BQ115: 2 | BR115: -1 | BS115: -3 | BT115: -1 | BU115: 4 | BV115: 1 | BW115: -4 | BX115: 5 | BY115: 1 | BZ115: -5 | CA115: -3 | CB115: -1 | CC115: =RANDBETWEEN(1,5)*SIGN(CC113)*(-1) -> 5 | CD115: =RANDBETWEEN(1,5)*SIGN(CD113)*(-1) -> -3 | CE115: -5
L116: x4 | M116: =HLOOKUP(ID,$AA$112:$CB$120,8) -> 3 | N116: =P113*P114^2+P115 -> 6 | O116: =N115 -> -4 | Z116: Stellen | AA116: -5 | AB116: 4 | AC116: -4 | AD116: -1 | AE116: 4 | AF116: 0 | AG116: -4 | AH116: 4 | AI116: 0 | AJ116: 5 | AK116: -5 | AL116: -4 | AM116: 2 | AN116: 5 | AO116: 0 | AP116: -2 | AQ116: 3 | AR116: -2 | AS116: -4 | AT116: -2 | AU116: 0 | AV116: 3 | AW116: -4 | AX116: -1 | AY116: 0 | AZ116: 2 | BA116: -3 | BB116: 4 | BC116: 3 | BD116: 0 | BE116: -1 | BF116: 2 | BG116: 2 | BH116: 3 | BI116: 3 | BJ116: -2 | BK116: 3 | BL116: -2 | BM116: 4 | BN116: 3 | BO116: -2 | BP116: -1 | BQ116: 5 | BR116: 1 | BS116: -3 | BT116: 2 | BU116: -4 | BV116: 1 | BW116: 0 | BX116: 0 | BY116: 4 | BZ116: 2 | CA116: 2 | CB116: -1 | CC116: =RANDBETWEEN(-5,5) -> -4 | CD116: -4 | CE116: -4
A117: * | AA117: 3 | AB117: -3 | AC117: 2 | AD117: 3 | AE117: -4 | AF117: -3 | AG117: 1 | AH117: -3 | AI117: 0 | AJ117: -3 | AK117: -4 | AL117: -1 | AM117: 2 | AN117: -3 | AO117: -3 | AP117: 3 | AQ117: 2 | AR117: 4 | AS117: -3 | AT117: 2 | AU117: -3 | AV117: -4 | AW117: 3 | AX117: -2 | AY117: -5 | AZ117: 3 | BA117: -4 | BB117: 2 | BC117: 4 | BD117: -3 | BE117: 4 | BF117: -3 | BG117: 1 | BH117: 2 | BI117: -2 | BJ117: 3 | BK117: -1 | BL117: 3 | BM117: 3 | BN117: 2 | BO117: -5 | BP117: 1 | BQ117: 0 | BR117: 3 | BS117: -3 | BT117: -1 | BU117: 5 | BV117: -1 | BW117: 0 | BX117: 1 | BY117: 4 | BZ117: -5 | CA117: -4 | CB117: 4 | CC117: =RANDBETWEEN(-5,5) -> 0 | CD117: -1 | CE117: -5
A118: * | G118: -7 | H118: =$K$452*G118^3+$K$453*G118^2+$K$454*G118+$K$455 -> 39 | L118: ="Gegeben ist die Funktion f mit" -> Gegeben ist die Funktion f mit | AA118: -1 | AB118: 1 | AC118: 2 | AD118: 0 | AE118: 1 | AF118: 3 | AG118: 0 | AH118: 5 | AI118: -1 | AJ118: 3 | AK118: 4 | AL118: -4 | AM118: 1 | AN118: -1 | AO118: 2 | AP118: -4 | AQ118: -4 | AR118: 1 | AS118: 1 | AT118: -4 | AU118: 1 | AV118: 5 | AW118: 4 | AX118: -2 | AY118: 2 | AZ118: -4 | BA118: -5 | BB118: 3 | BC118: 4 | BD118: -2 | BE118: -3 | BF118: -4 | BG118: 0 | BH118: 5 | BI118: 4 | BJ118: 0 | BK118: 5 | BL118: 5 | BM118: 4 | BN118: -3 | BO118: 0 | BP118: 1 | BQ118: 4 | BR118: -4 | BS118: -1 | BT118: -5 | BU118: -1 | BV118: -2 | BW118: 3 | BX118: -4 | BY118: 2 | BZ118: -3 | CA118: 0 | CB118: 1 | CC118: =RANDBETWEEN(-5,5) -> 2 | CD118: -3 | CE118: 4
A119: * | G119: =G118+1 -> -6 | H119: 22 | L119: ="f(x)="&E113 -> f(x)=0,5 x^2 - 4 x + 6 | AA119: 3 | AB119: 4 | AC119: 5 | AD119: -3 | AE119: 5 | AF119: 3 | AG119: -4 | AH119: 4 | AI119: -3 | AJ119: -1 | AK119: 1 | AL119: 4 | AM119: 2 | AN119: -1 | AO119: 3 | AP119: 0 | AQ119: 3 | AR119: 5 | AS119: 4 | AT119: 1 | AU119: -1 | AV119: -3 | AW119: -2 | AX119: 0 | AY119: -3 | AZ119: -4 | BA119: -1 | BB119: 0 | BC119: 1 | BD119: -1 | BE119: -4 | BF119: 2 | BG119: 3 | BH119: -1 | BI119: 2 | BJ119: 1 | BK119: 3 | BL119: 2 | BM119: 3 | BN119: 4 | BO119: 4 | BP119: 0 | BQ119: -3 | BR119: 2 | BS119: -3 | BT119: -1 | BU119: 5 | BV119: -2 | BW119: -4 | BX119: -3 | BY119: -4 | BZ119: -4 | CA119: 0 | CB119: 3 | CC119: =RANDBETWEEN(-5,5) -> -4 | CD119: 5 | CE119: -4
A120: * | G120: -5 | H120: 14 | AA120: 3 | AB120: 4 | AC120: -2 | AD120: 4 | AE120: 2 | AF120: 3 | AG120: 5 | AH120: 5 | AI120: 2 | AJ120: -4 | AK120: -2 | AL120: -3 | AM120: 1 | AN120: 3 | AO120: 1 | AP120: -3 | AQ120: -5 | AR120: -1 | AS120: -2 | AT120: 4 | AU120: -5 | AV120: 5 | AW120: 2 | AX120: 1 | AY120: 4 | AZ120: -5 | BA120: 3 | BB120: -3 | BC120: -5 | BD120: -1 | BE120: -1 | BF120: -2 | BG120: 2 | BH120: 5 | BI120: 3 | BJ120: 2 | BK120: 3 | BL120: -1 | BM120: -1 | BN120: 3 | BO120: 3 | BP120: -1 | BQ120: 3 | BR120: 1 | BS120: -5 | BT120: -1 | BU120: 3 | BV120: -1 | BW120: 5 | BX120: -2 | BY120: -2 | BZ120: 4 | CA120: 3 | CB120: 4 | CC120: =RANDBETWEEN(1,5)*(-1)^RANDBETWEEN(0,1) -> -4 | CD120: =RANDBETWEEN(1,5)*(-1)^RANDBETWEEN(0,1) -> -2 | CE120: 3
B121: =IF(T121<>"",1,0) -> 0 | G121: -4 | H121: 12 | I121: a) | L121: ="Gib den y-Achsenabschnitt an." -> Gib den y-Achsenabschnitt an. | S121: =N116 -> 6 | T121: =IF(ISBLANK(Aufgaben!E120),"",IF(Aufgaben!E120=S121,"richtig!","")) -> 
G122: -3 | H122: 13
B123: =IF(T123<>"",1,0) -> 0 | G123: -2 | H123: 14 | I123: b) | L123: Berechne die Nullstellen. Runde auf eine Nachkommastelle. | S123: =ROUND(-P114-(-P115/P113)^0.5,1) -> 2 | T123: =IF(ISBLANK(Aufgaben!E122),"",IF(Aufgaben!E122=S123,"richtig!","")) -> 
B124: =IF(T124<>"",1,0) -> 0 | G124: -1 | H124: 12 | S124: =ROUND(-P114+(-P115/P113)^0.5,1) -> 6 | T124: =IF(ISBLANK(Aufgaben!E123),"",IF(Aufgaben!E123=S124,"richtig!","")) -> 
G125: 0 | H125: 4
B126: =IF(T126<>"",1,0) -> 0 | G126: 1 | H126: -13 | I126: c) | J126: =M113 -> -5 | K126: =P113*(J126+P114)^2+P115 -> 38.5 | L126: ="Welchen Wert nimmt f an der Stelle "&J126&" an?" -> Welchen Wert nimmt f an der Stelle -5 an? | S126: =K126 -> 38.5 | T126: =IF(ISBLANK(Aufgaben!E125),"",IF(Aufgaben!E125=S126,"richtig!","")) -> 
G127: 2 | H127: -42
B128: =IF(T128<>"",1,0) -> 0 | G128: 3 | H128: -86 | I128: d) | J128: =M115 -> -1 | K128: =P113*(J128+P114)^2+P115 -> 10.5 | L128: ="An welcher Stelle nimmt f den Wert "&K128& " an?" -> An welcher Stelle nimmt f den Wert 10,5 an? | S128: =((K128-P115)/P113)^0.5*(-1)-P114 -> -1 | T128: =IF(ISBLANK(Aufgaben!E127),"",IF(Aufgaben!E127=S128,"richtig!","")) -> 
B129: =IF(T129<>"",1,0) -> 0 | S129: =((K128-P115)/P113)^0.5-P114 -> 9 | T129: =IF(ISBLANK(Aufgaben!E128),"",IF(Aufgaben!E128=S129,"richtig!","")) -> 
T131: =IF(ISBLANK(Aufgaben!E135),"","Also ist der Schnittpunkt mit der y-Achse (0;"&S121&")") -> Also ist der Schnittpunkt mit der y-Achse (0;6)
A137: 3 LGS
A138: * | S138: Zufallszahlen Koeff. | Y138: Zufallszahlen x-Koord.
A139: 1 | E139: ="Aufgabe "&A139&" "&E140 -> Aufgabe 1 (Auswertung Diagonalform) | P139: =HLOOKUP(ID,$AA$139:$CB$149,2) -> 1 | S139: =ROUND(RAND()*12-6,0) -> 2 | T139: =ROUND(RAND()*9-4.5,0)/2 -> 1 | Y139: =ROUND(RAND()*16-8,0) -> 4 | AA139: 0 | AB139: 41 | AC139: 1 | AD139: 2 | AE139: 3 | AF139: 4 | AG139: 5 | AH139: 48 | AI139: 6 | AJ139: 7 | AK139: 8 | AL139: 9 | AM139: 43 | AN139: 10 | AO139: 11 | AP139: 12 | AQ139: 13 | AR139: 14 | AS139: 15 | AT139: 16 | AU139: 17 | AV139: 39 | AW139: 18 | AX139: 50 | AY139: 19 | AZ139: 20 | BA139: 21 | BB139: 22 | BC139: 45 | BD139: 23 | BE139: 24 | BF139: 25 | BG139: 26 | BH139: 27 | BI139: 28 | BJ139: 29 | BK139: 30 | BL139: 31 | BM139: 32 | BN139: 47 | BO139: 33 | BP139: 34 | BQ139: 35 | BR139: 36 | BS139: 46 | BT139: 42 | BU139: 38 | BV139: 44 | BW139: 37 | BX139: 40 | BY139: 49 | BZ139: 51 | CA139: 52 | CB139: 53 | CC139: 54 | CD139: 55 | CE139: 56
A140: * | E140: (Auswertung Diagonalform) | P140: =HLOOKUP(ID,$AA$139:$CB$149,3) -> -3 | S140: -1 | Y140: =IF(Z140<>Y139,Z140,Y139+1) -> 2 | Z140: =ROUND(RAND()*12-6,0) -> 2 | AA140: 1 | AB140: -1 | AC140: -1 | AD140: -1 | AE140: 4 | AF140: 2 | AG140: 3 | AH140: 5 | AI140: 0 | AJ140: -2 | AK140: 4 | AL140: -4 | AM140: 1 | AN140: -5 | AO140: 3 | AP140: 0 | AQ140: 0 | AR140: -1 | AS140: 0 | AT140: 0 | AU140: 2 | AV140: 0 | AW140: 1 | AX140: -5 | AY140: 1 | AZ140: -4 | BA140: -1 | BB140: 5 | BC140: -5 | BD140: 1 | BE140: -3 | BF140: 5 | BG140: -2 | BH140: -3 | BI140: -2 | BJ140: -2 | BK140: -3 | BL140: -1 | BM140: 3 | BN140: 2 | BO140: 0 | BP140: 1 | BQ140: 0 | BR140: 1 | BS140: 1 | BT140: -2 | BU140: -5 | BV140: -4 | BW140: 5 | BX140: -3 | BY140: -2 | BZ140: 3 | CA140: -3 | CB140: 5 | CC140: =RANDBETWEEN(-5,5) -> 0 | CD140: =RANDBETWEEN(-5,5) -> 0 | CE140: =RANDBETWEEN(-5,5) -> 3
A141: * | P141: =HLOOKUP(ID,$AA$139:$CB$149,4) -> 5 | S141: 3 | Y141: =IF((Z141-Y140)*(Z141-Y139)<>0,Z141,MAX(Y139,Y140)+1) -> 1 | Z141: =ROUND(RAND()*12-6,0) -> 1 | AA141: -3 | AB141: 3 | AC141: -1 | AD141: -2 | AE141: -5 | AF141: 2 | AG141: -5 | AH141: 1 | AI141: -2 | AJ141: 0 | AK141: 5 | AL141: -1 | AM141: -2 | AN141: -3 | AO141: 4 | AP141: 1 | AQ141: -5 | AR141: 2 | AS141: -3 | AT141: 2 | AU141: 1 | AV141: 4 | AW141: 5 | AX141: 0 | AY141: -3 | AZ141: 1 | BA141: 4 | BB141: -3 | BC141: 4 | BD141: -5 | BE141: -5 | BF141: -2 | BG141: -2 | BH141: 3 | BI141: -1 | BJ141: -4 | BK141: 5 | BL141: -5 | BM141: -3 | BN141: 2 | BO141: 5 | BP141: 0 | BQ141: 2 | BR141: 0 | BS141: 5 | BT141: 2 | BU141: 4 | BV141: 5 | BW141: 0 | BX141: -2 | BY141: -3 | BZ141: -1 | CA141: -3 | CB141: 0 | CC141: =RANDBETWEEN(-5,5) -> 0 | CD141: 4 | CE141: -3
A142: * | M142: =HLOOKUP(ID,$AA$139:$CB$149,5) -> -1 | N142: =HLOOKUP(ID,$AA$139:$CB$149,8) -> -3 | O142: =HLOOKUP(ID,$AA$139:$CB$151,11) -> 1 | P142: =MMULT(M142:O144,P139:P141) -> 13 | S142: -2 | T142: =ROUND(RAND()*12-6,0) -> 2 | U142: 3 | AA142: 5 | AB142: -4 | AC142: -2 | AD142: -5 | AE142: -5 | AF142: 0 | AG142: 0 | AH142: 1 | AI142: 2 | AJ142: 4 | AK142: -1 | AL142: 5 | AM142: -2 | AN142: 1 | AO142: 3 | AP142: -3 | AQ142: 1 | AR142: -2 | AS142: -3 | AT142: -1 | AU142: 5 | AV142: -1 | AW142: -1 | AX142: 0 | AY142: -1 | AZ142: -4 | BA142: -3 | BB142: 5 | BC142: -1 | BD142: 2 | BE142: 3 | BF142: 4 | BG142: 3 | BH142: 2 | BI142: 3 | BJ142: -3 | BK142: -4 | BL142: -3 | BM142: 2 | BN142: -3 | BO142: 2 | BP142: 0 | BQ142: 5 | BR142: -5 | BS142: 5 | BT142: -1 | BU142: 4 | BV142: 2 | BW142: -1 | BX142: 4 | BY142: 0 | BZ142: -1 | CA142: -1 | CB142: 3 | CC142: =RANDBETWEEN(-5,5) -> -4 | CD142: -4 | CE142: 1
A143: * | M143: =HLOOKUP(ID,$AA$139:$CB$149,6) -> 0 | N143: =HLOOKUP(ID,$AA$139:$CB$149,9) -> 4 | O143: =HLOOKUP(ID,$AA$139:$CB$151,12) -> -2 | P143: -22 | S143: -3 | T143: 5 | U143: 5 | Z143: 5 | AA143: -1 | AB143: -4 | AC143: 1 | AD143: -4 | AE143: 2 | AF143: 3 | AG143: 4 | AH143: -1 | AI143: -2 | AJ143: 3 | AK143: 2 | AL143: 3 | AM143: 4 | AN143: 2 | AO143: -4 | AP143: -3 | AQ143: -2 | AR143: 3 | AS143: -2 | AT143: -3 | AU143: -4 | AV143: -3 | AW143: -1 | AX143: 3 | AY143: 3 | AZ143: -4 | BA143: 3 | BB143: 4 | BC143: -3 | BD143: 3 | BE143: -3 | BF143: 3 | BG143: -1 | BH143: 3 | BI143: 4 | BJ143: -2 | BK143: -4 | BL143: 4 | BM143: -3 | BN143: -2 | BO143: 4 | BP143: -1 | BQ143: 4 | BR143: 4 | BS143: 1 | BT143: 2 | BU143: 4 | BV143: -2 | BW143: -1 | BX143: 1 | BY143: -1 | BZ143: -1 | CA143: 4 | CB143: -2 | CC143: =RANDBETWEEN(1,4)*(-1)^RANDBETWEEN(1,2) -> 2 | CD143: =RANDBETWEEN(1,4)*(-1)^RANDBETWEEN(1,2) -> 1 | CE143: =RANDBETWEEN(1,4)*(-1)^RANDBETWEEN(1,2) -> 4
A144: * | M144: =HLOOKUP(ID,$AA$139:$CB$149,7) -> 0 | N144: =HLOOKUP(ID,$AA$139:$CB$149,10) -> 0 | O144: =HLOOKUP(ID,$AA$139:$CB$151,13) -> -2 | P144: -10 | S144: 6 | T144: 2 | U144: 5 | W144: muss Null sein! | Z144: 6 | AA144: 0 | AB144: 0 | AC144: 0 | AD144: 0 | AE144: 0 | AF144: 0 | AG144: 0 | AH144: 0 | AI144: 0 | AJ144: 0 | AK144: 0 | AL144: 0 | AM144: 0 | AN144: 0 | AO144: 0 | AP144: 0 | AQ144: 0 | AR144: 0 | AS144: 0 | AT144: 0 | AU144: 0 | AV144: 0 | AW144: 0 | AX144: 0 | AY144: 0 | AZ144: 0 | BA144: 0 | BB144: 0 | BC144: 0 | BD144: 0 | BE144: 0 | BF144: 0 | BG144: 0 | BH144: 0 | BI144: 0 | BJ144: 0 | BK144: 0 | BL144: 0 | BM144: 0 | BN144: 0 | BO144: 0 | BP144: 0 | BQ144: 0 | BR144: 0 | BS144: 0 | BT144: 0 | BU144: 0 | BV144: 0 | BW144: 0 | BX144: 0 | BY144: 0 | BZ144: 0 | CA144: 0 | CB144: 0 | CC144: 0 | CD144: 0 | CE144: 0
A145: * | W145: muss Null sein! | Z145: 7 | AA145: 0 | AB145: 0 | AC145: 0 | AD145: 0 | AE145: 0 | AF145: 0 | AG145: 0 | AH145: 0 | AI145: 0 | AJ145: 0 | AK145: 0 | AL145: 0 | AM145: 0 | AN145: 0 | AO145: 0 | AP145: 0 | AQ145: 0 | AR145: 0 | AS145: 0 | AT145: 0 | AU145: 0 | AV145: 0 | AW145: 0 | AX145: 0 | AY145: 0 | AZ145: 0 | BA145: 0 | BB145: 0 | BC145: 0 | BD145: 0 | BE145: 0 | BF145: 0 | BG145: 0 | BH145: 0 | BI145: 0 | BJ145: 0 | BK145: 0 | BL145: 0 | BM145: 0 | BN145: 0 | BO145: 0 | BP145: 0 | BQ145: 0 | BR145: 0 | BS145: 0 | BT145: 0 | BU145: 0 | BV145: 0 | BW145: 0 | BX145: 0 | BY145: 0 | BZ145: 0 | CA145: 0 | CB145: 0 | CC145: 0 | CD145: 0 | CE145: 0
A146: * | M146: =M142 -> -1 | N146: -3 | O146: 1 | P146: =P142 -> 13 | Z146: 8 | AA146: -3 | AB146: -1 | AC146: -5 | AD146: 4 | AE146: 0 | AF146: 4 | AG146: 5 | AH146: -2 | AI146: -3 | AJ146: 4 | AK146: -4 | AL146: 5 | AM146: 4 | AN146: -2 | AO146: 3 | AP146: -3 | AQ146: 2 | AR146: 0 | AS146: 0 | AT146: 3 | AU146: -2 | AV146: -4 | AW146: -1 | AX146: 3 | AY146: 0 | AZ146: -4 | BA146: 3 | BB146: -2 | BC146: -1 | BD146: 1 | BE146: 0 | BF146: -3 | BG146: -3 | BH146: -5 | BI146: 3 | BJ146: 3 | BK146: 5 | BL146: 0 | BM146: -4 | BN146: -3 | BO146: -5 | BP146: 4 | BQ146: 4 | BR146: 1 | BS146: 5 | BT146: 1 | BU146: 1 | BV146: 2 | BW146: -5 | BX146: 2 | BY146: -3 | BZ146: -2 | CA146: 5 | CB146: 0 | CC146: =RANDBETWEEN(-5,5) -> -5 | CD146: =RANDBETWEEN(-5,5) -> -5 | CE146: =RANDBETWEEN(-5,5) -> 3
A147: * | M147: 0 | N147: =N143 -> 4 | O147: -2 | P147: =P143 -> -22 | Z147: 9 | AA147: 4 | AB147: 2 | AC147: -4 | AD147: 3 | AE147: -3 | AF147: 3 | AG147: -4 | AH147: 2 | AI147: -1 | AJ147: 2 | AK147: -2 | AL147: -2 | AM147: -1 | AN147: 1 | AO147: 3 | AP147: -4 | AQ147: 1 | AR147: 4 | AS147: 3 | AT147: 3 | AU147: -4 | AV147: 1 | AW147: -4 | AX147: -2 | AY147: 2 | AZ147: -3 | BA147: -3 | BB147: -3 | BC147: -1 | BD147: -3 | BE147: -4 | BF147: -3 | BG147: 2 | BH147: -2 | BI147: -2 | BJ147: -1 | BK147: -3 | BL147: -1 | BM147: 4 | BN147: 3 | BO147: 3 | BP147: 4 | BQ147: 3 | BR147: 2 | BS147: 2 | BT147: 1 | BU147: -3 | BV147: -3 | BW147: 2 | BX147: 3 | BY147: 4 | BZ147: 1 | CA147: -3 | CB147: -1 | CC147: =RANDBETWEEN(1,4)*(-1)^RANDBETWEEN(1,2) -> 2 | CD147: =RANDBETWEEN(1,4)*(-1)^RANDBETWEEN(1,2) -> 4 | CE147: =RANDBETWEEN(1,4)*(-1)^RANDBETWEEN(1,2) -> 1
A148: * | M148: =M144 -> 0 | N148: =N144 -> 0 | O148: =O144 -> -2 | P148: =P144 -> -10 | W148: muss Null sein! | Z148: 10 | AA148: 0 | AB148: 0 | AC148: 0 | AD148: 0 | AE148: 0 | AF148: 0 | AG148: 0 | AH148: 0 | AI148: 0 | AJ148: 0 | AK148: 0 | AL148: 0 | AM148: 0 | AN148: 0 | AO148: 0 | AP148: 0 | AQ148: 0 | AR148: 0 | AS148: 0 | AT148: 0 | AU148: 0 | AV148: 0 | AW148: 0 | AX148: 0 | AY148: 0 | AZ148: 0 | BA148: 0 | BB148: 0 | BC148: 0 | BD148: 0 | BE148: 0 | BF148: 0 | BG148: 0 | BH148: 0 | BI148: 0 | BJ148: 0 | BK148: 0 | BL148: 0 | BM148: 0 | BN148: 0 | BO148: 0 | BP148: 0 | BQ148: 0 | BR148: 0 | BS148: 0 | BT148: 0 | BU148: 0 | BV148: 0 | BW148: 0 | BX148: 0 | BY148: 0 | BZ148: 0 | CA148: 0 | CB148: 0 | CC148: 0 | CD148: 0 | CE148: 0
Z149: 11 | AA149: 1 | AB149: 1 | AC149: -2 | AD149: 4 | AE149: -2 | AF149: 4 | AG149: -1 | AH149: 4 | AI149: -2 | AJ149: 3 | AK149: -4 | AL149: -4 | AM149: -2 | AN149: 3 | AO149: -2 | AP149: 2 | AQ149: -2 | AR149: 4 | AS149: -4 | AT149: 2 | AU149: -3 | AV149: -4 | AW149: -2 | AX149: -3 | AY149: 2 | AZ149: -1 | BA149: -3 | BB149: 3 | BC149: 2 | BD149: -3 | BE149: 1 | BF149: 1 | BG149: -4 | BH149: 1 | BI149: 2 | BJ149: 3 | BK149: 4 | BL149: -3 | BM149: -2 | BN149: 4 | BO149: -3 | BP149: -1 | BQ149: -1 | BR149: 3 | BS149: 1 | BT149: 2 | BU149: 4 | BV149: -4 | BW149: -3 | BX149: 4 | BY149: -3 | BZ149: 3 | CA149: 1 | CB149: -3 | CC149: =RANDBETWEEN(1,4)*(-1)^RANDBETWEEN(1,2) -> -3 | CD149: =RANDBETWEEN(1,4)*(-1)^RANDBETWEEN(1,2) -> 1 | CE149: =RANDBETWEEN(1,4)*(-1)^RANDBETWEEN(1,2) -> -3
Z150: 12 | AA150: -2 | AB150: 3 | AC150: -2 | AD150: 2 | AE150: 4 | AF150: -4 | AG150: 1 | AH150: 4 | AI150: 2 | AJ150: 4 | AK150: 4 | AL150: -2 | AM150: -4 | AN150: 1 | AO150: -3 | AP150: -1 | AQ150: 1 | AR150: -4 | AS150: 2 | AT150: 3 | AU150: 1 | AV150: 2 | AW150: -3 | AX150: -4 | AY150: -1 | AZ150: -4 | BA150: 3 | BB150: -1 | BC150: -1 | BD150: 3 | BE150: -4 | BF150: -2 | BG150: -4 | BH150: -4 | BI150: -3 | BJ150: 4 | BK150: -3 | BL150: -3 | BM150: 3 | BN150: 4 | BO150: -2 | BP150: 2 | BQ150: 1 | BR150: -2 | BS150: 1 | BT150: 2 | BU150: -2 | BV150: -3 | BW150: -3 | BX150: 3 | BY150: -3 | BZ150: -4 | CA150: -1 | CB150: 3 | CC150: =RANDBETWEEN(1,4)*(-1)^RANDBETWEEN(1,2) -> -3 | CD150: 4 | CE150: 1
M151: =M142 -> -1 | N151: -3 | O151: 1 | P151: =P146 -> 13 | Z151: 13 | AA151: -2 | AB151: -3 | AC151: 3 | AD151: -1 | AE151: -1 | AF151: -3 | AG151: 1 | AH151: -1 | AI151: 4 | AJ151: -3 | AK151: -1 | AL151: -2 | AM151: -1 | AN151: 2 | AO151: 4 | AP151: 3 | AQ151: -2 | AR151: 4 | AS151: 4 | AT151: -3 | AU151: 2 | AV151: 1 | AW151: -1 | AX151: 3 | AY151: -4 | AZ151: 3 | BA151: 2 | BB151: 3 | BC151: 2 | BD151: 2 | BE151: -2 | BF151: 1 | BG151: 4 | BH151: 3 | BI151: 1 | BJ151: -2 | BK151: 4 | BL151: 3 | BM151: 3 | BN151: -4 | BO151: 2 | BP151: 3 | BQ151: -4 | BR151: -3 | BS151: 2 | BT151: -1 | BU151: 1 | BV151: 1 | BW151: -2 | BX151: -4 | BY151: 2 | BZ151: 1 | CA151: -1 | CB151: 4 | CC151: =RANDBETWEEN(1,4)*(-1)^RANDBETWEEN(1,2) -> -4 | CD151: -4 | CE151: -4
M152: 0 | N152: 4 | O152: -2 | P152: =P147 -> -22
B153: =IF(T153<>"",1,0) -> 0 | M153: 0 | N153: 0 | O153: -2 | P153: =P148 -> -10 | T153: =IF((Aufgaben!E139-hidden!P139)^2+(Aufgaben!E140-hidden!P140)^2+(Aufgaben!E141-hidden!P141)^2=0,"korrekt!","") -> 
A156: *
A157: *
A158: 2 | E158: ="Aufgabe "&A158&" "&E159 -> Aufgabe 2 (zwei Gleichungen, zwei Variable, Schritt für Schritt mit Additionsverfahren) | O158: a= | P158: =HLOOKUP(ID,$AA$158:$CB$170,3) -> -5 | Z158: 1 | AA158: 0 | AB158: 41 | AC158: 1 | AD158: 2 | AE158: 3 | AF158: 4 | AG158: 5 | AH158: 48 | AI158: 6 | AJ158: 7 | AK158: 8 | AL158: 9 | AM158: 43 | AN158: 10 | AO158: 11 | AP158: 12 | AQ158: 13 | AR158: 14 | AS158: 15 | AT158: 16 | AU158: 17 | AV158: 39 | AW158: 18 | AX158: 50 | AY158: 19 | AZ158: 20 | BA158: 21 | BB158: 22 | BC158: 45 | BD158: 23 | BE158: 24 | BF158: 25 | BG158: 26 | BH158: 27 | BI158: 28 | BJ158: 29 | BK158: 30 | BL158: 31 | BM158: 32 | BN158: 47 | BO158: 33 | BP158: 34 | BQ158: 35 | BR158: 36 | BS158: 46 | BT158: 42 | BU158: 38 | BV158: 44 | BW158: 37 | BX158: 40 | BY158: 49 | BZ158: 51 | CA158: 52 | CB158: 53 | CC158: 54 | CD158: 55 | CE158: 56
A159: * | B159: =IF(T159<>"",1,0) -> 0 | E159: (zwei Gleichungen, zwei Variable, Schritt für Schritt mit Additionsverfahren) | O159: b= | P159: =HLOOKUP(ID,$AA$158:$CB$170,4) -> 3 | T159: =IF(ISBLANK(Aufgaben!E154),"",IF(Aufgaben!E154=hidden!P159,"Ja, genau","")) ->  | Z159: 2 | AA159: 0 | AB159: 4 | AC159: 5 | AD159: 3 | AE159: -1 | AF159: -4 | AG159: -3 | AH159: 4 | AI159: 4 | AJ159: -2 | AK159: 0 | AL159: -5 | AM159: -1 | AN159: 1 | AO159: -3 | AP159: -2 | AQ159: 2 | AR159: -5 | AS159: -2 | AT159: 4 | AU159: 3 | AV159: -3 | AW159: 5 | AX159: 3 | AY159: -1 | AZ159: -4 | BA159: -5 | BB159: 0 | BC159: -4 | BD159: -5 | BE159: -3 | BF159: -1 | BG159: -3 | BH159: 1 | BI159: 4 | BJ159: 5 | BK159: -2 | BL159: -2 | BM159: 0 | BN159: -3 | BO159: 2 | BP159: 2 | BQ159: 1 | BR159: -5 | BS159: -3 | BT159: 3 | BU159: 3 | BV159: -2 | BW159: 4 | BX159: 0 | BY159: 5 | BZ159: 5 | CA159: -4 | CB159: 0 | CC159: =RANDBETWEEN(-5,5) -> -3 | CD159: =RANDBETWEEN(-5,5) -> -2 | CE159: =RANDBETWEEN(-5,5) -> 2
A160: * | B160: =IF(T160<>"",1,0) -> 0 | P160: 0 | T160: =IF(ISBLANK(Aufgaben!E155),"",IF(Aufgaben!E155=P158,"Ja, genau","")) ->  | Z160: 3 | AA160: -5 | AB160: 5 | AC160: -4 | AD160: 3 | AE160: -6 | AF160: 3 | AG160: 1 | AH160: -2 | AI160: 2 | AJ160: 2 | AK160: -4 | AL160: 6 | AM160: -1 | AN160: 6 | AO160: 3 | AP160: 6 | AQ160: -1 | AR160: 6 | AS160: 2 | AT160: -3 | AU160: 4 | AV160: 6 | AW160: 4 | AX160: -5 | AY160: -3 | AZ160: 3 | BA160: 5 | BB160: 3 | BC160: -4 | BD160: 3 | BE160: 6 | BF160: 2 | BG160: -6 | BH160: -1 | BI160: 1 | BJ160: -4 | BK160: -5 | BL160: -6 | BM160: 6 | BN160: -5 | BO160: 2 | BP160: 2 | BQ160: -4 | BR160: -3 | BS160: -2 | BT160: 3 | BU160: -3 | BV160: -4 | BW160: 6 | BX160: -5 | BY160: -4 | BZ160: 1 | CA160: 1 | CB160: 2 | CC160: =RANDBETWEEN(1,6)*(-1)^RANDBETWEEN(1,2) -> -4 | CD160: =RANDBETWEEN(1,6)*(-1)^RANDBETWEEN(1,2) -> 2 | CE160: =RANDBETWEEN(1,6)*(-1)^RANDBETWEEN(1,2) -> -6
A161: * | M161: =HLOOKUP(ID,$AA$158:$CB$170,5) -> 3 | N161: =HLOOKUP(ID,$AA$158:$CB$170,8) -> 5 | O161: =HLOOKUP(ID,$AA$158:$CB$170,11) -> 0 | P161: =MMULT(M161:O163,P158:P160) -> 0 | Z161: 4 | AA161: 3 | AB161: 2 | AC161: 5 | AD161: -1 | AE161: 3 | AF161: 2 | AG161: 3 | AH161: 3 | AI161: -3 | AJ161: -5 | AK161: -5 | AL161: -4 | AM161: 2 | AN161: 2 | AO161: -4 | AP161: -3 | AQ161: 0 | AR161: 3 | AS161: 4 | AT161: 4 | AU161: -3 | AV161: -1 | AW161: 2 | AX161: 5 | AY161: -3 | AZ161: 5 | BA161: -5 | BB161: -3 | BC161: 3 | BD161: -3 | BE161: -3 | BF161: 1 | BG161: -2 | BH161: 1 | BI161: 2 | BJ161: 5 | BK161: -2 | BL161: 1 | BM161: -4 | BN161: 4 | BO161: 1 | BP161: 3 | BQ161: -3 | BR161: 0 | BS161: 5 | BT161: 4 | BU161: -4 | BV161: -3 | BW161: -1 | BX161: -4 | BY161: -1 | BZ161: -1 | CA161: -2 | CB161: -5 | CC161: =RANDBETWEEN(-5,5) -> -2 | CD161: =RANDBETWEEN(-5,5) -> -4 | CE161: =RANDBETWEEN(-5,5) -> 1
A162: * | M162: =HLOOKUP(ID,$AA$158:$CB$170,6) -> -2 | N162: =HLOOKUP(ID,$AA$158:$CB$170,9) -> -4 | O162: =HLOOKUP(ID,$AA$158:$CB$170,12) -> 0 | P162: -2 | Z162: 5 | AA162: 3 | AB162: -2 | AC162: -1 | AD162: 4 | AE162: -2 | AF162: -3 | AG162: 4 | AH162: 1 | AI162: 2 | AJ162: 1 | AK162: 1 | AL162: 1 | AM162: -1 | AN162: -3 | AO162: -3 | AP162: 3 | AQ162: 3 | AR162: 4 | AS162: -1 | AT162: -1 | AU162: 4 | AV162: 2 | AW162: -1 | AX162: -4 | AY162: 3 | AZ162: 4 | BA162: 3 | BB162: 2 | BC162: -3 | BD162: 1 | BE162: -3 | BF162: -1 | BG162: 1 | BH162: 2 | BI162: 1 | BJ162: -2 | BK162: 2 | BL162: -4 | BM162: 2 | BN162: -1 | BO162: 3 | BP162: 1 | BQ162: -3 | BR162: 4 | BS162: -3 | BT162: -2 | BU162: 3 | BV162: 1 | BW162: 4 | BX162: 1 | BY162: -1 | BZ162: -2 | CA162: 4 | CB162: 2 | CC162: =RANDBETWEEN(1,4)*(-1)^RANDBETWEEN(1,2) -> -4 | CD162: =RANDBETWEEN(1,4)*(-1)^RANDBETWEEN(1,2) -> 3 | CE162: =RANDBETWEEN(1,4)*(-1)^RANDBETWEEN(1,2) -> -2
A163: * | B163: =IF(T163<>"",1,0) -> 0 | M163: 0 | N163: =HLOOKUP(ID,$AA$158:$CB$170,10) -> 0 | O163: =HLOOKUP(ID,$AA$158:$CB$170,13) -> 0 | P163: 0 | T163: =IF(Aufgaben!E148^2+Aufgaben!E149^2=0,"",IF(Aufgaben!E148*M161+Aufgaben!E149*M162=0,"So geht es! Beide Einträge passen zueinander.","")) ->  | Z163: 6 | AA163: -2 | AB163: -1 | AC163: 3 | AD163: -1 | AE163: -4 | AF163: 2 | AG163: 4 | AH163: -2 | AI163: 4 | AJ163: 4 | AK163: 1 | AL163: -3 | AM163: 3 | AN163: 2 | AO163: 3 | AP163: -1 | AQ163: -4 | AR163: 2 | AS163: 1 | AT163: 3 | AU163: -2 | AV163: -4 | AW163: 2 | AX163: 1 | AY163: -2 | AZ163: -2 | BA163: 2 | BB163: -2 | BC163: -2 | BD163: 3 | BE163: -1 | BF163: 3 | BG163: -3 | BH163: 2 | BI163: 4 | BJ163: 4 | BK163: 3 | BL163: 4 | BM163: -1 | BN163: 3 | BO163: 3 | BP163: 4 | BQ163: 4 | BR163: 2 | BS163: 2 | BT163: 3 | BU163: -3 | BV163: 4 | BW163: 1 | BX163: 1 | BY163: -2 | BZ163: -3 | CA163: 3 | CB163: -4 | CC163: =RANDBETWEEN(1,4)*(-1)^RANDBETWEEN(1,2) -> -2 | CD163: -1 | CE163: -2
A164: * | Z164: 7 | AA164: 1
A165: * | E165: =IF(hidden!M161<0," - ","")&IF(hidden!M161=0,"",IF(ABS(hidden!M161)=1," a ",ABS(hidden!M161)&" a "))&IF(hidden!N161>0,IF(hidden!M161<>0," + ",""),"")&IF(hidden!N161<0," - ","")&IF(hidden!N161=0,"",IF(ABS(hidden!N161)=1," b ",ABS(hidden!N161)&" b "))&IF(hidden!O161>0,IF(hidden!M161^2+hidden!N161^2<>0," + ",""),"")&IF(hidden!O161<0," - ","")&IF(hidden!O161=0,"",IF(ABS(hidden!O161)=1," c ",ABS(hidden!O161)&" c "))&" = "&hidden!P161 -> 3 a + 5 b = 0 | M165: =M161 -> 3 | N165: 5 | O165: 0 | P165: =P161 -> 0 | R165: =Aufgaben!E148 -> 0 | T165: =IF(M161*R165+M162*R166=0,"Beide Einträge passen zueinander!","") -> Beide Einträge passen zueinander! | Z165: 8 | AA165: 5 | AB165: -6 | AC165: -3 | AD165: 2 | AE165: 1 | AF165: 6 | AG165: -4 | AH165: -4 | AI165: 2 | AJ165: -6 | AK165: -1 | AL165: 6 | AM165: 5 | AN165: -5 | AO165: -3 | AP165: 6 | AQ165: -5 | AR165: -5 | AS165: -3 | AT165: 4 | AU165: -4 | AV165: -2 | AW165: 2 | AX165: 2 | AY165: -2 | AZ165: -4 | BA165: 3 | BB165: 1 | BC165: 4 | BD165: -1 | BE165: 6 | BF165: -6 | BG165: 5 | BH165: -2 | BI165: -2 | BJ165: -4 | BK165: -6 | BL165: -5 | BM165: 6 | BN165: -4 | BO165: 1 | BP165: -1 | BQ165: 4 | BR165: -3 | BS165: 5 | BT165: 2 | BU165: 1 | BV165: -3 | BW165: 5 | BX165: -6 | BY165: 5 | BZ165: -3 | CA165: 3 | CB165: -1 | CC165: =RANDBETWEEN(1,6)*(-1)^RANDBETWEEN(1,2) -> -4 | CD165: =RANDBETWEEN(1,6)*(-1)^RANDBETWEEN(1,2) -> 3 | CE165: -6
A166: * | E166: =IF(hidden!M162<0," - ","")&IF(hidden!M162=0,"",IF(ABS(hidden!M162)=1," a ",ABS(hidden!M162)&" a "))&IF(hidden!N162>0,IF(hidden!M162<>0," + ",""),"")&IF(hidden!N162<0," - ","")&IF(hidden!N162=0,"",IF(ABS(hidden!N162)=1," b ",ABS(hidden!N162)&" b "))&IF(hidden!O162>0,IF(hidden!M162^2+hidden!N162^2<>0," + ",""),"")&IF(hidden!O162<0," - ","")&IF(hidden!O162=0,"",IF(ABS(hidden!O162)=1," c ",ABS(hidden!O162)&" c "))&" = "&hidden!P162 -> - 2 a - 4 b = -2 | M166: =M162 -> -2 | N166: =N162 -> -4 | O166: =O162 -> 0 | P166: =P162 -> -2 | R166: =Aufgaben!E149 -> 0 | W166: WENNABFRAGE | Z166: 9 | AA166: -4 | AB166: 4 | AC166: -1 | AD166: 2 | AE166: -3 | AF166: -3 | AG166: -1 | AH166: 3 | AI166: -3 | AJ166: -3 | AK166: 2 | AL166: -3 | AM166: -2 | AN166: -2 | AO166: 4 | AP166: -4 | AQ166: 3 | AR166: -4 | AS166: 4 | AT166: -3 | AU166: 1 | AV166: 3 | AW166: -1 | AX166: 2 | AY166: 4 | AZ166: -3 | BA166: -3 | BB166: -2 | BC166: -2 | BD166: -2 | BE166: 1 | BF166: 2 | BG166: 4 | BH166: 4 | BI166: -1 | BJ166: -2 | BK166: 4 | BL166: 4 | BM166: 4 | BN166: -2 | BO166: 2 | BP166: -3 | BQ166: 3 | BR166: -1 | BS166: 2 | BT166: -4 | BU166: -2 | BV166: 1 | BW166: 2 | BX166: 2 | BY166: -1 | BZ166: 2 | CA166: -4 | CB166: -1 | CC166: =IF(CC162/CC163=CC165/CC171,CC171+1,CC171) -> 4 | CD166: =IF(CD162/CD163=CD165/CD171,CD171+1,CD171) -> 0 | CE166: -2
A167: * | M167: =M163 -> 0 | N167: =N163 -> 0 | O167: =O163 -> 0 | P167: =P163 -> 0 | Z167: 10 | AA167: 0 | AB167: 0 | AC167: 0 | AD167: 0 | AE167: 0 | AF167: 0 | AG167: 0 | AH167: 0 | AI167: 0 | AJ167: 0 | AK167: 0 | AL167: 0 | AM167: 0 | AN167: 0 | AO167: 0 | AP167: 0 | AQ167: 0 | AR167: 0 | AS167: 0 | AT167: 0 | AU167: 0 | AV167: 0 | AW167: 0 | AX167: 0 | AY167: 0 | AZ167: 0 | BA167: 0 | BB167: 0 | BC167: 0 | BD167: 0 | BE167: 0 | BF167: 0 | BG167: 0 | BH167: 0 | BI167: 0 | BJ167: 0 | BK167: 0 | BL167: 0 | BM167: 0 | BN167: 0 | BO167: 0 | BP167: 0 | BQ167: 0 | BR167: 0 | BS167: 0 | BT167: 0 | BU167: 0 | BV167: 0 | BW167: 0 | BX167: 0 | BY167: 0 | BZ167: 0 | CA167: 0 | CB167: 0 | CC167: 0 | CD167: 0 | CE167: 0
W168: muss Null sein! | Z168: 11 | AA168: 0 | AB168: 0 | AC168: 0 | AD168: 0 | AE168: 0 | AF168: 0 | AG168: 0 | AH168: 0 | AI168: 0 | AJ168: 0 | AK168: 0 | AL168: 0 | AM168: 0 | AN168: 0 | AO168: 0 | AP168: 0 | AQ168: 0 | AR168: 0 | AS168: 0 | AT168: 0 | AU168: 0 | AV168: 0 | AW168: 0 | AX168: 0 | AY168: 0 | AZ168: 0 | BA168: 0 | BB168: 0 | BC168: 0 | BD168: 0 | BE168: 0 | BF168: 0 | BG168: 0 | BH168: 0 | BI168: 0 | BJ168: 0 | BK168: 0 | BL168: 0 | BM168: 0 | BN168: 0 | BO168: 0 | BP168: 0 | BQ168: 0 | BR168: 0 | BS168: 0 | BT168: 0 | BU168: 0 | BV168: 0 | BW168: 0 | BX168: 0 | BY168: 0 | BZ168: 0 | CA168: 0 | CB168: 0 | CC168: 0 | CD168: 0 | CE168: 0
Z169: 12 | AA169: 0 | AB169: 0 | AC169: 0 | AD169: 0 | AE169: 0 | AF169: 0 | AG169: 0 | AH169: 0 | AI169: 0 | AJ169: 0 | AK169: 0 | AL169: 0 | AM169: 0 | AN169: 0 | AO169: 0 | AP169: 0 | AQ169: 0 | AR169: 0 | AS169: 0 | AT169: 0 | AU169: 0 | AV169: 0 | AW169: 0 | AX169: 0 | AY169: 0 | AZ169: 0 | BA169: 0 | BB169: 0 | BC169: 0 | BD169: 0 | BE169: 0 | BF169: 0 | BG169: 0 | BH169: 0 | BI169: 0 | BJ169: 0 | BK169: 0 | BL169: 0 | BM169: 0 | BN169: 0 | BO169: 0 | BP169: 0 | BQ169: 0 | BR169: 0 | BS169: 0 | BT169: 0 | BU169: 0 | BV169: 0 | BW169: 0 | BX169: 0 | BY169: 0 | BZ169: 0 | CA169: 0 | CB169: 0 | CC169: 0 | CD169: 0 | CE169: 0
M170: =M161 -> 3 | N170: 5 | O170: 0 | P170: =P165 -> 0 | Z170: 13 | AA170: 0 | AB170: 0 | AC170: 0 | AD170: 0 | AE170: 0 | AF170: 0 | AG170: 0 | AH170: 0 | AI170: 0 | AJ170: 0 | AK170: 0 | AL170: 0 | AM170: 0 | AN170: 0 | AO170: 0 | AP170: 0 | AQ170: 0 | AR170: 0 | AS170: 0 | AT170: 0 | AU170: 0 | AV170: 0 | AW170: 0 | AX170: 0 | AY170: 0 | AZ170: 0 | BA170: 0 | BB170: 0 | BC170: 0 | BD170: 0 | BE170: 0 | BF170: 0 | BG170: 0 | BH170: 0 | BI170: 0 | BJ170: 0 | BK170: 0 | BL170: 0 | BM170: 0 | BN170: 0 | BO170: 0 | BP170: 0 | BQ170: 0 | BR170: 0 | BS170: 0 | BT170: 0 | BU170: 0 | BV170: 0 | BW170: 0 | BX170: 0 | BY170: 0 | BZ170: 0 | CA170: 0 | CB170: 0 | CC170: 0 | CD170: 0 | CE170: 0
M171: =M162 -> -2 | N171: -4 | O171: 0 | P171: =P166 -> -2 | AB171: 4 | AC171: -1 | AD171: 2 | AE171: -3 | AF171: -4 | AG171: -1 | AH171: 3 | AI171: -3 | AJ171: -3 | AK171: 2 | AL171: -3 | AM171: -2 | AN171: -2 | AO171: 3 | AP171: -4 | AQ171: 3 | AR171: -4 | AS171: 4 | AT171: -3 | AU171: 1 | AV171: 3 | AW171: -1 | AX171: 2 | AY171: 4 | AZ171: -3 | BA171: -3 | BB171: -2 | BC171: -2 | BD171: -2 | BE171: 1 | BF171: 2 | BG171: 4 | BH171: 4 | BI171: -1 | BJ171: -2 | BK171: 4 | BL171: 4 | BM171: 4 | BN171: -2 | BO171: 2 | BP171: -4 | BQ171: 3 | BR171: -1 | BS171: 2 | BT171: -4 | BU171: -2 | BV171: 1 | BW171: 2 | BX171: 2 | BY171: -1 | BZ171: 2 | CA171: -4 | CB171: -1 | CC171: =RANDBETWEEN(1,4)*(-1)^RANDBETWEEN(1,2) -> 4 | CD171: =RANDBETWEEN(1,4)*(-1)^RANDBETWEEN(1,2) -> -1 | CE171: -2
M172: =M163 -> 0 | N172: 0 | O172: 0 | P172: =P167 -> 0
M173: =M170*$R$165+M171*$R$166 -> 0 | N173: =N170*$R$165+N171*$R$166 -> 0 | O173: =O170*$R$165+O171*$R$166 -> 0 | P173: =P170*$R$165+P171*$R$166 -> 0
A177: 3 | E177: ="Aufgabe "&A177&" "&E178 -> Aufgabe 3 (drei Gleichungen, drei Variablen) | P177: =HLOOKUP(ID,$AA$177:$CB$189,2) -> 3 | AA177: 0 | AB177: 41 | AC177: 1 | AD177: 2 | AE177: 3 | AF177: 4 | AG177: 5 | AH177: 48 | AI177: 6 | AJ177: 7 | AK177: 8 | AL177: 9 | AM177: 43 | AN177: 10 | AO177: 11 | AP177: 12 | AQ177: 13 | AR177: 14 | AS177: 15 | AT177: 16 | AU177: 17 | AV177: 39 | AW177: 18 | AX177: 50 | AY177: 19 | AZ177: 20 | BA177: 21 | BB177: 22 | BC177: 45 | BD177: 23 | BE177: 24 | BF177: 25 | BG177: 26 | BH177: 27 | BI177: 28 | BJ177: 29 | BK177: 30 | BL177: 31 | BM177: 32 | BN177: 47 | BO177: 33 | BP177: 34 | BQ177: 35 | BR177: 36 | BS177: 46 | BT177: 42 | BU177: 38 | BV177: 44 | BW177: 37 | BX177: 40 | BY177: 49 | BZ177: 51 | CA177: 52 | CB177: 53 | CC177: 54 | CD177: 55 | CE177: 56
A178: * | E178: (drei Gleichungen, drei Variablen) | P178: =HLOOKUP(ID,$AA$177:$CB$189,3) -> 3 | AA178: 3 | AB178: 4 | AC178: -1 | AD178: -2 | AE178: 4 | AF178: 4 | AG178: 3 | AH178: 1 | AI178: 0 | AJ178: -1 | AK178: 0 | AL178: 3 | AM178: 1 | AN178: 1 | AO178: 1 | AP178: -4 | AQ178: -1 | AR178: -3 | AS178: -1 | AT178: 0 | AU178: 2 | AV178: 3 | AW178: -3 | AX178: 1 | AY178: -1 | AZ178: -2 | BA178: -4 | BB178: -4 | BC178: 1 | BD178: 0 | BE178: -1 | BF178: -1 | BG178: -4 | BH178: 1 | BI178: -4 | BJ178: -4 | BK178: 3 | BL178: 4 | BM178: 2 | BN178: 2 | BO178: 5 | BP178: 1 | BQ178: 4 | BR178: -4 | BS178: 5 | BT178: 2 | BU178: -3 | BV178: 5 | BW178: -2 | BX178: 5 | BY178: -3 | BZ178: 2 | CA178: 0 | CB178: 1 | CC178: =RANDBETWEEN(-4,5) -> -4 | CD178: =RANDBETWEEN(-4,5) -> -1 | CE178: =RANDBETWEEN(-4,5) -> 3
A179: * | P179: =HLOOKUP(ID,$AA$177:$CB$189,4) -> -4 | AA179: 3 | AB179: 4 | AC179: -3 | AD179: -4 | AE179: 2 | AF179: -4 | AG179: -1 | AH179: -2 | AI179: -2 | AJ179: -1 | AK179: 2 | AL179: -3 | AM179: -4 | AN179: -4 | AO179: 2 | AP179: -3 | AQ179: -4 | AR179: 2 | AS179: 1 | AT179: -4 | AU179: -1 | AV179: -3 | AW179: -3 | AX179: -3 | AY179: -4 | AZ179: 1 | BA179: 2 | BB179: -1 | BC179: -2 | BD179: 4 | BE179: -4 | BF179: 2 | BG179: 3 | BH179: -2 | BI179: -4 | BJ179: 3 | BK179: -3 | BL179: -3 | BM179: 4 | BN179: -3 | BO179: 3 | BP179: 2 | BQ179: -1 | BR179: 3 | BS179: 4 | BT179: 3 | BU179: -4 | BV179: -3 | BW179: -2 | BX179: 3 | BY179: 4 | BZ179: -2 | CA179: 4 | CB179: -4 | CC179: =RANDBETWEEN(1,4)*(-1)^RANDBETWEEN(1,2) -> 1 | CD179: =RANDBETWEEN(1,4)*(-1)^RANDBETWEEN(1,2) -> -2 | CE179: =RANDBETWEEN(1,4)*(-1)^RANDBETWEEN(1,2) -> 4
A180: * | M180: =HLOOKUP(ID,$AA$177:$CB$189,5) -> 4 | N180: =HLOOKUP(ID,$AA$177:$CB$189,8) -> -2 | O180: =HLOOKUP(ID,$AA$177:$CB$189,11) -> 4 | P180: =MMULT(M180:O182,P177:P179) -> -10 | R180: =Aufgaben!D159 -> 1 | AA180: -4 | AB180: -5 | AC180: 2 | AD180: 2 | AE180: -4 | AF180: -2 | AG180: 4 | AH180: -2 | AI180: -4 | AJ180: -2 | AK180: -1 | AL180: -4 | AM180: -2 | AN180: -1 | AO180: -4 | AP180: 4 | AQ180: -2 | AR180: 2 | AS180: -1 | AT180: 4 | AU180: -5 | AV180: -5 | AW180: 1 | AX180: 3 | AY180: 5 | AZ180: 3 | BA180: -4 | BB180: 3 | BC180: -4 | BD180: -4 | BE180: -4 | BF180: -2 | BG180: -1 | BH180: 1 | BI180: 0 | BJ180: -5 | BK180: 5 | BL180: 3 | BM180: -1 | BN180: 2 | BO180: -2 | BP180: -1 | BQ180: 0 | BR180: 4 | BS180: -1 | BT180: -2 | BU180: 5 | BV180: -2 | BW180: -1 | BX180: -3 | BY180: 3 | BZ180: -5 | CA180: -3 | CB180: -3 | CC180: =RANDBETWEEN(-5,5) -> -1 | CD180: =RANDBETWEEN(-5,5) -> 5 | CE180: =RANDBETWEEN(-5,5) -> 0
A181: * | M181: =HLOOKUP(ID,$AA$177:$CB$189,6) -> -2 | N181: =HLOOKUP(ID,$AA$177:$CB$189,9) -> 1 | O181: =HLOOKUP(ID,$AA$177:$CB$189,12) -> 2 | P181: -11 | R181: =Aufgaben!D160 -> 2 | AA181: 4 | AB181: -4 | AC181: -4 | AD181: -3 | AE181: -2 | AF181: 2 | AG181: -1 | AH181: -3 | AI181: 1 | AJ181: -2 | AK181: 4 | AL181: -1 | AM181: 4 | AN181: -1 | AO181: -3 | AP181: 2 | AQ181: -3 | AR181: -2 | AS181: 3 | AT181: 1 | AU181: -3 | AV181: -4 | AW181: 2 | AX181: 2 | AY181: 1 | AZ181: -3 | BA181: -2 | BB181: 2 | BC181: -1 | BD181: -4 | BE181: -2 | BF181: -4 | BG181: 1 | BH181: 2 | BI181: -3 | BJ181: 3 | BK181: 1 | BL181: -3 | BM181: -2 | BN181: 4 | BO181: 2 | BP181: 1 | BQ181: 1 | BR181: 1 | BS181: -1 | BT181: 2 | BU181: 3 | BV181: 4 | BW181: 2 | BX181: 4 | BY181: -1 | BZ181: -4 | CA181: -3 | CB181: 4 | CC181: =RANDBETWEEN(1,4)*(-1)^RANDBETWEEN(1,2) -> -2 | CD181: =RANDBETWEEN(1,4)*(-1)^RANDBETWEEN(1,2) -> -2 | CE181: =RANDBETWEEN(1,4)*(-1)^RANDBETWEEN(1,2) -> -2
A182: * | M182: =HLOOKUP(ID,$AA$177:$CB$189,7) -> 4 | N182: =HLOOKUP(ID,$AA$177:$CB$189,10) -> 3 | O182: =HLOOKUP(ID,$AA$177:$CB$189,13) -> -1 | P182: 25 | AA182: -2 | AB182: -2 | AC182: -1 | AD182: 5 | AE182: -3 | AF182: -2 | AG182: -4 | AH182: -5 | AI182: 4 | AJ182: -2 | AK182: -5 | AL182: 1 | AM182: -2 | AN182: -2 | AO182: 2 | AP182: 5 | AQ182: -5 | AR182: -1 | AS182: 5 | AT182: -4 | AU182: -1 | AV182: 2 | AW182: 4 | AX182: 1 | AY182: -3 | AZ182: 1 | BA182: -1 | BB182: 1 | BC182: -4 | BD182: -2 | BE182: -1 | BF182: -1 | BG182: 5 | BH182: 1 | BI182: -3 | BJ182: 3 | BK182: 1 | BL182: -5 | BM182: 3 | BN182: -4 | BO182: 2 | BP182: 3 | BQ182: -2 | BR182: 1 | BS182: -4 | BT182: -2 | BU182: -5 | BV182: 3 | BW182: 3 | BX182: 4 | BY182: -1 | BZ182: -4 | CA182: 4 | CB182: -5 | CC182: =RANDBETWEEN(1,5)*(-1)^RANDBETWEEN(1,2) -> -3 | CD182: =RANDBETWEEN(1,5)*(-1)^RANDBETWEEN(1,2) -> 3 | CE182: -3
A183: * | O183: 3 | AA183: 4 | AB183: 4 | AC183: -3 | AD183: 2 | AE183: -1 | AF183: 2 | AG183: 3 | AH183: -2 | AI183: 4 | AJ183: 4 | AK183: 3 | AL183: 3 | AM183: 2 | AN183: -2 | AO183: -1 | AP183: 1 | AQ183: -3 | AR183: 3 | AS183: 4 | AT183: -2 | AU183: -3 | AV183: -4 | AW183: -3 | AX183: -1 | AY183: 3 | AZ183: -2 | BA183: 4 | BB183: -4 | BC183: 4 | BD183: -2 | BE183: 4 | BF183: -3 | BG183: 3 | BH183: 2 | BI183: 4 | BJ183: -3 | BK183: -2 | BL183: 3 | BM183: 4 | BN183: 4 | BO183: 3 | BP183: 3 | BQ183: -4 | BR183: 1 | BS183: 1 | BT183: 1 | BU183: -1 | BV183: 3 | BW183: -1 | BX183: 1 | BY183: -4 | BZ183: 1 | CA183: -1 | CB183: 4 | CC183: =RANDBETWEEN(1,4)*(-1)^RANDBETWEEN(1,2) -> 2 | CD183: 4 | CE183: -4
A184: * | E184: =IF(hidden!M184<0," - ","")&IF(hidden!M184=0,"",IF(ABS(hidden!M184)=1," a ",ABS(hidden!M184)&" a "))&IF(hidden!N184>0,IF(hidden!M184<>0," + ",""),"")&IF(hidden!N184<0," - ","")&IF(hidden!N184=0,"",IF(ABS(hidden!N184)=1," b ",ABS(hidden!N184)&" b "))&IF(hidden!O184>0,IF(hidden!M184^2+hidden!N184^2<>0," + ",""),"")&IF(hidden!O184<0," - ","")&IF(hidden!O184=0,"",IF(ABS(hidden!O184)=1," c ",ABS(hidden!O184)&" c "))&" = "&hidden!P184 -> 4 a - 2 b + 4 c = -10 | M184: =M180 -> 4 | N184: -2 | O184: 4 | P184: =P180 -> -10 | R184: =Aufgaben!D163 -> 0 | AA184: -2 | AB184: 5 | AC184: 1 | AD184: -5 | AE184: -3 | AF184: -4 | AG184: 4 | AH184: -1 | AI184: 4 | AJ184: 5 | AK184: 1 | AL184: -2 | AM184: -4 | AN184: 2 | AO184: -5 | AP184: -1 | AQ184: 1 | AR184: -1 | AS184: -3 | AT184: -4 | AU184: -5 | AV184: 0 | AW184: -4 | AX184: 3 | AY184: 1 | AZ184: 1 | BA184: -1 | BB184: 1 | BC184: -4 | BD184: -4 | BE184: 3 | BF184: -5 | BG184: 1 | BH184: 4 | BI184: 1 | BJ184: 5 | BK184: 5 | BL184: -4 | BM184: 1 | BN184: 4 | BO184: -5 | BP184: 1 | BQ184: 0 | BR184: 5 | BS184: 4 | BT184: -5 | BU184: -5 | BV184: -4 | BW184: -5 | BX184: -4 | BY184: 2 | BZ184: -1 | CA184: 4 | CB184: 4 | CC184: =RANDBETWEEN(-5,5) -> 2 | CD184: =RANDBETWEEN(-5,5) -> 5 | CE184: =RANDBETWEEN(-5,5) -> 3
A185: * | E185: =IF(hidden!M185<0," - ","")&IF(hidden!M185=0,"",IF(ABS(hidden!M185)=1," a ",ABS(hidden!M185)&" a "))&IF(hidden!N185>0,IF(hidden!M185<>0," + ",""),"")&IF(hidden!N185<0," - ","")&IF(hidden!N185=0,"",IF(ABS(hidden!N185)=1," b ",ABS(hidden!N185)&" b "))&IF(hidden!O185>0,IF(hidden!M185^2+hidden!N185^2<>0," + ",""),"")&IF(hidden!O185<0," - ","")&IF(hidden!O185=0,"",IF(ABS(hidden!O185)=1," c ",ABS(hidden!O185)&" c "))&" = "&hidden!P185 -> - 2 a + b + 2 c = -11 | M185: -2 | N185: =N181 -> 1 | O185: 2 | P185: =P181 -> -11 | R185: =Aufgaben!D164 -> 0 | AA185: 1 | AB185: -3 | AC185: -2 | AD185: -2 | AE185: 2 | AF185: -2 | AG185: 4 | AH185: 2 | AI185: 3 | AJ185: -4 | AK185: -4 | AL185: -4 | AM185: 2 | AN185: -2 | AO185: -1 | AP185: -2 | AQ185: -3 | AR185: -1 | AS185: -2 | AT185: -3 | AU185: 2 | AV185: 4 | AW185: 2 | AX185: -1 | AY185: -1 | AZ185: -1 | BA185: 3 | BB185: -2 | BC185: 3 | BD185: -4 | BE185: 2 | BF185: -2 | BG185: -2 | BH185: 1 | BI185: 3 | BJ185: -4 | BK185: 1 | BL185: 2 | BM185: 3 | BN185: 4 | BO185: -1 | BP185: 2 | BQ185: 3 | BR185: 3 | BS185: -1 | BT185: 3 | BU185: 2 | BV185: 2 | BW185: -1 | BX185: -3 | BY185: 4 | BZ185: -3 | CA185: 4 | CB185: 3 | CC185: =RANDBETWEEN(1,4)*(-1)^RANDBETWEEN(1,2) -> -4 | CD185: =RANDBETWEEN(1,4)*(-1)^RANDBETWEEN(1,2) -> 1 | CE185: =RANDBETWEEN(1,4)*(-1)^RANDBETWEEN(1,2) -> -2
A186: * | E186: =IF(hidden!M186<0," - ","")&IF(hidden!M186=0,"",IF(ABS(hidden!M186)=1," a ",ABS(hidden!M186)&" a "))&IF(hidden!N186>0,IF(hidden!M186<>0," + ",""),"")&IF(hidden!N186<0," - ","")&IF(hidden!N186=0,"",IF(ABS(hidden!N186)=1," b ",ABS(hidden!N186)&" b "))&IF(hidden!O186>0,IF(hidden!M186^2+hidden!N186^2<>0," + ",""),"")&IF(hidden!O186<0," - ","")&IF(hidden!O186=0,"",IF(ABS(hidden!O186)=1," c ",ABS(hidden!O186)&" c "))&" = "&hidden!P186 -> 4 a + 3 b - c = 25 | M186: =M182 -> 4 | N186: =N182 -> 3 | O186: =O182 -> -1 | P186: =P182 -> 25 | AA186: 3 | AB186: -1 | AC186: -4 | AD186: -3 | AE186: -3 | AF186: 3 | AG186: 4 | AH186: 2 | AI186: -2 | AJ186: 4 | AK186: 2 | AL186: -4 | AM186: -3 | AN186: -3 | AO186: 2 | AP186: -1 | AQ186: 4 | AR186: 1 | AS186: -1 | AT186: -4 | AU186: -2 | AV186: -2 | AW186: -1 | AX186: 2 | AY186: -3 | AZ186: -4 | BA186: -1 | BB186: 4 | BC186: -4 | BD186: 4 | BE186: -3 | BF186: -2 | BG186: 2 | BH186: 2 | BI186: -2 | BJ186: -1 | BK186: 1 | BL186: -4 | BM186: -1 | BN186: 1 | BO186: 2 | BP186: 4 | BQ186: 4 | BR186: 4 | BS186: 1 | BT186: 2 | BU186: -3 | BV186: -1 | BW186: 3 | BX186: -4 | BY186: 4 | BZ186: 2 | CA186: 2 | CB186: -2 | CC186: =RANDBETWEEN(1,4)*(-1)^RANDBETWEEN(1,2) -> -2 | CD186: 2 | CE186: -2
AA187: 4 | AB187: 2 | AC187: -3 | AD187: 2 | AE187: -2 | AF187: 3 | AG187: 1 | AH187: 2 | AI187: 1 | AJ187: -2 | AK187: -4 | AL187: 3 | AM187: 2 | AN187: 3 | AO187: 4 | AP187: -3 | AQ187: -1 | AR187: 1 | AS187: 1 | AT187: 2 | AU187: -2 | AV187: -1 | AW187: -3 | AX187: -4 | AY187: -4 | AZ187: 3 | BA187: 4 | BB187: -3 | BC187: -3 | BD187: -2 | BE187: 4 | BF187: 3 | BG187: -2 | BH187: -3 | BI187: 2 | BJ187: -1 | BK187: -1 | BL187: -4 | BM187: 4 | BN187: -1 | BO187: 4 | BP187: -2 | BQ187: 3 | BR187: 1 | BS187: 3 | BT187: 2 | BU187: -4 | BV187: 3 | BW187: -1 | BX187: 2 | BY187: -4 | BZ187: 1 | CA187: -3 | CB187: -4 | CC187: =RANDBETWEEN(1,4)*(-1)^RANDBETWEEN(1,2) -> -2 | CD187: -1 | CE187: -4
AA188: 2 | AB188: 2 | AC188: 2 | AD188: 1 | AE188: -2 | AF188: -2 | AG188: 4 | AH188: 4 | AI188: -1 | AJ188: 3 | AK188: -4 | AL188: 4 | AM188: -4 | AN188: 1 | AO188: -3 | AP188: -1 | AQ188: -1 | AR188: 3 | AS188: -2 | AT188: 4 | AU188: -2 | AV188: 2 | AW188: -2 | AX188: -2 | AY188: -4 | AZ188: -2 | BA188: 2 | BB188: 3 | BC188: -3 | BD188: 4 | BE188: -2 | BF188: -4 | BG188: -2 | BH188: 4 | BI188: -3 | BJ188: -1 | BK188: -3 | BL188: 4 | BM188: -2 | BN188: 3 | BO188: -2 | BP188: 3 | BQ188: -4 | BR188: 1 | BS188: -2 | BT188: -4 | BU188: -2 | BV188: -4 | BW188: 3 | BX188: 2 | BY188: -2 | BZ188: -3 | CA188: 1 | CB188: 4 | CC188: =RANDBETWEEN(1,4)*(-1)^RANDBETWEEN(1,2) -> -3 | CD188: 1 | CE188: -1
M189: =M180 -> 4 | N189: -2 | O189: 4 | P189: =P184 -> -10 | AA189: -1 | AB189: -4 | AC189: 3 | AD189: 3 | AE189: -2 | AF189: 4 | AG189: 3 | AH189: -3 | AI189: -2 | AJ189: 3 | AK189: -4 | AL189: -3 | AM189: -1 | AN189: -1 | AO189: 4 | AP189: 3 | AQ189: -4 | AR189: -3 | AS189: 2 | AT189: 4 | AU189: -4 | AV189: -4 | AW189: 3 | AX189: -1 | AY189: -4 | AZ189: -4 | BA189: -1 | BB189: -3 | BC189: 1 | BD189: -1 | BE189: -4 | BF189: -3 | BG189: -1 | BH189: -4 | BI189: 2 | BJ189: 1 | BK189: 3 | BL189: -3 | BM189: -3 | BN189: 2 | BO189: 2 | BP189: -4 | BQ189: 4 | BR189: 2 | BS189: -2 | BT189: 3 | BU189: 1 | BV189: -2 | BW189: -2 | BX189: 4 | BY189: 3 | BZ189: -2 | CA189: 1 | CB189: 4 | CC189: =RANDBETWEEN(1,4)*(-1)^RANDBETWEEN(1,2) -> 1 | CD189: 2 | CE189: 2
M190: =M181 -> -2 | N190: 1 | O190: 2 | P190: =P185 -> -11
M191: =M182 -> 4 | N191: 3 | O191: -1 | P191: =P186 -> 25
M192: =M189*$R$180+M190*$R$181 -> 0 | N192: =N189*$R$180+N190*$R$181 -> 0 | O192: 8 | P192: -32 | R192: =IF(M192<0,"-","")&IF(M192=0,"",IF(ABS(M192)=1,"a",ABS(M192)&"a"))&IF(N192>0,IF(M192<>0,"+",""),"")&IF(N192<0,"-","")&IF(N192=0,"",IF(ABS(N192)=1,"b",ABS(N192)&"b"))&IF(O192>0,IF(M192^2+N192^2<>0,"+",""),"")&IF(O192<0,"-","")&IF(O192=0,"",IF(ABS(O192)=1,"c",ABS(O192)&"c"))&"="&P192 -> 8c=-32
A194: Steckbriefaufgaben
A195: 1 | E195: ="Aufgabe "&A195&" "&E196 -> Aufgabe 1 (quadratische Funktion, c gegeben) | F195: 5 | M195: =P195^2 -> 0 | N195: =P195 -> 0 | O195: 1 | P195: =HLOOKUP(ID,$AA$195:$CB$207,2) -> 0 | AA195: 0 | AB195: 41 | AC195: 1 | AD195: 2 | AE195: 3 | AF195: 4 | AG195: 5 | AH195: 48 | AI195: 6 | AJ195: 7 | AK195: 8 | AL195: 9 | AM195: 43 | AN195: 10 | AO195: 11 | AP195: 12 | AQ195: 13 | AR195: 14 | AS195: 15 | AT195: 16 | AU195: 17 | AV195: 39 | AW195: 18 | AX195: 50 | AY195: 19 | AZ195: 20 | BA195: 21 | BB195: 22 | BC195: 45 | BD195: 23 | BE195: 24 | BF195: 25 | BG195: 26 | BH195: 27 | BI195: 28 | BJ195: 29 | BK195: 30 | BL195: 31 | BM195: 32 | BN195: 47 | BO195: 33 | BP195: 34 | BQ195: 35 | BR195: 36 | BS195: 46 | BT195: 42 | BU195: 38 | BV195: 44 | BW195: 37 | BX195: 40 | BY195: 49 | BZ195: 51 | CA195: 52 | CB195: 53 | CC195: 54 | CD195: 55 | CE195: 56
E196: (quadratische Funktion, c gegeben) | M196: =P196^2 -> 1 | N196: =P196 -> 1 | O196: 1 | P196: =HLOOKUP(ID,$AA$195:$CB$207,3) -> 1 | R196: =M196/P196 -> 1 | S196: 1 | AA196: 0 | AB196: 0 | AC196: 0 | AD196: 1 | AE196: 2 | AF196: 3 | AG196: 4 | AH196: 0 | AI196: 5 | AJ196: 6 | AK196: 7 | AL196: 8 | AM196: 0 | AN196: 9 | AO196: 10 | AP196: 11 | AQ196: 12 | AR196: 13 | AS196: 14 | AT196: 15 | AU196: 16 | AV196: 0 | AW196: 17 | AX196: 0 | AY196: 18 | AZ196: 19 | BA196: 20 | BB196: 21 | BC196: 0 | BD196: 22 | BE196: 23 | BF196: 24 | BG196: 25 | BH196: 26 | BI196: 27 | BJ196: 28 | BK196: 29 | BL196: 30 | BM196: 31 | BN196: 0 | BO196: 32 | BP196: 33 | BQ196: 34 | BR196: 35 | BS196: 0 | BT196: 0 | BU196: 0 | BV196: 0 | BW196: 0 | BX196: 0 | BY196: 0 | BZ196: -5 | CA196: -4 | CB196: -3 | CC196: -2 | CD196: -1 | CE196: 0
M197: 25 | N197: 5 | O197: 1 | P197: =HLOOKUP(ID,$AA$195:$CB$207,4) -> 5 | R197: =M197/P197 -> 5 | S197: 2 | AA197: 1 | AB197: 4 | AC197: -2 | AD197: -1 | AE197: 4 | AF197: 1 | AG197: 4 | AH197: 3 | AI197: -1 | AJ197: -3 | AK197: -2 | AL197: 1 | AM197: -2 | AN197: -1 | AO197: -4 | AP197: 4 | AQ197: -1 | AR197: -3 | AS197: 3 | AT197: 2 | AU197: -3 | AV197: 4 | AW197: 4 | AX197: 4 | AY197: 1 | AZ197: 4 | BA197: 2 | BB197: 4 | BC197: 4 | BD197: 4 | BE197: 2 | BF197: 1 | BG197: 3 | BH197: -2 | BI197: -2 | BJ197: 3 | BK197: -3 | BL197: -2 | BM197: -3 | BN197: 2 | BO197: 3 | BP197: -1 | BQ197: -4 | BR197: 4 | BS197: 1 | BT197: -4 | BU197: -2 | BV197: -2 | BW197: 4 | BX197: -1 | BY197: 2 | BZ197: -3 | CA197: 3 | CB197: -4 | CC197: =RANDBETWEEN(1,4)*(-1)^RANDBETWEEN(1,2) -> 1 | CD197: =RANDBETWEEN(1,4)*(-1)^RANDBETWEEN(1,2) -> 3 | CE197: =RANDBETWEEN(1,4)*(-1)^RANDBETWEEN(1,2) -> 3
E198: Gesucht ist eine quadratische Funktion | G198: =P195 -> 0 | H198: =P198 -> -1 | J198: 2 | M198: =HLOOKUP(ID,$AA$195:$CB$207,5) -> 0.5 | N198: =HLOOKUP(ID,$AA$195:$CB$207,6) -> 3 | O198: =HLOOKUP(ID,$AA$195:$CB$207,7) -> -1 | P198: =M198*P195^2+N198*P195+O198 -> -1 | R198: =IF(M195<0," - ","")&IF(M195=0,"",IF(ABS(M195)=1," a ",ABS(M195)&" a "))&IF(N195>0,IF(M195<>0," + ",""),"")&IF(N195<0," - ","")&IF(N195=0,"",IF(ABS(N195)=1," b ",ABS(N195)&" b "))&IF(O195>0,IF(M195^2+N195^2<>0," + ",""),"")&IF(O195<0," - ","")&IF(O195=0,"",IF(ABS(O195)=1," c ",ABS(O195)&" c "))&" = "&P198 -> c = -1 | AA198: 5 | AB198: 5 | AC198: -4 | AD198: -3 | AE198: 6 | AF198: -1 | AG198: 6 | AH198: 2 | AI198: 5 | AJ198: -1 | AK198: 5 | AL198: -1 | AM198: -1 | AN198: 1 | AO198: -6 | AP198: 2 | AQ198: 5 | AR198: -1 | AS198: 2 | AT198: 1 | AU198: -5 | AV198: 6 | AW198: 2 | AX198: 3 | AY198: 3 | AZ198: 2 | BA198: 3 | BB198: 2 | BC198: 6 | BD198: 2 | BE198: 1 | BF198: 3 | BG198: 4 | BH198: -3 | BI198: -3 | BJ198: 2 | BK198: -2 | BL198: -3 | BM198: -1 | BN198: 4 | BO198: 2 | BP198: -2 | BQ198: -2 | BR198: 2 | BS198: 3 | BT198: -2 | BU198: -4 | BV198: -4 | BW198: 5 | BX198: 5 | BY198: 3 | BZ198: -4 | CA198: 1 | CB198: -2 | CC198: =IF(CC203=0,5,CC203) -> 3 | CD198: =IF(CD203=0,5,CD203) -> 5 | CE198: =IF(CE203=0,5,CE203) -> 2
E199: f(x)=a x^2 + b x + c | G199: =P196 -> 1 | H199: =P199 -> 2.5 | M199: =HLOOKUP(ID,$AA$195:$CB$207,5) -> 0.5 | N199: =HLOOKUP(ID,$AA$195:$CB$207,6) -> 3 | O199: =HLOOKUP(ID,$AA$195:$CB$207,7) -> -1 | P199: =M199*P196^2+N199*P196+O199 -> 2.5 | R199: =IF(M196<0," - ","")&IF(M196=0,"",IF(ABS(M196)=1," a ",ABS(M196)&" a "))&IF(N196>0,IF(M196<>0," + ",""),"")&IF(N196<0," - ","")&IF(N196=0,"",IF(ABS(N196)=1," b ",ABS(N196)&" b "))&IF(O196>0,IF(M196^2+N196^2<>0," + ",""),"")&IF(O196<0," - ","")&IF(O196=0,"",IF(ABS(O196)=1," c ",ABS(O196)&" c "))&" = "&P199 -> a + b + c = 2,5 | S199: =IF(M196<0," - ","")&IF(M196=0,"",IF(ABS(M196)=1," a ",ABS(M196)&" a "))&IF(N196>0,IF(M196<>0," + ",""),"")&IF(N196<0," - ","")&IF(N196=0,"",IF(ABS(N196)=1," b ",ABS(N196)&" b "))&IF(O198>0,IF(M196^2+N196^2<>0," + ",""),"")&IF(O198<0," - ","")&IF(O198=0,"",IF(ABS(O198)=0,"",ABS(O198)))&" = "&P199 -> a + b - 1 = 2,5 | T199: =IF(M196<0," - ","")&IF(M196=0,"",IF(ABS(M196)=1," a ",ABS(M196)&" a "))&IF(N196>0,IF(M196<>0," + ",""),"")&IF(N196<0," - ","")&IF(N196=0,"",IF(ABS(N196)=1," b ",ABS(N196)&" b "))&" = "&P199-O198 -> a + b = 3,5 | U199: =IF(P196<0,"-","")&IF(P196=0,"",IF(ABS(P196)=1,"a+b",P196&"a+b")&"="&(P199-O199)/P196) -> a+b=3,5 | V199: =IF(Q196<0,"-","")&IF(Q196=0,"",IF(ABS(Q196)=1,"a+b",Q196&"a+b")&"="&(Q199-P199)/Q196) ->  | AA199: 0.5 | AB199: -1 | AC199: -1 | AD199: 1 | AE199: -1 | AF199: 0.5 | AG199: -1 | AH199: 0.5 | AI199: 1 | AJ199: 1 | AK199: -1 | AL199: 0.5 | AM199: 0.5 | AN199: -1 | AO199: 1 | AP199: -0.5 | AQ199: -0.5 | AR199: 0.5 | AS199: 1 | AT199: -1 | AU199: 0.5 | AV199: -1 | AW199: 0.5 | AX199: 0.5 | AY199: 1 | AZ199: -1 | BA199: -1 | BB199: 0.5 | BC199: -1 | BD199: -0.5 | BE199: -0.5 | BF199: -0.5 | BG199: -0.5 | BH199: -1 | BI199: -1 | BJ199: -0.5 | BK199: -1 | BL199: -0.5 | BM199: 0.5 | BN199: 1 | BO199: -1 | BP199: 0.5 | BQ199: -1 | BR199: 1 | BS199: 0.5 | BT199: 1 | BU199: -1 | BV199: -1 | BW199: -0.5 | BX199: -1 | BY199: 0.5 | BZ199: 1 | CA199: 1 | CB199: -0.5 | CC199: =RANDBETWEEN(1,2)/2*(-1)^RANDBETWEEN(1,2) -> -1 | CD199: =RANDBETWEEN(1,2)/2*(-1)^RANDBETWEEN(1,2) -> -0.5 | CE199: =RANDBETWEEN(1,2)/2*(-1)^RANDBETWEEN(1,2) -> -1
G200: =P197 -> 5 | H200: =P200 -> 26.5 | M200: =HLOOKUP(ID,$AA$195:$CB$207,5) -> 0.5 | N200: =HLOOKUP(ID,$AA$195:$CB$207,6) -> 3 | O200: =HLOOKUP(ID,$AA$195:$CB$207,7) -> -1 | P200: 26.5 | R200: =IF(M197<0," - ","")&IF(M197=0,"",IF(ABS(M197)=1," a ",ABS(M197)&" a "))&IF(N197>0,IF(M197<>0," + ",""),"")&IF(N197<0," - ","")&IF(N197=0,"",IF(ABS(N197)=1," b ",ABS(N197)&" b "))&IF(O197>0,IF(M197^2+N197^2<>0," + ",""),"")&IF(O197<0," - ","")&IF(O197=0,"",IF(ABS(O197)=1," c ",ABS(O197)&" c "))&" = "&P200 -> 25 a + 5 b + c = 26,5 | S200: =IF(M197<0," - ","")&IF(M197=0,"",IF(ABS(M197)=1," a ",ABS(M197)&" a "))&IF(N197>0,IF(M197<>0," + ",""),"")&IF(N197<0," - ","")&IF(N197=0,"",IF(ABS(N197)=1," b ",ABS(N197)&" b "))&IF(O199>0,IF(M197^2+N197^2<>0," + ",""),"")&IF(O199<0," - ","")&IF(O199=0,"",IF(ABS(O199)=0,"",ABS(O199)))&" = "&P200 -> 25 a + 5 b - 1 = 26,5 | T200: =IF(M197<0," - ","")&IF(M197=0,"",IF(ABS(M197)=1," a ",ABS(M197)&" a "))&IF(N197>0,IF(M197<>0," + ",""),"")&IF(N197<0," - ","")&IF(N197=0,"",IF(ABS(N197)=1," b ",ABS(N197)&" b "))&" = "&P200-O199 -> 25 a + 5 b = 27,5 | U200: =IF(P197<0,"-","")&IF(P197=0,"",IF(ABS(P197)=1,"a+b",P197&"a+b")&"="&(P200-O200)/P197) -> 5a+b=5,5 | AA200: 3 | AB200: 4 | AC200: 1 | AD200: -1 | AE200: -1 | AF200: -4 | AG200: 3 | AH200: -4 | AI200: 3 | AJ200: -3 | AK200: -1 | AL200: 4 | AM200: 1 | AN200: 4 | AO200: -4 | AP200: -3 | AQ200: -3 | AR200: -1 | AS200: 2 | AT200: 4 | AU200: -4 | AV200: -1 | AW200: -1 | AX200: -2 | AY200: -2 | AZ200: 2 | BA200: 1 | BB200: -3 | BC200: 1 | BD200: 4 | BE200: -4 | BF200: 2 | BG200: -1 | BH200: 2 | BI200: -3 | BJ200: 3 | BK200: -4 | BL200: -3 | BM200: -1 | BN200: -3 | BO200: -2 | BP200: 2 | BQ200: -3 | BR200: 4 | BS200: 4 | BT200: -1 | BU200: 3 | BV200: 3 | BW200: 1 | BX200: 3 | BY200: 1 | BZ200: 3 | CA200: -2 | CB200: 1 | CC200: =RANDBETWEEN(1,4)*(-1)^RANDBETWEEN(1,2) -> 4 | CD200: =RANDBETWEEN(1,4)*(-1)^RANDBETWEEN(1,2) -> 1 | CE200: =RANDBETWEEN(1,4)*(-1)^RANDBETWEEN(1,2) -> 3
O201: 3 | AA201: -1 | AB201: 4 | AC201: 2 | AD201: 2 | AE201: 3 | AF201: -1 | AG201: -1 | AH201: -2 | AI201: -1 | AJ201: 1 | AK201: 1 | AL201: -3 | AM201: -2 | AN201: -4 | AO201: 3 | AP201: -2 | AQ201: -3 | AR201: 2 | AS201: 2 | AT201: -4 | AU201: 3 | AV201: 3 | AW201: -1 | AX201: 1 | AY201: -3 | AZ201: 4 | BA201: -2 | BB201: 2 | BC201: 3 | BD201: -3 | BE201: -1 | BF201: -4 | BG201: 3 | BH201: -3 | BI201: 1 | BJ201: -4 | BK201: -4 | BL201: -2 | BM201: 2 | BN201: -2 | BO201: 4 | BP201: -3 | BQ201: 3 | BR201: -1 | BS201: 2 | BT201: -2 | BU201: -3 | BV201: -3 | BW201: 1 | BX201: -2 | BY201: -2 | BZ201: 4 | CA201: -4 | CB201: 2 | CC201: =RANDBETWEEN(1,4)*(-1)^RANDBETWEEN(1,2) -> -1 | CD201: -3 | CE201: 2
B202: =IF(T202<>"",1,0) -> 0 | M202: =M198 -> 0.5 | N202: 3 | O202: -1 | P202: =P198 -> -1 | T202: =IF(ISBLANK(Aufgaben!E185),"",IF(Aufgaben!E185=O198,"richtig!","")) -> 
M203: =M199 -> 0.5 | N203: =N199 -> 3 | O203: =O199 -> -1 | P203: =P199 -> 2.5 | AA203: 0 | AB203: 5 | AC203: -4 | AD203: -3 | AE203: 6 | AF203: -1 | AG203: 6 | AH203: 2 | AI203: 0 | AJ203: -1 | AK203: 0 | AL203: -1 | AM203: -1 | AN203: 1 | AO203: -6 | AP203: 2 | AQ203: 0 | AR203: -1 | AS203: 2 | AT203: 1 | AU203: -5 | AV203: 6 | AW203: 2 | AX203: 3 | AY203: 3 | AZ203: 2 | BA203: 3 | BB203: 2 | BC203: 6 | BD203: 2 | BE203: 1 | BF203: 3 | BG203: 4 | BH203: -3 | BI203: -3 | BJ203: 2 | BK203: -2 | BL203: -3 | BM203: -1 | BN203: 4 | BO203: 2 | BP203: -2 | BQ203: -2 | BR203: 2 | BS203: 3 | BT203: -2 | BU203: -4 | BV203: -4 | BW203: 5 | BX203: 0 | BY203: 3 | BZ203: -4 | CA203: 1 | CB203: -2 | CC203: =CC197+RANDBETWEEN(1,2)*(-1)^RANDBETWEEN(1,2) -> 3 | CD203: =CD197+RANDBETWEEN(1,2)*(-1)^RANDBETWEEN(1,2) -> 5 | CE203: =CE197+RANDBETWEEN(1,2)*(-1)^RANDBETWEEN(1,2) -> 2
M204: =M200 -> 0.5 | N204: =N200 -> 3 | O204: =O200 -> -1 | P204: =P200 -> 26.5 | T204: =IF(E189="","",IF((Aufgaben!E187-hidden!M198)^2+(Aufgaben!E188-hidden!N198)^2+(Aufgaben!E189-hidden!O198)^2=0,"korrekt!","")) -> 
M207: =M198 -> 0.5 | N207: 3 | O207: -1 | P207: =P202 -> -1
M208: =M199 -> 0.5 | N208: 3 | O208: -1 | P208: =P203 -> 2.5
M209: =M200 -> 0.5 | N209: 3 | O209: -1 | P209: =P204 -> 26.5
A213: 2 | E213: ="Aufgabe "&A213&" "&E214 -> Aufgabe 2 (quadratische Funktion, d nicht gegeben) | F213: 6 | M213: =P213^2 -> 9 | N213: =P213 -> -3 | O213: 1 | P213: =HLOOKUP(ID,$AA$214:$CB$220,2) -> -3
E214: (quadratische Funktion, d nicht gegeben) | M214: =P214^2 -> 16 | N214: =P214 -> -4 | O214: 1 | P214: =HLOOKUP(ID,$AA$214:$CB$220,3) -> -4 | AA214: 0 | AB214: 41 | AC214: 1 | AD214: 2 | AE214: 3 | AF214: 4 | AG214: 5 | AH214: 48 | AI214: 6 | AJ214: 7 | AK214: 8 | AL214: 9 | AM214: 43 | AN214: 10 | AO214: 11 | AP214: 12 | AQ214: 13 | AR214: 14 | AS214: 15 | AT214: 16 | AU214: 17 | AV214: 39 | AW214: 18 | AX214: 50 | AY214: 19 | AZ214: 20 | BA214: 21 | BB214: 22 | BC214: 45 | BD214: 23 | BE214: 24 | BF214: 25 | BG214: 26 | BH214: 27 | BI214: 28 | BJ214: 29 | BK214: 30 | BL214: 31 | BM214: 32 | BN214: 47 | BO214: 33 | BP214: 34 | BQ214: 35 | BR214: 36 | BS214: 46 | BT214: 42 | BU214: 38 | BV214: 44 | BW214: 37 | BX214: 40 | BY214: 49 | BZ214: 51 | CA214: 52 | CB214: 53 | CC214: 54 | CD214: 55 | CE214: 56
M215: 4 | N215: 2 | O215: 1 | P215: =HLOOKUP(ID,$AA$214:$CB$220,4) -> 2 | AA215: -3 | AB215: -2 | AC215: -4 | AD215: 3 | AE215: -2 | AF215: 3 | AG215: 4 | AH215: -4 | AI215: 1 | AJ215: 4 | AK215: -2 | AL215: 3 | AM215: -4 | AN215: 1 | AO215: -2 | AP215: 1 | AQ215: -3 | AR215: -1 | AS215: -2 | AT215: 2 | AU215: -3 | AV215: -1 | AW215: 1 | AX215: -2 | AY215: -1 | AZ215: -1 | BA215: 4 | BB215: 1 | BC215: 2 | BD215: -4 | BE215: -1 | BF215: 1 | BG215: -3 | BH215: -2 | BI215: -1 | BJ215: 4 | BK215: 3 | BL215: 1 | BM215: 2 | BN215: -1 | BO215: 3 | BP215: 4 | BQ215: -2 | BR215: 1 | BS215: 3 | BT215: 2 | BU215: 1 | BV215: 1 | BW215: -4 | BX215: -4 | BY215: 4 | BZ215: -2 | CA215: -3 | CB215: 2 | CC215: =RANDBETWEEN(1,4)*(-1)^RANDBETWEEN(1,2) -> -2 | CD215: =RANDBETWEEN(1,4)*(-1)^RANDBETWEEN(1,2) -> -2 | CE215: =RANDBETWEEN(1,4)*(-1)^RANDBETWEEN(1,2) -> 3
E216: Gesucht ist eine quadratische Funktion | G216: =P213 -> -3 | H216: =P216 -> -1 | I216: -4 | J216: =$M$216*I216^2+$N$216*I216+$O$216 -> 4 | M216: =HLOOKUP(ID,$AA$214:$CB$220,5) -> 1 | N216: =HLOOKUP(ID,$AA$214:$CB$220,6) -> 2 | O216: =HLOOKUP(ID,$AA$214:$CB$220,7) -> -4 | P216: =M216*P213^2+N216*P213+O216 -> -1 | R216: =IF(M213<0,"-","")&IF(M213=0,"",IF(ABS(M213)=1,"a",ABS(M213)&"a"))&IF(N213>0,IF(M213<>0,"+",""),"")&IF(N213<0,"-","")&IF(N213=0,"",IF(ABS(N213)=1,"b",ABS(N213)&"b"))&IF(O213>0,IF(M213^2+N213^2<>0,"+",""),"")&IF(O213<0,"-","")&IF(O213=0,"",IF(ABS(O213)=1,"c",ABS(O213)&"c"))&"="&P216 -> 9a-3b+c=-1 | AA216: -4 | AB216: -6 | AC216: -8 | AD216: 7 | AE216: 2 | AF216: 4 | AG216: 1 | AH216: 0 | AI216: -1 | AJ216: 5 | AK216: 0 | AL216: -1 | AM216: 0 | AN216: 4 | AO216: -6 | AP216: 4 | AQ216: 1 | AR216: 2 | AS216: -5 | AT216: -2 | AU216: -2 | AV216: 1 | AW216: 3 | AX216: 2 | AY216: -4 | AZ216: 3 | BA216: 5 | BB216: 4 | BC216: 1 | BD216: -7 | BE216: 2 | BF216: 4 | BG216: -1 | BH216: -5 | BI216: 0 | BJ216: 2 | BK216: 4 | BL216: -1 | BM216: -2 | BN216: -5 | BO216: 2 | BP216: 3 | BQ216: -3 | BR216: 2 | BS216: 2 | BT216: 1 | BU216: 0 | BV216: -3 | BW216: -6 | BX216: -6 | BY216: 6 | BZ216: -3 | CA216: -6 | CB216: -2 | CC216: =CC215+RANDBETWEEN(1,4)*(-1)^RANDBETWEEN(1,2) -> -4 | CD216: =CD215+RANDBETWEEN(1,4)*(-1)^RANDBETWEEN(1,2) -> -6 | CE216: =CE215+RANDBETWEEN(1,4)*(-1)^RANDBETWEEN(1,2) -> 5
E217: f(x)=a x^2 + b x + c | G217: =P214 -> -4 | H217: =P217 -> 4 | I217: =I216+1 -> -3 | J217: =$M$216*I217^2+$N$216*I217+$O$216 -> -1 | M217: =M216 -> 1 | N217: =N216 -> 2 | O217: -4 | P217: =M217*P214^2+N217*P214+O217 -> 4 | R217: =IF(M214<0,"-","")&IF(M214=0,"",IF(ABS(M214)=1,"a",ABS(M214)&"a"))&IF(N214>0,IF(M214<>0,"+",""),"")&IF(N214<0,"-","")&IF(N214=0,"",IF(ABS(N214)=1,"b",ABS(N214)&"b"))&IF(O214>0,IF(M214^2+N214^2<>0,"+",""),"")&IF(O214<0,"-","")&IF(O214=0,"",IF(ABS(O214)=1,"c",ABS(O214)&"c"))&"="&P217 -> 16a-4b+c=4 | AA217: 2 | AB217: -1 | AC217: 3 | AD217: 4 | AE217: 4 | AF217: 5 | AG217: 5 | AH217: 4 | AI217: 2 | AJ217: -4 | AK217: 2 | AL217: -3 | AM217: -3 | AN217: -1 | AO217: 1 | AP217: -1 | AQ217: -4 | AR217: 3 | AS217: 2 | AT217: 3 | AU217: -4 | AV217: 3 | AW217: 2 | AX217: -1 | AY217: 4 | AZ217: -3 | BA217: 1 | BB217: -3 | BC217: 3 | BD217: 4 | BE217: 4 | BF217: 5 | BG217: 0 | BH217: -4 | BI217: 4 | BJ217: -4 | BK217: -3 | BL217: -2 | BM217: 4 | BN217: 3 | BO217: -4 | BP217: -4 | BQ217: 3 | BR217: 3 | BS217: -4 | BT217: 3 | BU217: -4 | BV217: 2 | BW217: -2 | BX217: -1 | BY217: -1 | BZ217: 2 | CA217: -2 | CB217: 3 | CC217: =IF((CC222-CC215)*(CC222-CC216)=0,MAX(CC216,CC215)+1,CC222) -> -1 | CD217: =IF((CD222-CD215)*(CD222-CD216)=0,MAX(CD216,CD215)+1,CD222) -> 2 | CE217: =IF((CE222-CE215)*(CE222-CE216)=0,MAX(CE216,CE215)+1,CE222) -> 4
G218: =P215 -> 2 | H218: =P218 -> 4 | I218: =I217+1 -> -2 | J218: -4 | M218: =M217 -> 1 | N218: =N217 -> 2 | O218: =O217 -> -4 | P218: 4 | R218: =IF(M215<0,"-","")&IF(M215=0,"",IF(ABS(M215)=1,"a",ABS(M215)&"a"))&IF(N215>0,IF(M215<>0,"+",""),"")&IF(N215<0,"-","")&IF(N215=0,"",IF(ABS(N215)=1,"b",ABS(N215)&"b"))&IF(O215>0,IF(M215^2+N215^2<>0,"+",""),"")&IF(O215<0,"-","")&IF(O215=0,"",IF(ABS(O215)=1,"c",ABS(O215)&"c"))&"="&P218 -> 4a+2b+c=4 | AA218: 1 | AB218: -1 | AC218: 0.5 | AD218: -1 | AE218: 1 | AF218: 1 | AG218: -0.5 | AH218: -1 | AI218: -1 | AJ218: -0.5 | AK218: 1 | AL218: 1 | AM218: 1 | AN218: -0.5 | AO218: 1 | AP218: 0.5 | AQ218: 1 | AR218: -1 | AS218: -1 | AT218: -1 | AU218: -1 | AV218: -1 | AW218: 1 | AX218: 1 | AY218: 1 | AZ218: -1 | BA218: 1 | BB218: -1 | BC218: 0.5 | BD218: -0.5 | BE218: -1 | BF218: 1 | BG218: -1 | BH218: 1 | BI218: -1 | BJ218: -0.5 | BK218: -0.5 | BL218: 0.5 | BM218: -0.5 | BN218: 0.5 | BO218: 0.5 | BP218: -0.5 | BQ218: 0.5 | BR218: -1 | BS218: -0.5 | BT218: 1 | BU218: 0.5 | BV218: -1 | BW218: -1 | BX218: 1 | BY218: 0.5 | BZ218: -1 | CA218: 0.5 | CB218: 1 | CC218: =RANDBETWEEN(1,2)/2*(-1)^RANDBETWEEN(1,2) -> 1 | CD218: =RANDBETWEEN(1,2)/2*(-1)^RANDBETWEEN(1,2) -> 1 | CE218: =RANDBETWEEN(1,2)/2*(-1)^RANDBETWEEN(1,2) -> 1
I219: -1 | J219: -5 | O219: 3 | AA219: 2 | AB219: 4 | AC219: 4 | AD219: -3 | AE219: -4 | AF219: 3 | AG219: 1 | AH219: -1 | AI219: -1 | AJ219: 2 | AK219: -2 | AL219: 3 | AM219: 3 | AN219: 1 | AO219: 3 | AP219: -2 | AQ219: 3 | AR219: -4 | AS219: 2 | AT219: 2 | AU219: 4 | AV219: -1 | AW219: -4 | AX219: 3 | AY219: -3 | AZ219: -3 | BA219: 1 | BB219: 2 | BC219: -1 | BD219: -3 | BE219: -2 | BF219: -2 | BG219: -1 | BH219: -3 | BI219: -1 | BJ219: 1 | BK219: -4 | BL219: -1 | BM219: 2 | BN219: 1 | BO219: 1 | BP219: -4 | BQ219: -2 | BR219: 1 | BS219: -2 | BT219: -1 | BU219: 1 | BV219: 1 | BW219: -1 | BX219: 3 | BY219: 3 | BZ219: -2 | CA219: 3 | CB219: -1 | CC219: =RANDBETWEEN(1,4)*(-1)^RANDBETWEEN(1,2) -> 2 | CD219: =RANDBETWEEN(1,4)*(-1)^RANDBETWEEN(1,2) -> -3 | CE219: =RANDBETWEEN(1,4)*(-1)^RANDBETWEEN(1,2) -> -2
I220: 0 | J220: -4 | M220: =M216 -> 1 | N220: 2 | O220: -4 | P220: =P216 -> -1 | AA220: -4 | AB220: 4 | AC220: -4 | AD220: -4 | AE220: -3 | AF220: 4 | AG220: 3 | AH220: 3 | AI220: 4 | AJ220: 3 | AK220: -4 | AL220: 2 | AM220: 4 | AN220: -3 | AO220: -4 | AP220: -4 | AQ220: -2 | AR220: 2 | AS220: -2 | AT220: -1 | AU220: -4 | AV220: -3 | AW220: 3 | AX220: -2 | AY220: -4 | AZ220: 3 | BA220: 4 | BB220: -4 | BC220: 2 | BD220: -1 | BE220: 1 | BF220: -3 | BG220: 1 | BH220: -2 | BI220: -1 | BJ220: -2 | BK220: 3 | BL220: -3 | BM220: 4 | BN220: 3 | BO220: 2 | BP220: 1 | BQ220: -2 | BR220: 4 | BS220: 4 | BT220: -1 | BU220: 3 | BV220: 1 | BW220: 3 | BX220: 2 | BY220: -2 | BZ220: -1 | CA220: -1 | CB220: 2 | CC220: =RANDBETWEEN(1,4)*(-1)^RANDBETWEEN(1,2) -> -3 | CD220: 4 | CE220: -1
I221: 1 | J221: -1 | M221: 1 | N221: =N217 -> 2 | O221: -4 | P221: =P217 -> 4
I222: 2 | J222: 4 | M222: =M218 -> 1 | N222: =N218 -> 2 | O222: =O218 -> -4 | P222: =P218 -> 4 | AA222: 2 | AB222: -1 | AC222: 3 | AD222: 4 | AE222: 4 | AF222: 3 | AG222: 1 | AH222: 4 | AI222: -1 | AJ222: -4 | AK222: 2 | AL222: -3 | AM222: -3 | AN222: -1 | AO222: 1 | AP222: -1 | AQ222: -4 | AR222: -1 | AS222: 2 | AT222: 2 | AU222: -4 | AV222: 3 | AW222: 2 | AX222: -1 | AY222: 4 | AZ222: -3 | BA222: 1 | BB222: -3 | BC222: 2 | BD222: 4 | BE222: 4 | BF222: 4 | BG222: -1 | BH222: -4 | BI222: 4 | BJ222: -4 | BK222: -3 | BL222: -2 | BM222: 4 | BN222: 3 | BO222: -4 | BP222: -4 | BQ222: 3 | BR222: 1 | BS222: -4 | BT222: 3 | BU222: -4 | BV222: 1 | BW222: -2 | BX222: -1 | BY222: -1 | BZ222: 2 | CA222: -2 | CB222: -2 | CC222: =CC221+RANDBETWEEN(1,4)*(-1)^RANDBETWEEN(1,2) -> -1 | CD222: =CD221+RANDBETWEEN(1,4)*(-1)^RANDBETWEEN(1,2) -> 2 | CE222: =CE221+RANDBETWEEN(1,4)*(-1)^RANDBETWEEN(1,2) -> 4
I223: 3 | J223: 11
I224: 4 | J224: 20
I225: 5 | J225: 31 | M225: =M216 -> 1 | N225: 2 | O225: -4 | P225: =P220 -> -1
I226: 6 | J226: 44 | M226: =M217 -> 1 | N226: 2 | O226: -4 | P226: =P221 -> 4
M227: =M218 -> 1 | N227: 2 | O227: -4 | P227: =P222 -> 4
A230: 3 | E230: ="Aufgabe "&A230&" "&E231 -> Aufgabe 3 (kubische Funktion, d gegeben) | F230: 7 | M230: =P230^3 -> -8 | N230: =P230^2 -> 4 | O230: =P230 -> -2 | P230: =HLOOKUP(ID,$AA$231:$CB$240,2) -> -2
E231: (kubische Funktion, d gegeben) | M231: =P231^3 -> -1 | N231: =P231^2 -> 1 | O231: =P231 -> -1 | P231: =HLOOKUP(ID,$AA$231:$CB$240,3) -> -1 | AA231: 0 | AB231: 41 | AC231: 1 | AD231: 2 | AE231: 3 | AF231: 4 | AG231: 5 | AH231: 48 | AI231: 6 | AJ231: 7 | AK231: 8 | AL231: 9 | AM231: 43 | AN231: 10 | AO231: 11 | AP231: 12 | AQ231: 13 | AR231: 14 | AS231: 15 | AT231: 16 | AU231: 17 | AV231: 39 | AW231: 18 | AX231: 50 | AY231: 19 | AZ231: 20 | BA231: 21 | BB231: 22 | BC231: 45 | BD231: 23 | BE231: 24 | BF231: 25 | BG231: 26 | BH231: 27 | BI231: 28 | BJ231: 29 | BK231: 30 | BL231: 31 | BM231: 32 | BN231: 47 | BO231: 33 | BP231: 34 | BQ231: 35 | BR231: 36 | BS231: 46 | BT231: 42 | BU231: 38 | BV231: 44 | BW231: 37 | BX231: 40 | BY231: 49 | BZ231: 51 | CA231: 52 | CB231: 53 | CC231: 54 | CD231: 55 | CE231: 56
G232: 0 | H232: =L233 -> -7 | M232: 1 | N232: 1 | O232: 1 | P232: =HLOOKUP(ID,$AA$231:$CB$240,4) -> 1 | Z232: x1 | AA232: -2 | AB232: -2 | AC232: -4 | AD232: 2 | AE232: 2 | AF232: -4 | AG232: -4 | AH232: 2 | AI232: 3 | AJ232: -3 | AK232: 4 | AL232: -3 | AM232: -4 | AN232: -4 | AO232: 3 | AP232: 1 | AQ232: 4 | AR232: 3 | AS232: 1 | AT232: 2 | AU232: 2 | AV232: -1 | AW232: 1 | AX232: 3 | AY232: 1 | AZ232: 1 | BA232: 2 | BB232: -1 | BC232: -4 | BD232: -2 | BE232: 4 | BF232: 4 | BG232: 2 | BH232: -1 | BI232: 3 | BJ232: -3 | BK232: 4 | BL232: -4 | BM232: 3 | BN232: -4 | BO232: -4 | BP232: 3 | BQ232: 2 | BR232: 3 | BS232: -4 | BT232: -3 | BU232: -4 | BV232: 3 | BW232: 2 | BX232: -2 | BY232: 1 | BZ232: 3 | CA232: 1 | CB232: 4 | CC232: =RANDBETWEEN(1,4)*(-1)^RANDBETWEEN(1,2) -> 4 | CD232: =RANDBETWEEN(1,4)*(-1)^RANDBETWEEN(1,2) -> 2 | CE232: =RANDBETWEEN(1,4)*(-1)^RANDBETWEEN(1,2) -> -2
E233: Gesucht ist eine kubische Funktion | G233: =P230 -> -2 | H233: =P233 -> -3 | K233: c | L233: =HLOOKUP(ID,$AA$231:$CB$240,10) -> -7 | M233: =HLOOKUP(ID,$AA$231:$CB$240,5) -> -0.5 | N233: =HLOOKUP(ID,$AA$231:$CB$240,6) -> 1 | O233: =HLOOKUP(ID,$AA$231:$CB$240,7) -> 2 | P233: =M233*P230^3+N233*P230^2 +O233*P230+L233 -> -3 | R233: =IF(M230<0,"-","")&IF(M230=0,"",IF(ABS(M230)=1,"a",ABS(M230)&"a"))&IF(N230>0,IF(M230<>0,"+",""),"")&IF(N230<0,"-","")&IF(N230=0,"",IF(ABS(N230)=1,"b",ABS(N230)&"b"))&IF(O230>0,IF(M230^2+N230^2<>0,"+",""),"")&IF(O230<0,"-","")&IF(O230=0,"",IF(ABS(O230)=1,"c",ABS(O230)&"c"))&"="&P233-L233 -> -8a+4b-2c=4 | S233: =IF(M230<0,"-","")&IF(M230=0,"",IF(ABS(M230)=1,"a",ABS(M230)&"a"))&IF(N230>0,IF(M230<>0,"+",""),"")&IF(N230<0,"-","")&IF(N230=0,"",IF(ABS(N230)=1,"b",ABS(N230)&"b"))&IF(O230>0,IF(M230^2+N230^2<>0,"+",""),"")&IF(O230<0,"-","")&IF(O230=0,"",IF(ABS(O230)=1,"c",ABS(O230)&"c"))&"="&P233-L233 -> -8a+4b-2c=4 | Z233: x2 | AA233: -1 | AB233: -5 | AC233: -1 | AD233: 3 | AE233: 6 | AF233: -1 | AG233: -5 | AH233: 6 | AI233: 5 | AJ233: -5 | AK233: 6 | AL233: 1 | AM233: -1 | AN233: -3 | AO233: 6 | AP233: 2 | AQ233: 6 | AR233: 7 | AS233: 3 | AT233: 5 | AU233: 4 | AV233: 1 | AW233: 4 | AX233: 5 | AY233: 2 | AZ233: 3 | BA233: 6 | BB233: 3 | BC233: -3 | BD233: 2 | BE233: 7 | BF233: 6 | BG233: 5 | BH233: 3 | BI233: 6 | BJ233: -1 | BK233: 6 | BL233: -2 | BM233: 7 | BN233: -3 | BO233: -5 | BP233: 7 | BQ233: 4 | BR233: 4 | BS233: -2 | BT233: -1 | BU233: -3 | BV233: 7 | BW233: 4 | BX233: 1 | BY233: 2 | BZ233: 4 | CA233: 3 | CB233: 6 | CC233: =IF(CC232+CC241=0,-5,CC232+CC241) -> 7 | CD233: =IF(CD232+CD241=0,-5,CD232+CD241) -> 5 | CE233: =IF(CE232+CE241=0,-5,CE232+CE241) -> -1
G234: =P231 -> -1 | H234: =P234 -> 0.5 | M234: =M233 -> -0.5 | N234: =N233 -> 1 | O234: 2 | P234: =M234*P231^2+N234*P231+O234 -> 0.5 | Z234: x3 | AA234: 1 | AB234: 4 | AC234: -5 | AD234: -1 | AE234: -2 | AF234: -2 | AG234: 3 | AH234: -3 | AI234: -3 | AJ234: -4 | AK234: -1 | AL234: 2 | AM234: -2 | AN234: 2 | AO234: -3 | AP234: 4 | AQ234: -3 | AR234: -3 | AS234: -2 | AT234: -3 | AU234: 1 | AV234: 2 | AW234: -3 | AX234: -5 | AY234: -3 | AZ234: -1 | BA234: 1 | BB234: -5 | BC234: 1 | BD234: -1 | BE234: -4 | BF234: -5 | BG234: -5 | BH234: -5 | BI234: -5 | BJ234: 1 | BK234: -2 | BL234: -5 | BM234: -3 | BN234: 1 | BO234: 3 | BP234: 2 | BQ234: 3 | BR234: 1 | BS234: -3 | BT234: -5 | BU234: -1 | BV234: 2 | BW234: -5 | BX234: -4 | BY234: -3 | BZ234: -5 | CA234: 2 | CB234: 2 | CC234: =IF((CC239-CC232)*(CC239-CC233)=0,-5,CC239) -> 1 | CD234: =IF((CD239-CD232)*(CD239-CD233)=0,-5,CD239) -> 3 | CE234: =IF((CE239-CE232)*(CE239-CE233)=0,-5,CE239) -> -3
G235: =P232 -> 1 | H235: =P235 -> 2.5 | M235: =M234 -> -0.5 | N235: 1 | O235: 2 | P235: 2.5 | AA235: -0.5 | AB235: -1 | AC235: 0.5 | AD235: 0.5 | AE235: -0.5 | AF235: -1 | AG235: 0.5 | AH235: -1 | AI235: 1 | AJ235: -0.5 | AK235: -1 | AL235: -0.5 | AM235: 1 | AN235: -1 | AO235: -1 | AP235: 1 | AQ235: 1 | AR235: 0.5 | AS235: -1 | AT235: -0.5 | AU235: -0.5 | AV235: -0.5 | AW235: 1 | AX235: -1 | AY235: 1 | AZ235: -0.5 | BA235: 1 | BB235: -1 | BC235: -1 | BD235: 0.5 | BE235: 1 | BF235: 0.5 | BG235: -0.5 | BH235: -0.5 | BI235: 0.5 | BJ235: -1 | BK235: 1 | BL235: -1 | BM235: 0.5 | BN235: -1 | BO235: -1 | BP235: -1 | BQ235: -1 | BR235: -1 | BS235: -0.5 | BT235: 1 | BU235: -1 | BV235: 0.5 | BW235: -1 | BX235: -0.5 | BY235: -0.5 | BZ235: 0.5 | CA235: 1 | CB235: -1 | CC235: =RANDBETWEEN(1,2)/2*(-1)^RANDBETWEEN(1,2) -> -1 | CD235: =RANDBETWEEN(1,2)/2*(-1)^RANDBETWEEN(1,2) -> -0.5 | CE235: =RANDBETWEEN(1,2)/2*(-1)^RANDBETWEEN(1,2) -> 1
AA236: 1 | AB236: -3 | AC236: 2 | AD236: -3 | AE236: 4 | AF236: 3 | AG236: 2 | AH236: -2 | AI236: -4 | AJ236: -3 | AK236: 4 | AL236: -2 | AM236: 1 | AN236: -4 | AO236: -2 | AP236: 3 | AQ236: -4 | AR236: -2 | AS236: 3 | AT236: -3 | AU236: 4 | AV236: 3 | AW236: 3 | AX236: -3 | AY236: -4 | AZ236: -1 | BA236: -2 | BB236: -3 | BC236: 4 | BD236: 3 | BE236: 3 | BF236: -3 | BG236: -2 | BH236: 3 | BI236: -4 | BJ236: -4 | BK236: 4 | BL236: -4 | BM236: -4 | BN236: -3 | BO236: -1 | BP236: 1 | BQ236: -3 | BR236: 1 | BS236: 2 | BT236: 1 | BU236: 4 | BV236: -4 | BW236: -1 | BX236: -1 | BY236: -1 | BZ236: -4 | CA236: 4 | CB236: -2 | CC236: =RANDBETWEEN(1,4)*(-1)^RANDBETWEEN(1,2) -> 1 | CD236: =RANDBETWEEN(1,4)*(-1)^RANDBETWEEN(1,2) -> -2 | CE236: =RANDBETWEEN(1,4)*(-1)^RANDBETWEEN(1,2) -> 3
M237: =M233 -> -0.5 | N237: 1 | O237: 2 | P237: =P233 -> -3 | AA237: 2 | AB237: 3 | AC237: 2 | AD237: -4 | AE237: -4 | AF237: -3 | AG237: -3 | AH237: 4 | AI237: -1 | AJ237: 3 | AK237: 1 | AL237: -4 | AM237: 1 | AN237: -1 | AO237: -1 | AP237: -1 | AQ237: -3 | AR237: -2 | AS237: 4 | AT237: -1 | AU237: -3 | AV237: 3 | AW237: 4 | AX237: -4 | AY237: -1 | AZ237: -4 | BA237: -2 | BB237: -1 | BC237: -4 | BD237: 1 | BE237: -3 | BF237: -3 | BG237: 3 | BH237: -4 | BI237: 4 | BJ237: 4 | BK237: -4 | BL237: 1 | BM237: 2 | BN237: -3 | BO237: -3 | BP237: -4 | BQ237: 2 | BR237: -2 | BS237: 2 | BT237: 3 | BU237: -2 | BV237: 1 | BW237: -4 | BX237: -2 | BY237: -2 | BZ237: 3 | CA237: -3 | CB237: -2 | CC237: =RANDBETWEEN(1,4)*(-1)^RANDBETWEEN(1,2) -> -3 | CD237: -2 | CE237: -2
... 584 more rows
